Workbook

Sheet Ex 1 HDD
A1: Heating Degree Days | G1: Docket | I1: Dominion Energy Utah
I2: Docket No. 19-057-01
I3: DEU Variance Exhibit
A7: Month/Year | B7: Actual | C7: IRP Forecast (Normal) | F7: Actual | G7: IRP Forecast (Normal)
A8: 2019-06-01 | B8: 33 | C8: 46.17 | D8: =B8-C8 -> -13.17 | F8: =B8 -> 33 | G8: =C8 -> 46.17
A9: 2019-07-01 | B9: 0 | C9: 2.08 | D9: =B9-C9 -> -2.08 | F9: =B9+F8 -> 33 | G9: =C9+G8 -> 48.25
A10: 2019-08-01 | B10: 0 | C10: 2.3 | D10: -2.3 | F10: 33 | G10: =C10+G9 -> 50.55
A11: 2019-09-01 | B11: 92 | C11: 79.83 | D11: 6.17 | F11: 119 | G11: 130.38
A12: 2019-10-01 | B12: 599 | C12: 374.12 | D12: 193.88 | F12: 687 | G12: 504.5
A13: 2019-11-01 | B13: 734 | C13: 744.18 | D13: -56.18 | F13: 1375 | G13: 1248.68
A14: 2019-12-01 | B14: 955 | C14: 1070.32 | D14: -115.32 | F14: 2330 | G14: 2319
A15: 2020-01-01 | B15: 900 | C15: 1096.15 | D15: -196.15 | F15: 3230 | G15: 3415.15
A16: 2020-02-01 | B16: 865 | C16: 860 | D16: 5 | F16: 4095 | G16: 4275.15
A17: 2020-03-01 | C17: 657.78 | D17: -657.78 | F17: 4095 | G17: 4932.93
A18: 2020-04-01 | C18: 431.82 | D18: -431.82 | F18: 4095 | G18: 5364.75
A19: 2020-05-01 | C19: 205.37 | D19: -205.37 | F19: 4095 | G19: 5570.12
B20: =SUM(B8:B19) -> 4178 | C20: =SUM(C8:C19) -> 5570.12 | D20: =SUM(D8:D19) -> -1475.12
G36: =4.08-3.28 -> 0.8 | H36: =3.86-3.59 -> 0.27

Sheet Exhibit 1.1
O31: ='Ex 1 HDD'!I3 -> DEU Variance Exhibit | P31: ='Ex 1 HDD'!I2 -> Docket No. 19-057-01 | Q31: ='Ex 1 HDD'!I1 -> Dominion Energy Utah
O32: 1.1

Sheet Exhibit 1.2
O31: ='Ex 1 HDD'!I3 -> DEU Variance Exhibit | P31: ='Ex 1 HDD'!I2 -> Docket No. 19-057-01 | Q31: ='Ex 1 HDD'!I1 -> Dominion Energy Utah
O32: 1.2

Sheet Exhibit 1.3
O31: ='Ex 1 HDD'!I3 -> DEU Variance Exhibit | P31: ='Ex 1 HDD'!I2 -> Docket No. 19-057-01 | Q31: ='Ex 1 HDD'!I1 -> Dominion Energy Utah
O32: 1.3

Sheet Ex 2 Clay Basin
A1: Clay Basin Ending Inventory (MDths)
M5: Plan Year 1 | N5: 1106
K6: Month/Year | L6: Month | M6: Inj | N6: With | O6: Total
A7: Month/Year | B7: Actual | C7: IRP Forecast (Normal) | E7: Actual | F7: Actual/1000 | H7: Actual | I7: IRP Forecast (Normal) | O7: 2000
A8: 2019-06-01 | B8: =F8 -> 3477.596 | C8: =O8 -> 4700 | D8: =B8-C8 -> -1222.404 | E8: 3477596 | F8: =E8/1000 -> 3477.596 | H8: =F8 -> 3477.596 | I8: =C8 -> 4700 | K8: =A8 -> 2019-06-01 | L8: =O7 -> 2000 | M8: 2700 | N8: 0 | O8: =L8+M8-N8 -> 4700 | Q8: 123.428 | S8: =M8/30 -> 90 | U8: =(M8-N8)/30 -> 90
A9: 2019-07-01 | B9: =F9 -> 6286.77 | C9: =O9 -> 7474.17 | D9: -1187.4 | E9: 6286770 | F9: =E9/1000 -> 6286.77 | H9: =H8+F9 -> 9764.366 | I9: =C9+I8 -> 12174.17 | K9: =A9 -> 2019-07-01 | L9: =O8 -> 4700 | M9: 2774.17 | N9: 0 | O9: 7474.17 | Q9: 66.7795 | S9: =M9/31 -> 89.48935484 | U9: =(M9-N9)/31 -> 89.48935484
A10: 2019-08-01 | B10: =F10 -> 8985.496 | C10: 9954.17 | D10: -968.674 | E10: 8985496 | F10: 8985.496 | H10: =H9+F10 -> 18749.862 | I10: 22128.34 | K10: 2019-08-01 | L10: =O9 -> 7474.17 | M10: 2480 | N10: 0 | O10: 9954.17 | Q10: 19.9656 | S10: =M10/31 -> 80 | U10: =(M10-N10)/31 -> 80
A11: 2019-09-01 | B11: =F11 -> 10732.65 | C11: 11187.6 | D11: -454.95 | E11: 10732650 | F11: 10732.65 | H11: 29482.512 | I11: 33315.94 | K11: 2019-09-01 | L11: 9954.17 | M11: 1233.43 | N11: 0 | O11: 11187.6 | Q11: 0 | S11: 39.78806452 | U11: 39.78806452
A12: 2019-10-01 | B12: 11188.033 | C12: 13000.005 | D12: -1811.972 | E12: 11188033 | F12: 11188.033 | H12: 40670.545 | I12: 46315.945 | K12: 2019-10-01 | L12: 11187.6 | M12: 1812.405 | N12: 0 | O12: 13000.005 | Q12: 0 | S12: 58.46467742 | U12: 58.46467742
A13: 2019-11-01 | B13: 11598.22 | C13: 10542.677 | D13: 1055.543 | E13: 11598220 | F13: 11598.22 | H13: 52268.765 | I13: 56858.622 | K13: 2019-11-01 | L13: 13000.005 | M13: 0 | N13: 2457.328 | O13: 10542.677 | Q13: 0 | S13: 0 | U13: -79.26864516
A14: 2019-12-01 | B14: 9206.261 | C14: 7100.631 | D14: 2105.63 | E14: 9206261 | F14: 9206.261 | H14: 61475.026 | I14: 63959.253 | K14: 2019-12-01 | L14: 10542.677 | M14: 0 | N14: 3442.046 | O14: 7100.631 | Q14: 3417.48 | S14: 0 | U14: -111.0337419
A15: 2020-01-01 | B15: 5589.423 | C15: =O15 -> 3690.581 | D15: 1898.842 | E15: 5589423 | F15: 5589.423 | H15: 67064.449 | I15: 67649.834 | K15: 2020-01-01 | L15: 7100.631 | M15: 0 | N15: 3410.05 | O15: 3690.581 | Q15: 5311.68 | S15: 0 | U15: -110.0016129
A16: 2020-02-01 | B16: 2888.103 | C16: =O16 -> 500.535 | D16: 2387.568 | E16: 2888103 | F16: 2888.103 | H16: 69952.552 | I16: 68150.369 | K16: 2020-02-01 | L16: 3690.581 | M16: 0 | N16: 3190.046 | O16: 500.535 | Q16: 3252.24 | S16: 0 | U16: -102.9047097
A17: 2020-03-01 | B17: 0 | C17: =O17 -> 500.535 | F17: 0 | H17: 69952.552 | I17: 68650.904 | K17: 2020-03-01 | L17: 500.535 | M17: 0 | N17: 0 | O17: 500.535 | Q17: 0 | S17: 0 | U17: 0
A18: 2020-04-01 | B18: =F18 -> 0 | C18: =O18 -> 500.535 | F18: 0 | H18: 69952.552 | I18: 69151.439 | K18: 2020-04-01 | L18: 500.535 | M18: 0 | N18: 0 | O18: 500.535 | Q18: 0 | S18: 0 | U18: 0
A19: 2020-05-01 | B19: =F19 -> 0 | C19: =O19 -> 1912.887 | F19: 0 | H19: 69952.552 | I19: 71064.326 | K19: 2020-05-01 | L19: 500.535 | M19: 1412.352 | N19: 0 | O19: 1912.887 | Q19: 0 | S19: 45.55974194 | U19: 45.55974194
M21: =SUM(M8:M19) -> 12412.357 | N21: =SUM(N8:N19) -> 12499.47 | O21: =SUM(N8:N19) -> 12499.47
J25: =O15 -> 3690.581 | M25: =M18/30 -> 0
H26: 1 | I26: =N16/29 -> 110.0015862 | J26: =J25-$I$26 -> 3580.579414
H27: 2 | J27: =J26-$I$26 -> 3470.577828
H28: 3 | J28: 3360.576241
H29: 4 | J29: 3250.574655
H30: 5 | J30: 3140.573069
H31: 6 | J31: 3030.571483
H32: 7 | J32: 2920.569897
H33: 8 | J33: 2810.56831
H34: 9 | J34: 2700.566724
H35: 10 | J35: 2590.565138
H36: 11 | J36: 2480.563552
H37: 12 | J37: 2370.561966
H38: 13 | J38: 2260.560379
H39: 14 | J39: 2150.558793
H40: 15 | J40: 2040.557207
H41: 16 | J41: =J40-$I$26 -> 1930.555621
H42: 17 | J42: 1820.554034
B43: 5626242 | C43: 8026685 | D43: 10622439 | E43: 12607382 | H43: 18 | J43: 1710.552448
E44: 12434437 | H44: 19 | J44: 1600.550862
E45: 10491542 | H45: 20 | J45: 1490.549276
H46: 21 | J46: 1380.54769
H47: 22 | J47: 1270.546103
H48: 23 | J48: 1160.544517
B49: 13419 | H49: 24 | J49: 1050.542931
B50: 0.2276 | H50: 25 | J50: 940.5413448
B51: =B49*B50 -> 3054.1644 | H51: 26 | J51: 830.5397586
H52: 27 | J52: 720.5381724
H53: 28 | J53: 610.5365862
H54: 29 | J54: 500.535
H55: 30
F58: June | G58: July | H58: August | I58: September | J58: October | K58: November | L58: December | M58: January | N58: February | O58: March | P58: April | Q58: May
F59: 4587175 | G59: 7350188 | H59: 10347695 | I59: 12594397 | J59: 12186418 | K59: =E13 -> 11598220 | L59: =E14 -> 9206261 | M59: =E15 -> 5589423 | N59: =E16 -> 2888103
E60: 0.4444444 | F60: =$E60*F$59/1000 -> 2038.744241 | G60: =$E60*G$59/1000 -> 3266.749896 | H60: 4598.975096 | I60: 5597.509218 | J60: 5416.185236 | K60: 5154.763929 | L60: 4091.671146 | M60: 2484.187752 | N60: 1283.601205
E61: 0.2777778 | F61: =$E61*F$59/1000 -> 1274.21538 | G61: 2041.719052 | H61: 2874.359952 | I61: 3498.443891 | J61: 3385.116382 | K61: 3221.728036 | L61: 2557.294927 | M61: 1552.617624 | N61: 802.2508975
E62: 0.2777778 | F62: 1274.21538 | G62: 2041.719052 | H62: 2874.359952 | I62: 3498.443891 | J62: 3385.116382 | K62: 3221.728036 | L62: 2557.294927 | M62: 1552.617624 | N62: 802.2508975
E63: =SUM(E60:E62) -> 1 | F63: =SUM(F60:F62) -> 4587.175 | G63: =SUM(G60:G62) -> 7350.188 | H63: 10347.695 | I63: 12594.397 | J63: 12186.418 | K63: 11598.22 | L63: 9206.261 | M63: 5589.423 | N63: 2888.103
F65: 13419
F66: =F60/$F$65 -> 0.1519296699 | G66: 0.2434421265 | H66: 0.3427211488 | I66: 0.4171331111 | J66: 0.4036206302 | K66: 0.3841392003 | L66: 0.3049162491 | M66: 0.1851246555 | N66: 0.09565550376
F67: =F61/$F$65 -> 0.09495606079 | G67: 0.1521513565 | H67: 0.2142007566 | I67: 0.2607082414 | J67: 0.2522629393 | K67: 0.2400870434 | L67: 0.19057269 | M67: 0.1157029305 | N67: 0.05978470061
F68: =F62/$F$65 -> 0.09495606079 | G68: 0.1521513565 | H68: 0.2142007566 | I68: 0.2607082414 | J68: 0.2522629393 | K68: 0.2400870434 | L68: 0.19057269 | M68: 0.1157029305 | N68: 0.05978470061
F69: =F63/$F$65 -> 0.3418417915 | G69: 0.5477448394 | H69: 0.7711226619 | I69: 0.9385495939 | J69: 0.9081465087 | K69: 0.8643132871 | L69: 0.686061629 | M69: 0.4165305164 | N69: 0.215224905
F72: 13419
F73: =F60/$F$65*100 -> 15.19296699 | G73: =G60/$F$65*100 -> 24.34421265 | H73: 34.27211488 | I73: 41.71331111 | J73: 40.36206302 | K73: 38.41392003 | L73: 30.49162491 | M73: 18.51246555 | N73: 9.565550376
F74: =F61/$F$65*100 -> 9.495606079 | G74: 15.21513565 | H74: 21.42007566 | I74: 26.07082414 | J74: 25.22629393 | K74: 24.00870434 | L74: 19.057269 | M74: 11.57029305 | N74: 5.978470061
F75: =F62/$F$65*100 -> 9.495606079 | G75: 15.21513565 | H75: 21.42007566 | I75: 26.07082414 | J75: 25.22629393 | K75: 24.00870434 | L75: 19.057269 | M75: 11.57029305 | N75: 5.978470061
F76: =F70/$F$65 -> 0 | G76: 0 | H76: 0 | I76: 0 | J76: 0 | K76: 0 | L76: 0 | M76: 0 | N76: 0

Sheet Ex 2 Aquifers
A1: Total Aquifer Storage Ending Inventory (MDths)
O4: 1082 | P4: 1106
H6: 1.055 | M6: Month/Year | N6: Month | O6: Inj | P6: With | Q6: Total
A7: Month/Year | B7: Actual | C7: IRP Forecast (Normal) | E7: Actual | F7: IRP Forecast (Normal) | H7: MCF | I7: DTH | J7: MDTH | Q7: 833 | U7: 497.538
A8: ='Ex 1 HDD'!$A$8 -> 2019-06-01 | B8: =J8 -> 492.156 | C8: =Q8 -> 833 | D8: =B8-C8 -> -340.844 | E8: =B8 -> 492.156 | F8: =C8 -> 833 | H8: =I8/$H$6 -> 466498.5782 | I8: 492156 | J8: =I8/1000 -> 492.156 | M8: =A8 -> 2019-06-01 | N8: =Q7 -> 833 | O8: 0 | P8: 0 | Q8: =N8+O8-P8 -> 833 | S8: 0 | U8: 365
A9: ='Ex 1 HDD'!$A$9 -> 2019-07-01 | B9: =J9 -> 611.739 | C9: =Q9 -> 833 | D9: =B9-C9 -> -221.261 | E9: =B9+E8 -> 1103.895 | F9: =C9+F8 -> 1666 | H9: =I9/$H$6 -> 579847.3934 | I9: 611739 | J9: =I9/1000 -> 611.739 | M9: =A9 -> 2019-07-01 | N9: =Q8 -> 833 | O9: 0 | P9: 0 | Q9: =N9+O9-P9 -> 833 | S9: 0 | U9: 12
A10: ='Ex 1 HDD'!$A$10 -> 2019-08-01 | B10: =J10 -> 606.922 | C10: 833 | D10: =B10-C10 -> -226.078 | E10: =B10+E9 -> 1710.817 | F10: 2499 | H10: 575281.5166 | I10: 606922 | J10: 606.922 | M10: 2019-08-01 | N10: =Q9 -> 833 | O10: 0 | P10: 0 | Q10: 833 | S10: 0 | U10: =SUM(U7:U9) -> 874.538
A11: ='Ex 1 HDD'!$A$11 -> 2019-09-01 | B11: =J11 -> 1034.576 | C11: 915.586 | D11: =B11-C11 -> 118.99 | E11: =B11+E10 -> 2745.393 | F11: 3414.586 | H11: 980640.7583 | I11: 1034576 | J11: 1034.576 | M11: 2019-09-01 | N11: 833 | O11: 82.586 | P11: 0 | Q11: =N11+O11-P11 -> 915.586 | S11: 0
A12: ='Ex 1 HDD'!$A12 -> 2019-10-01 | B12: 1185.974 | C12: 1801.552 | D12: -615.578 | E12: 3931.367 | F12: 5216.138 | H12: 1124145.972 | I12: 1185974 | J12: 1185.974 | M12: 2019-10-01 | N12: 915.586 | O12: 885.966 | P12: 0 | Q12: =N12+O12-P12 -> 1801.552 | S12: 0
A13: ='Ex 1 HDD'!$A13 -> 2019-11-01 | B13: 1838.779 | C13: 1928.338 | D13: -89.559 | E13: 5770.146 | F13: 7144.476 | H13: 1742918.483 | I13: 1838779 | J13: 1838.779 | M13: 2019-11-01 | N13: 1801.552 | O13: 126.786 | P13: 0 | Q13: =N13+O13-P13 -> 1928.338 | S13: 0
A14: ='Ex 1 HDD'!$A14 -> 2019-12-01 | B14: 1720 | C14: 1928.338 | D14: -208.338 | E14: 7490.146 | F14: 9072.814 | H14: =I14/$H$6 -> 1639786.73 | I14: 1729975 | J14: 1729.975 | M14: 2019-12-01 | N14: 1928.338 | O14: 0 | P14: 0 | Q14: =N14+O14-P14 -> 1928.338 | S14: 0
A15: ='Ex 1 HDD'!$A15 -> 2020-01-01 | B15: 1649 | C15: 1744.315 | D15: -95.315 | E15: 9139.146 | F15: 10817.129 | H15: 1562666.351 | I15: 1648613 | J15: 1648.613 | M15: 2020-01-01 | N15: 1928.338 | O15: 0 | P15: 184.023 | Q15: 1744.315 | S15: 143.71
A16: ='Ex 1 HDD'!$A16 -> 2020-02-01 | B16: 1461 | C16: 1744.315 | D16: -283.315 | E16: 10600.146 | F16: 12561.444 | H16: 1384596.209 | I16: 1460749 | J16: =I16/1000 -> 1460.749 | M16: 2020-02-01 | N16: 1744.315 | O16: 0 | P16: 0 | Q16: 1744.315 | S16: 0
A17: ='Ex 1 HDD'!$A17 -> 2020-03-01 | B17: 0 | C17: 822.415 | D17: -822.415 | E17: 10600.146 | F17: 13383.859 | H17: 0 | J17: =I17/1000 -> 0 | M17: 2020-03-01 | N17: 1744.315 | O17: 0 | P17: 921.9 | Q17: 822.415 | S17: 0
A18: ='Ex 1 HDD'!$A18 -> 2020-04-01 | B18: 0 | C18: 822.415 | D18: -822.415 | E18: 10600.146 | F18: 14206.274 | H18: 0 | J18: =I18/1000 -> 0 | M18: 2020-04-01 | N18: 822.415 | O18: 0 | P18: 0 | Q18: 822.415 | S18: 0
A19: ='Ex 1 HDD'!$A19 -> 2020-05-01 | B19: 0 | C19: 822.415 | D19: -822.415 | E19: 10600.146 | F19: 15028.689 | H19: 0 | J19: =I19/1000 -> 0 | M19: 2020-05-01 | N19: 822.415 | O19: 0 | P19: 0 | Q19: 822.415 | S19: 0
O20: =SUM(O8:O19) -> 1095.338 | P20: =SUM(P8:P19) -> 1105.923
B22: =SUM(B14:B16) -> 4830 | C22: =SUM(C14:C16) -> 5416.968 | H22: 5 | I22: =H22*$H$6 -> 5.275 | O22: Inj | P22: With
H23: 6 | I23: =H23*$H$6 -> 6.33 | O23: 0 | P23: 0
H24: 7 | I24: =H24*$H$6 -> 7.385 | O24: 0 | P24: 0
H25: 8 | I25: =H25*$H$6 -> 8.44 | O25: 0 | P25: 0
O26: 0 | P26: 0
O27: 154.246 | P27: 0
O28: 0 | P28: 0
O29: 0 | P29: 331.744
O30: 0 | P30: 238.151
O31: 0 | P31: 0
O32: 0 | P32: 0
O33: 0 | P33: 0
O34: 0 | P34: 0
O35: 154.246 | P35: 569.895
A36: chalk | B36: 252153 | C36: 252153 | H36: Second | J36: First
A37: coal | B37: 648967 | C37: 648967 | H37: 1761005.049 | J37: 1761005.049
A38: leroy | B38: 774377 | C38: 774377 | H38: 1423780.049 | J38: 1423780.049
B39: =SUM(B36:B38) -> 1675497 | C39: =SUM(C36:C38) -> 1675497 | H39: 851240.0486 | J39: 851240.0486
H40: 1009513.049 | J40: 1009513.049
H41: 750042.0486 | J41: 750042.0486
F42: June | H42: 741193.0486 | J42: 741193.0486
F43: July | H43: 742210.0486 | J43: 742210.0486
F44: August | H44: 733274.0486 | J44: 733274.0486
F45: September | H45: 779680.0486 | J45: 824078.0486 | L45: =J45-H45 -> 44398
F46: October | H46: 1488952.049 | J46: 1533352.049 | L46: =J46-H46 -> 44400
F47: November | H47: 1625943.049 | J47: 1681681.049 | L47: =J47-H47 -> 55738
F48: December | H48: 1627170.049

Sheet Ex 2 Spire Storage West
O5: 1082 | P5: 1106
H6: 1000 | N6: Month | O6: Inj | P6: With | Q6: Total
A7: ='Ex 1 HDD'!A7 -> Month/Year | B7: Actual | C7: IRP Forecast (Normal) | D7: Days | E7: Daily Demand | G7: Actual Dth | H7: MDth | J7: Actual | K7: IRP Forecast (Normal) | Q7: 450
A8: ='Ex 1 HDD'!A8 -> 2019-06-01 | B8: =H8 -> 799.215 | C8: =Q8 -> 791.73 | D8: =DAY(EOMONTH(A8,0)) -> 30 | E8: =C8/D8 -> 26.391 | G8: 799215 | H8: =G8/$H$6 -> 799.215 | J8: 949.736 | K8: =C8 -> 791.73 | M8: =A8 -> 2019-06-01 | N8: =Q7 -> 450 | O8: 341.73 | P8: 0 | Q8: =N8+O8-P8 -> 791.73
A9: ='Ex 1 HDD'!A9 -> 2019-07-01 | B9: =H9 -> 1151.344 | C9: =Q9 -> 1144.85 | D9: =DAY(EOMONTH(A9,0)) -> 31 | E9: =C9/D9 -> 36.93064516 | G9: 1151344 | H9: =G9/$H$6 -> 1151.344 | J9: =B9+J8 -> 2101.08 | K9: =C9+K8 -> 1936.58 | M9: =A9 -> 2019-07-01 | N9: =Q8 -> 791.73 | O9: 353.12 | P9: 0 | Q9: 1144.85
A10: ='Ex 1 HDD'!A10 -> 2019-08-01 | B10: =H10 -> 1503.473 | C10: 1497.97 | D10: 31 | E10: 48.3216129 | G10: 1503473 | H10: 1503.473 | J10: 3604.553 | K10: 3434.55 | M10: 2019-08-01 | N10: =Q9 -> 1144.85 | O10: 353.12 | P10: 0 | Q10: 1497.97
A11: ='Ex 1 HDD'!A11 -> 2019-09-01 | B11: =H11 -> 1844.243 | C11: 1838.871 | D11: 30 | E11: 61.2957 | G11: 1844243 | H11: 1844.243 | J11: 5448.796 | K11: 5273.421 | M11: 2019-09-01 | N11: 1497.97 | O11: 340.901 | P11: 0 | Q11: 1838.871
A12: ='Ex 1 HDD'!A12 -> 2019-10-01 | B12: 2052.456 | C12: 2077.214 | D12: 31 | E12: 67.00690323 | G12: 2052456 | H12: 2052.456 | J12: 7501.252 | K12: 7350.635 | M12: 2019-10-01 | N12: 1838.871 | O12: 238.343 | P12: 0 | Q12: 2077.214
A13: ='Ex 1 HDD'!A13 -> 2019-11-01 | B13: 1782.492 | C13: 1579.214 | D13: 30 | E13: 52.64046667 | G13: 1782492 | H13: 1782.492 | J13: 9283.744 | K13: 8929.849 | M13: 2019-11-01 | N13: 2077.214 | O13: 0 | P13: 498 | Q13: 1579.214
A14: ='Ex 1 HDD'!A14 -> 2019-12-01 | B14: 1267.892 | C14: 1064.614 | D14: 31 | E14: 34.3423871 | G14: 1267892 | H14: 1267.892 | J14: 10551.636 | K14: 9994.463 | M14: 2019-12-01 | N14: 1579.214 | O14: 0 | P14: 514.6 | Q14: 1064.614
A15: ='Ex 1 HDD'!A15 -> 2020-01-01 | B15: 763.667 | C15: 550.014 | D15: 31 | E15: 17.7423871 | G15: 763667 | H15: 763.667 | J15: 11315.303 | K15: 10544.477 | M15: 2020-01-01 | N15: 1064.614 | O15: 0 | P15: 514.6 | Q15: 550.014
A16: ='Ex 1 HDD'!A16 -> 2020-02-01 | B16: 398.467 | C16: 68.614 | D16: 29 | E16: 2.366 | G16: 398467 | H16: 398.467 | J16: 11713.77 | K16: 10613.091 | M16: 2020-02-01 | N16: 550.014 | O16: 0 | P16: 481.4 | Q16: 68.614
A17: ='Ex 1 HDD'!A17 -> 2020-03-01 | B17: =G17 -> 0 | C17: 68.614 | D17: 31 | E17: 2.213354839 | H17: 0 | J17: 11713.77 | K17: 10681.705 | M17: 2020-03-01 | N17: 68.614 | O17: 0 | P17: 0 | Q17: 68.614
A18: ='Ex 1 HDD'!A18 -> 2020-04-01 | B18: 0 | C18: 404.075 | D18: 30 | E18: 13.46916667 | H18: 0 | J18: 11713.77 | K18: 11085.78 | M18: 2020-04-01 | N18: 68.614 | O18: 335.461 | P18: 0 | Q18: 404.075
A19: ='Ex 1 HDD'!A19 -> 2020-05-01 | B19: 0 | C19: 757.194 | D19: 31 | E19: 24.4256129 | H19: 0 | J19: 11713.77 | K19: 11842.974 | M19: 2020-05-01 | N19: 404.075 | O19: 353.119 | P19: 0 | Q19: 757.194
O21: =SUM(O8:O20) -> 2315.794 | P21: =SUM(O8:O19) -> 2315.794 | Q21: =SUM(P8:P19) -> 2008.6

Sheet Exhibit 2.1
U29: 6580 | V29: 8750 | W29: 10765
U30: 4140 | V30: 6429 | W30: 8565
O31: ='Exhibit 1.1'!O31 -> DEU Variance Exhibit | P31: ='Exhibit 1.1'!P31 -> Docket No. 19-057-01 | Q31: ='Exhibit 1.1'!Q31 -> Dominion Energy Utah | U31: =U29-U30 -> 2440 | V31: =V29-V30 -> 2321 | W31: =W29-W30 -> 2200
O32: 2.1

Sheet Exhibit 2.2
O31: ='Exhibit 1.1'!O31 -> DEU Variance Exhibit | P31: ='Exhibit 1.1'!P31 -> Docket No. 19-057-01 | Q31: ='Exhibit 1.1'!Q31 -> Dominion Energy Utah
O32: 2.2

Sheet Exhibit 2.3
O31: ='Exhibit 1.1'!O31 -> DEU Variance Exhibit | P31: ='Exhibit 1.1'!P31 -> Docket No. 19-057-01 | Q31: ='Exhibit 1.1'!Q31 -> Dominion Energy Utah
O32: 2.3

Sheet Exhibit 2.4
O31: ='Exhibit 1.1'!O31 -> DEU Variance Exhibit | P31: ='Exhibit 1.1'!P31 -> Docket No. 19-057-01 | Q31: ='Exhibit 1.1'!Q31 -> Dominion Energy Utah
O32: 2.4

Sheet Exhibit 2.5
O31: ='Exhibit 1.1'!O31 -> DEU Variance Exhibit | P31: ='Exhibit 1.1'!P31 -> Docket No. 19-057-01 | Q31: ='Exhibit 1.1'!Q31 -> Dominion Energy Utah
O32: 2.5

Sheet Exhibit 2.6
O31: ='Exhibit 1.1'!O31 -> DEU Variance Exhibit | P31: ='Exhibit 1.1'!P31 -> Docket No. 19-057-01 | Q31: ='Exhibit 1.1'!Q31 -> Dominion Energy Utah
O32: 2.6

Sheet Exhibit Firm Sales Volume
A1: Demand
H6: Cumulative
A7: ='Ex 1 HDD'!A7 -> Month/Year | B7: Actual | C7: IRP Forecast (Normal) | D7: Days | E7: Daily Demand | H7: Actual | I7: IRP Forecast (Normal)
A8: ='Ex 1 HDD'!A8 -> 2019-06-01 | B8: 3012.441136 | C8: 3304.855 | D8: =DAY(EOMONTH(A8,0)) -> 30 | E8: =C8/D8 -> 110.1618333 | H8: =B8 -> 3012.441136 | I8: =C8 -> 3304.855
A9: ='Ex 1 HDD'!A9 -> 2019-07-01 | B9: 2628.233664 | C9: 2562.741 | D9: =DAY(EOMONTH(A9,0)) -> 31 | E9: =C9/D9 -> 82.66906452 | H9: =H8+B9 -> 5640.6748 | I9: =I8+C9 -> 5867.596
A10: ='Ex 1 HDD'!A10 -> 2019-08-01 | B10: 2555.410614 | C10: 2567.743 | D10: 31 | E10: 82.83041935 | H10: =H9+B10 -> 8196.085414 | I10: 8435.339
A11: ='Ex 1 HDD'!A11 -> 2019-09-01 | B11: 3045.567266 | C11: 3805.046 | D11: 30 | E11: 126.8348667 | H11: 11241.65268 | I11: 12240.385
A12: ='Ex 1 HDD'!A12 -> 2019-10-01 | B12: 9039.347733 | C12: 6734.668 | D12: 31 | E12: 217.2473548 | H12: 20281.00041 | I12: 18975.053
A13: ='Ex 1 HDD'!A13 -> 2019-11-01 | B13: 13648.91439 | C13: 12379.303 | D13: 30 | E13: 412.6434333 | H13: 33929.91481 | I13: 31354.356
A14: ='Ex 1 HDD'!A14 -> 2019-12-01 | B14: 17994.32733 | C14: 19403.76 | D14: 31 | E14: 625.9277419 | H14: 51924.24214 | I14: 50758.116
A15: ='Ex 1 HDD'!A15 -> 2020-01-01 | B15: 19251.21165 | C15: 20973.918 | D15: 31 | E15: 676.578 | H15: 71175.45379 | I15: 71732.034
A16: ='Ex 1 HDD'!A16 -> 2020-02-01 | B16: 17341.69527 | C16: 18183.889 | D16: 29 | E16: 627.0306552 | H16: 88517.14906 | I16: 89915.923
A17: ='Ex 1 HDD'!A17 -> 2020-03-01 | C17: 14059.607 | D17: 31 | E17: 453.5357097 | H17: 88517.14906 | I17: 103975.53
A18: ='Ex 1 HDD'!A18 -> 2020-04-01 | C18: 9342.528 | D18: 30 | E18: 311.4176 | H18: 88517.14906 | I18: 113318.058
A19: ='Ex 1 HDD'!A19 -> 2020-05-01 | C19: 5780.501 | D19: 31 | E19: 186.4677742 | H19: 88517.14906 | I19: 119098.559
C20: =SUM(C8:C19) -> 119098.559

Sheet Exhibit 3.1
O31: DEU Variance Exhibit | P31: Docket No. 19-057-01 | Q31: Dominion Energy Utah
O32: 3.1

Sheet Exhibit 3.2
O31: DEU Variance Exhibit | P31: Docket No. 19-057-01 | Q31: Dominion Energy Utah
O32: 3.2

Sheet Exhibit 3.3
O31: DEU Variance Exhibit | P31: Docket No. 19-057-01 | Q31: Dominion Energy Utah
O32: 3.3

Sheet Exhibit 3.4
H1: Dominion Energy Utah
H2: Docket No. 19-057-01
H3: DEU Variance Exhibit 3.4
B6: IRP Variance
B8: Actual Results
C9: 2019-12-01 | E9: 2020-01-01 | G9: 2020-02-01
B10: SUPPLY | C10: Actual | D10: Normal | E10: Actual | F10: Normal | G10: Actual | H10: Normal
A11: 1 | B11: Cost of Service Prod (Mbtu) | C11: 5876.935 | D11: 5562.659 | E11: 5977.019 | F11: 5433.612 | G11: 5435.603 | H11: 5096.207
A12: =A11+1 -> 2 | B12: Purchases (Mbtu) | C12: 10591.211 | D12: 10225.628 | E12: 9005.449 | F12: 11799.117 | G12: 9185.296 | H12: 9734.015
A13: 3 | B13: Clay Basin With (Mbtu) | C13: 2062.188 | D13: 3442.046 | E13: 3616.801 | F13: 3410.05 | G13: 2701.276 | H13: 3190.046
A14: 4 | B14: Acquifers With (Mbtu) | C14: 130.596 | D14: 0 | E14: 103.563 | F14: 184.023 | G14: 577.994 | H14: 0
A15: 5 | B15: Spire Storage West With (Mbtu) | C15: 514.6 | D15: 514.6 | E15: 504.225 | F15: 514.6 | G15: 365.2 | H15: 481.4
A16: 6 | B16: Off-System | C16: 33.89908 | D16: 43.496 | E16: 35.86731 | F16: 43.231 | G16: 27.48172 | H16: 40.195
A18: =A16+1 -> 7 | B18: Total Supply | C18: 19209.42908 | D18: 19788.429 | E18: 19242.92431 | F18: 21384.633 | G18: 18292.85072 | H18: 18541.863
B20: DEMAND
A21: =A18+1 -> 8 | B21: Firm Sales (Mbtu) | C21: 17994.327 | D21: 19242.453 | E21: 19251.212 | F21: 20804.04 | G21: 17341.695 | H21: 18035.052
A22: =A21+1 -> 9 | B22: Interruptible Sales (Mbtu) | C22: 31.699 | D22: 33.275 | E22: 40.209 | F22: 35.061 | G22: 34.96 | H22: 29.388
A23: 10 | B23: Clay Basin Inj (Mbtu) | C23: 108.676 | D23: 0 | E23: 0 | F23: 0 | G23: 0 | H23: 0
A24: =A23+1 -> 11 | B24: Acquifers Inj (Mbtu) | C24: 20.142 | D24: 0 | E24: 37.985 | F24: 0 | G24: 404.159 | H24: 0
A25: =A24+1 -> 12 | B25: Spire Storage West Inj (Mbtu) | C25: 0 | D25: 0 | E25: 0 | F25: 0 | G25: 0 | H25: 0
A26: 13 | B26: Off-System | C26: 33.89908 | D26: 41.292 | E26: 35.86731 | F26: 41.041 | G26: 27.48172 | H26: 38.158
A27: 14 | B27: Fuel | C27: 104.1462 | D27: 384.667 | E27: 100.588 | F27: 410.714 | G27: 96.287 | H27: 357.976
A28: 15 | B28: Company Use / L&U | C28: 916.764 | D28: 86.74 | E28: -223.18807 | F28: 93.776 | G28: 387.94799 | H28: 81.291
A30: =A28+1 -> 16 | B30: Total Demand | C30: 19209.65328 | D30: 19788.427 | E30: 19242.67324 | F30: 21384.632 | G30: 18292.53071 | H30: 18541.865
A32: =A30+1 -> 17 | B32: Clay Basin Fuel Usage Adjustment | C32: -0.047 | D32: 0 | E32: -0.037 | F32: 0 | G32: -0.044 | H32: 0
A33: =A32+1 -> 18 | B33: Clay Basin Transfers | C33: 0 | D33: 0 | E33: 0 | F33: 0 | G33: 0 | H33: 0
A34: =A33+1 -> 19 | B34: Acquifers Fuel Usage Adjustment | C34: -8.35 | D34: 0 | E34: -5.784 | F34: 0 | G34: -14.029 | H34: 0
A35: =A34+1 -> 20 | B35: Acquifers Transfers | C35: 0 | D35: 0 | E35: 0 | F35: 0 | G35: 0 | H35: 0
A36: 21 | B36: Clay Basin Current Bal | C36: 9206.261 | D36: 8593 | E36: 5589.423 | F36: 5135 | G36: 2888.103 | H36: 2055
A37: 22 | B37: Acquifers Current Bal | C37: 1719.975 | D37: 1724 | E37: 1648.613 | F37: 1724 | G37: 1460.749 | H37: 1669
A38: 23 | B38: Spire Storage West Current Bal | C38: 1268.892 | D38: 1340 | E38: 764.667 | F38: 826 | G38: 399.467 | H38: 361
A40: =+A38+1 -> 24 | B40: Purchases($/Dth) | C40: 2.939099504 | D40: 2.79 | E40: 2.343159902 | F40: 2.9 | G40: 1.787165269 | H40: 2.67
A41: =A40+1 -> 25 | B41: Purchases $ (000) | C41: 31128.623 | D41: 28529.50212 | E41: 21101.207 | F41: 34217.4393 | G41: 16415.642 | H41: 25989.82005
B44: Variances
A45: =A41+1 -> 26 | B45: Cost of service volumes | C45: 314.276 | D45: 0 | E45: 543.407 | F45: 0 | G45: 339.396 | H45: 0
A46: =A45+1 -> 27 | B46: Purchase volumes | C46: 365.583 | D46: 0 | E46: 0 | F46: 0 | G46: 0 | H46: 0
A47: 28 | B47: Purchase $ Act over (under) IRP | C47: 2599.12088 | D47: 0 | E47: 0 | F47: -13116.2323 | G47: 0 | H47: -9574.17805
A48: 29 | B48: Purchase Variance | C48: 1019.97657 | D48: 0 | E48: 0 | F48: -8101.6372 | G48: 0 | H48: -1465.07973
A49: 30 | B49: $ Variance | C49: 1579.14431 | D49: 0 | E49: 0 | F49: -5014.5951 | G49: 0 | H49: -8109.09832
A50: 31 | B50: Check | C50: 0 | D50: 0 | E50: 0 | F50: 0 | G50: 0 | H50: 0
A51: 32 | B51: Quarter Variance | G51: -20091.28947
A52: 33 | B52: Purchase Variance | G52: -8546.74036
A53: 34 | B53: $ Variance | G53: -11544.54911
A54: 35 | B54: Check | G54: 0

Sheet Ex 4 Purchase Gas
A1: Purchase Gas Variance (Brady Included) MDths
G6: Cumulative
A7: Month/Year | B7: Actual | C7: IRP Forecast (Normal) | E7: Month/Year | F7: Actual | G7: IRP Forecast (Normal) | I7: Month/Year | J7: DTHS | K7: MDTHS | L7: $'S | M7: $1,000'S
A8: ='Ex 1 HDD'!A8 -> 2019-06-01 | B8: =K8 -> 0 | C8: 777.383 | E8: =A8 -> 2019-06-01 | F8: =K8 -> 0 | G8: =C8 -> 777.383 | I8: =A8 -> 2019-06-01 | J8: 0 | K8: =J8/1000 -> 0 | L8: 0 | M8: =L8/1000 -> 0
A9: ='Ex 1 HDD'!A9 -> 2019-07-01 | B9: =K9 -> 0 | C9: 0 | E9: 2019-07-01 | F9: =F8+K9 -> 0 | G9: =G8+C9 -> 777.383 | I9: 2019-07-01 | J9: 0 | K9: =J9/1000 -> 0 | L9: 0 | M9: 0
A10: ='Ex 1 HDD'!A10 -> 2019-08-01 | B10: 0 | C10: 0 | E10: 2019-08-01 | F10: 0 | G10: 777.383 | I10: 2019-08-01 | J10: 0 | K10: =J10/1000 -> 0 | L10: 0 | M10: 0
A11: ='Ex 1 HDD'!A11 -> 2019-09-01 | B11: 660 | C11: 0 | E11: 2019-09-01 | F11: 660 | G11: 777.383 | I11: 2019-09-01 | J11: 660000 | K11: 660 | L11: 1244900 | M11: 1244.9
A12: ='Ex 1 HDD'!A12 -> 2019-10-01 | B12: 6225.481 | C12: 4222.72 | E12: 2019-10-01 | F12: 6885.481 | G12: 5000.103 | I12: 2019-10-01 | J12: 6225481 | K12: 6225.481 | L12: 13543604 | M12: 13543.604
A13: ='Ex 1 HDD'!A13 -> 2019-11-01 | B13: 7721.361 | C13: 4431.064 | E13: 2019-11-01 | F13: 14606.842 | G13: 9431.167 | I13: 2019-11-01 | J13: 7721361 | K13: 7721.361 | L13: 21129317 | M13: 21129.317
A14: ='Ex 1 HDD'!A14 -> 2019-12-01 | B14: 10591.211 | C14: 10225.63 | E14: 2019-12-01 | F14: 25198.053 | G14: 19656.797 | I14: 2019-12-01 | J14: 10591211 | K14: 10591.211 | L14: 31128623 | M14: 31128.623
A15: ='Ex 1 HDD'!A15 -> 2020-01-01 | B15: 9005.449 | C15: 11799.12 | E15: 2020-01-01 | F15: 34203.502 | G15: 31455.917 | I15: 2020-01-01 | J15: 9005449 | K15: 9005.449 | L15: 21101207 | M15: 21101.207
A16: ='Ex 1 HDD'!A16 -> 2020-02-01 | B16: 9185.296 | C16: 9734.01 | E16: 2020-02-01 | F16: 43388.798 | G16: 41189.927 | I16: 2020-02-01 | J16: 9185296 | K16: 9185.296 | L16: 16415642 | M16: 16415.642
A17: ='Ex 1 HDD'!A17 -> 2020-03-01 | B17: 0 | C17: 8071.9 | E17: 2020-03-01 | F17: 43388.798 | G17: 49261.827 | I17: 2020-03-01 | K17: 0 | M17: 0
A18: ='Ex 1 HDD'!A18 -> 2020-04-01 | B18: =K18 -> 0 | C18: 4812.29 | E18: 2020-04-01 | F18: 43388.798 | G18: =G17+C18 -> 54074.117 | I18: 2020-04-01 | K18: 0 | M18: 0
A19: ='Ex 1 HDD'!A19 -> 2020-05-01 | B19: =K19 -> 0 | C19: 2600.38 | E19: 2020-05-01 | F19: 43388.798 | G19: 56674.497 | I19: 2020-05-01 | K19: 0 | M19: 0
B21: =SUM(B8:B19) -> 43388.798 | C21: =SUM(C8:C20) -> 56674.497
B23: =B16-B17 -> 9185.296

Sheet Exhibit 4.1
O31: ='Exhibit 1.1'!O31 -> DEU Variance Exhibit | P31: ='Exhibit 1.1'!P31 -> Docket No. 19-057-01 | Q31: ='Exhibit 1.1'!Q31 -> Dominion Energy Utah
O32: 4.1

Sheet Exhibit 4.2
O30: ='Exhibit 1.1'!O31 -> DEU Variance Exhibit | P30: ='Exhibit 1.1'!P31 -> Docket No. 19-057-01 | Q30: ='Exhibit 1.1'!Q31 -> Dominion Energy Utah
O31: 4.2

Sheet Exhibit 4.3
O31: ='Exhibit 1.1'!O31 -> DEU Variance Exhibit | P31: ='Exhibit 1.1'!P31 -> Docket No. 19-057-01 | Q31: ='Exhibit 1.1'!Q31 -> Dominion Energy Utah
O32: 4.3

Sheet Ex 5 Purchase Gas Cost
A1: Purchase Gas Cost Variance ($1,000's)
E6: Cumulative
A7: Month/Year | B7: Actual | C7: IRP Forecast (Normal) | E7: Actual | F7: IRP Forecast (Normal)
A8: ='Ex 1 HDD'!A8 -> 2019-06-01 | B8: ='Ex 4 Purchase Gas'!M8 -> 0 | C8: 1683.728 | E8: =B8 -> 0 | F8: =C8 -> 1683.728
A9: ='Ex 1 HDD'!A9 -> 2019-07-01 | B9: ='Ex 4 Purchase Gas'!M9 -> 0 | C9: 0 | E9: =E8+B9 -> 0 | F9: =C9+F8 -> 1683.728
A10: ='Ex 1 HDD'!A10 -> 2019-08-01 | B10: ='Ex 4 Purchase Gas'!M10 -> 0 | C10: 0 | E10: 0 | F10: =C10+F9 -> 1683.728
A11: ='Ex 1 HDD'!A11 -> 2019-09-01 | B11: ='Ex 4 Purchase Gas'!M11 -> 1244.9 | C11: 0 | E11: 1244.9 | F11: 1683.728
A12: ='Ex 1 HDD'!A12 -> 2019-10-01 | B12: ='Ex 4 Purchase Gas'!M12 -> 13543.604 | C12: 9736.989 | E12: 14788.504 | F12: 11420.717
A13: ='Ex 1 HDD'!A13 -> 2019-11-01 | B13: ='Ex 4 Purchase Gas'!M13 -> 21129.317 | C13: 11571.04 | E13: 35917.821 | F13: 22991.757
A14: ='Ex 1 HDD'!A14 -> 2019-12-01 | B14: ='Ex 4 Purchase Gas'!M14 -> 31128.623 | C14: 28566.21 | E14: 67046.444 | F14: 51557.967
A15: ='Ex 1 HDD'!A15 -> 2020-01-01 | B15: ='Ex 4 Purchase Gas'!M15 -> 21101.207 | C15: 34169.18 | E15: 88147.651 | F15: 85727.147
A16: ='Ex 1 HDD'!A16 -> 2020-02-01 | B16: ='Ex 4 Purchase Gas'!M16 -> 16415.642 | C16: 25996.64 | E16: 104563.293 | F16: 111723.787
A17: ='Ex 1 HDD'!A17 -> 2020-03-01 | B17: ='Ex 4 Purchase Gas'!M17 -> 0 | C17: 18934.53 | E17: 104563.293 | F17: 130658.317
A18: ='Ex 1 HDD'!A18 -> 2020-04-01 | B18: ='Ex 4 Purchase Gas'!M18 -> 0 | C18: 9572.055 | E18: 104563.293 | F18: 140230.372
A19: ='Ex 1 HDD'!A19 -> 2020-05-01 | B19: ='Ex 4 Purchase Gas'!M19 -> 0 | C19: 5027.897 | E19: 104563.293 | F19: 145258.269
C21: =SUM(C8:C19) -> 145258.269

Sheet Exhibit 5.1
O31: ='Exhibit 1.1'!O31 -> DEU Variance Exhibit | P31: ='Exhibit 1.1'!P31 -> Docket No. 19-057-01 | Q31: ='Exhibit 1.1'!Q31 -> Dominion Energy Utah
O32: 5.1

Sheet Exhibit 5.2
O32: ='Exhibit 1.1'!O31 -> DEU Variance Exhibit | P32: ='Exhibit 1.1'!P31 -> Docket No. 19-057-01 | Q32: ='Exhibit 1.1'!Q31 -> Dominion Energy Utah
O33: 5.2

Sheet Exhibit 5.3
O31: ='Exhibit 1.1'!O31 -> DEU Variance Exhibit | P31: ='Exhibit 1.1'!P31 -> Docket No. 19-057-01 | Q31: ='Exhibit 1.1'!Q31 -> Dominion Energy Utah
O32: 5.3

Sheet Ex 6 Purch Gas Unit Cost
A1: Purchase Gas Unit Cost Variance ($1,000's)
E6: Actual | F6: Actual | G6: Actual | I6: Normal | J6: Normal | K6: Normal
A7: Month/Year | B7: Actual $/Dth | C7: IRP Forecast (Normal) $/Dth | E7: Dth | F7: Cost | G7: $/Dth | I7: Dth | J7: Cost | K7: $/Dth | M7: May Forward Strip
A8: ='Ex 1 HDD'!A8 -> 2019-06-01 | B8: =G8 -> 0 | C8: =K8 -> 2.165892488 | E8: ='Ex 4 Purchase Gas'!B8 -> 0 | F8: ='Ex 4 Purchase Gas'!M8 -> 0 | G8: =IFERROR(F8/E8,0) -> 0 | I8: ='Ex 4 Purchase Gas'!C8 -> 777.383 | J8: ='Ex 5 Purchase Gas Cost'!C8 -> 1683.728 | K8: =IFERROR(J8/I8,0) -> 2.165892488 | M8: 2.17
A9: ='Ex 1 HDD'!A9 -> 2019-07-01 | B9: 0 | C9: 0 | E9: ='Ex 4 Purchase Gas'!B9 -> 0 | F9: ='Ex 4 Purchase Gas'!M9 -> 0 | G9: =IFERROR(F9/E9,0) -> 0 | I9: ='Ex 4 Purchase Gas'!C9 -> 0 | J9: ='Ex 5 Purchase Gas Cost'!C9 -> 0 | K9: =IFERROR(J9/I9,0) -> 0 | M9: 2.49
A10: ='Ex 1 HDD'!A10 -> 2019-08-01 | B10: 0 | C10: 0 | E10: ='Ex 4 Purchase Gas'!B10 -> 0 | F10: ='Ex 4 Purchase Gas'!M10 -> 0 | G10: 0 | I10: ='Ex 4 Purchase Gas'!C10 -> 0 | J10: ='Ex 5 Purchase Gas Cost'!C10 -> 0 | K10: 0 | M10: 2.6
A11: ='Ex 1 HDD'!A11 -> 2019-09-01 | B11: 1.886212121 | C11: =K11 -> 0 | E11: ='Ex 4 Purchase Gas'!B11 -> 660 | F11: ='Ex 4 Purchase Gas'!M11 -> 1244.9 | G11: 1.886212121 | I11: ='Ex 4 Purchase Gas'!C11 -> 0 | J11: ='Ex 5 Purchase Gas Cost'!C11 -> 0 | K11: 0 | M11: 2.4
A12: ='Ex 1 HDD'!A12 -> 2019-10-01 | B12: 2.175511258 | C12: =K12 -> 2.305857125 | E12: ='Ex 4 Purchase Gas'!B12 -> 6225.481 | F12: ='Ex 4 Purchase Gas'!M12 -> 13543.604 | G12: 2.175511258 | I12: ='Ex 4 Purchase Gas'!C12 -> 4222.72 | J12: ='Ex 5 Purchase Gas Cost'!C12 -> 9736.989 | K12: 2.305857125 | M12: 2.3
A13: ='Ex 1 HDD'!A13 -> 2019-11-01 | B13: 2.736475733 | C13: 2.611345717 | E13: ='Ex 4 Purchase Gas'!B13 -> 7721.361 | F13: ='Ex 4 Purchase Gas'!M13 -> 21129.317 | G13: 2.736475733 | I13: ='Ex 4 Purchase Gas'!C13 -> 4431.064 | J13: ='Ex 5 Purchase Gas Cost'!C13 -> 11571.04 | K13: 2.611345717 | M13: 2.64
A14: ='Ex 1 HDD'!A14 -> 2019-12-01 | B14: 2.939099504 | C14: 2.793589246 | E14: ='Ex 4 Purchase Gas'!B14 -> 10591.211 | F14: ='Ex 4 Purchase Gas'!M14 -> 31128.623 | G14: 2.939099504 | I14: ='Ex 4 Purchase Gas'!C14 -> 10225.63 | J14: ='Ex 5 Purchase Gas Cost'!C14 -> 28566.21 | K14: 2.793589246 | M14: 2.84
A15: ='Ex 1 HDD'!A15 -> 2020-01-01 | B15: 2.343159902 | C15: 2.895909186 | E15: ='Ex 4 Purchase Gas'!B15 -> 9005.449 | F15: ='Ex 4 Purchase Gas'!M15 -> 21101.207 | G15: 2.343159902 | I15: ='Ex 4 Purchase Gas'!C15 -> 11799.12 | J15: ='Ex 5 Purchase Gas Cost'!C15 -> 34169.18 | K15: 2.895909186 | M15: 2.92
A16: ='Ex 1 HDD'!A16 -> 2020-02-01 | B16: 1.787165269 | C16: 2.670702003 | E16: ='Ex 4 Purchase Gas'!B16 -> 9185.296 | F16: ='Ex 4 Purchase Gas'!M16 -> 16415.642 | G16: 1.787165269 | I16: ='Ex 4 Purchase Gas'!C16 -> 9734.01 | J16: ='Ex 5 Purchase Gas Cost'!C16 -> 25996.64 | K16: 2.670702003 | M16: 2.71
A17: ='Ex 1 HDD'!A17 -> 2020-03-01 | B17: 0 | C17: 2.345733966 | E17: ='Ex 4 Purchase Gas'!B17 -> 0 | F17: ='Ex 4 Purchase Gas'!M17 -> 0 | G17: 0 | I17: ='Ex 4 Purchase Gas'!C17 -> 8071.9 | J17: ='Ex 5 Purchase Gas Cost'!C17 -> 18934.53 | K17: 2.345733966 | M17: 2.39
A18: ='Ex 1 HDD'!A18 -> 2020-04-01 | B18: 0 | C18: 1.989085238 | E18: ='Ex 4 Purchase Gas'!B18 -> 0 | F18: ='Ex 4 Purchase Gas'!M18 -> 0 | G18: 0 | I18: ='Ex 4 Purchase Gas'!C18 -> 4812.29 | J18: ='Ex 5 Purchase Gas Cost'!C18 -> 9572.055 | K18: 1.989085238 | M18: 2.03
A19: ='Ex 1 HDD'!A19 -> 2020-05-01 | B19: 0 | C19: 1.933523947 | E19: ='Ex 4 Purchase Gas'!B19 -> 0 | F19: ='Ex 4 Purchase Gas'!M19 -> 0 | G19: 0 | I19: ='Ex 4 Purchase Gas'!C19 -> 2600.38 | J19: ='Ex 5 Purchase Gas Cost'!C19 -> 5027.897 | K19: 1.933523947 | M19: 2.02
A47: 2017-10-26 | B47: Unit Cost per Decatherm | C47: The Purchase Gas Unit Cost is usually a calculated value. That value is derived from purchase dollars divided by purchase decatherms. Columns I - K show those decatherms, costs and calculated Unit costs. In the unusual case of summer 2017 the model used no spot gas during the summer and so incurred zero purchased volumes and zero associated costs making the Unit cost also zero. If purchase volumes had been incurred then the question arrises as to what value should be used as the "model" unit cost value. - Zero could have been reasonably used because the model had no volumes or costs, even though the actual usage may have had volumes. (In this case it did not.) - The May forward strip could have been used because that was the best guess for monthly prices at the time the model was created - Some actual value from each month could have also been used as a filler.

Sheet Exhibit 6.1
O31: ='Exhibit 1.1'!O31 -> DEU Variance Exhibit | P31: ='Exhibit 1.1'!P31 -> Docket No. 19-057-01 | Q31: ='Exhibit 1.1'!Q31 -> Dominion Energy Utah
O32: 6.1

Sheet Exhibit 6.2
O31: ='Exhibit 1.1'!O31 -> DEU Variance Exhibit | P31: ='Exhibit 1.1'!P31 -> Docket No. 19-057-01 | Q31: ='Exhibit 1.1'!Q31 -> Dominion Energy Utah
O32: 6.2

Sheet Ex 7 Co. Owned Gas
A1: Cost-of-Service Gas Variance (MDths)
H6: Cumulative
A7: Month/Year | B7: Actual | C7: IRP Forecast (Normal) | D7: Full Production | E7: Shut-in Est. Month | F7: Shut-in Daily | H7: Actual | I7: IRP Forecast (Normal) | K7: Days in Mo. | L7: Dthms | M7: Dthms/Day
A8: ='Ex 1 HDD'!A8 -> 2019-06-01 | B8: ='Company Nom Groups'!S119 -> 5977.337 | C8: ='Company Nom Groups'!B125 -> 5747.91 | D8: 5747.91 | E8: =D8-C8 -> 0 | F8: =(E8/30)*1000 -> 0 | H8: =B8 -> 5977.337 | I8: =C8 -> 5747.91 | K8: =DAY(EOMONTH(A8,0)) -> 30 | L8: =C8 -> 5747.91 | M8: =L8/K8 -> 191.597 | Q8: 5754.478384
A9: ='Ex 1 HDD'!A9 -> 2019-07-01 | B9: ='Company Nom Groups'!W119 -> 6115.594 | C9: ='Company Nom Groups'!C125 -> 5860.656 | D9: 5860.656 | E9: 0 | F9: =(E9/30)*1000 -> 0 | H9: =H8+B9 -> 12092.931 | I9: =I8+C9 -> 11608.566 | K9: =DAY(EOMONTH(A9,0)) -> 31 | L9: =C9 -> 5860.656 | M9: =L9/K9 -> 189.0534194 | Q9: 5867.413019
A10: ='Ex 1 HDD'!A10 -> 2019-08-01 | B10: ='Company Nom Groups'!AA119 -> 6095.23 | C10: ='Company Nom Groups'!D125 -> 5556.347 | D10: 5980.08305 | E10: 423.7360502 | F10: 14124.53501 | H10: 18188.161 | I10: 17164.913 | K10: 31 | L10: 5556.347 | M10: 179.237 | Q10: 5986.085205
A11: ='Ex 1 HDD'!A11 -> 2019-09-01 | B11: ='Company Nom Groups'!AM119 -> 5621.87 | C11: ='Company Nom Groups'!E125 -> 5611.687 | D11: 5611.687 | E11: 0 | F11: 0 | H11: 23810.031 | I11: 22776.6 | K11: 30 | L11: 5611.687 | M11: 187.0562333 | Q11: 5618.719149
A12: ='Ex 1 HDD'!A12 -> 2019-10-01 | B12: ='Company Nom Groups'!AQ119 -> 5523.228 | C12: ='Company Nom Groups'!F125 -> 5658.224 | D12: 5658.224 | E12: 0 | F12: 0 | H12: 29333.259 | I12: 28434.824 | K12: 31 | L12: 5658.224 | M12: 182.5233548 | Q12: 5665.433802
A13: ='Ex 1 HDD'!A13 -> 2019-11-01 | B13: ='Company Nom Groups'!AU119 -> 5896.044 | C13: ='Company Nom Groups'!G125 -> 5360.505 | D13: 5360.505 | E13: 0 | F13: 0 | H13: 35229.303 | I13: 33795.329 | K13: 30 | L13: 5360.505 | M13: 178.6835 | Q13: 5366.261282
A14: ='Ex 1 HDD'!A14 -> 2019-12-01 | B14: ='Company Nom Groups'!BH119 -> 5876.935 | C14: ='Company Nom Groups'!H125 -> 5562.662 | D14: 5562.662 | E14: 0 | F14: 0 | H14: 41106.238 | I14: 39357.991 | K14: 31 | L14: 5562.662 | M14: 179.4407097 | Q14: 5567.876643
A15: ='Ex 1 HDD'!A15 -> 2020-01-01 | B15: ='Company Nom Groups'!BL119 -> 5977.019 | C15: ='Company Nom Groups'!I125 -> 5433.616 | D15: 5433.616 | E15: 0 | F15: 0 | H15: 47083.257 | I15: 44791.607 | K15: 31 | L15: 5433.616 | M15: 175.2779355 | Q15: 5438.795676
A16: ='Ex 1 HDD'!A16 -> 2020-02-01 | B16: ='Company Nom Groups'!BP119 -> 5435.603 | C16: ='Company Nom Groups'!J125 -> 5096.209 | D16: 5096.209 | E16: 0 | F16: 0 | H16: 52518.86 | I16: 49887.816 | K16: 29 | L16: 5096.209 | M16: 175.7313448 | Q16: 5101.590072
A17: ='Ex 1 HDD'!A17 -> 2020-03-01 | C17: ='Company Nom Groups'!K125 -> 5320.388 | D17: 5320.388 | E17: 0 | F17: 0 | H17: 52518.86 | I17: 55208.204 | K17: 31 | L17: 5320.388 | M17: 171.6254194 | Q17: 5326.091886
A18: ='Ex 1 HDD'!A18 -> 2020-04-01 | C18: ='Company Nom Groups'!L125 -> 5046.084 | D18: 5046.084 | E18: 0 | F18: 0 | H18: 52518.86 | I18: 60254.288 | K18: 30 | L18: 5046.084 | M18: 168.2028 | Q18: 5051.585887
A19: ='Ex 1 HDD'!A19 -> 2020-05-01 | C19: ='Company Nom Groups'!M125 -> 5120.67 | D19: 5120.67 | E19: 0 | F19: =(E19/30)*1000 -> 0 | H19: 52518.86 | I19: 65374.958 | K19: 31 | L19: 5120.67 | M19: 165.1829032 | Q19: 5126.305828
B21: =SUM(B8:B19) -> 52518.86 | C21: =SUM(C8:C19) -> 65374.958 | D21: =SUM(D8:D19) -> 65798.69405

Sheet Exhibit 7.1
O32: ='Exhibit 1.1'!O31 -> DEU Variance Exhibit | P32: ='Exhibit 1.1'!P31 -> Docket No. 19-057-01 | Q32: ='Exhibit 1.1'!Q31 -> Dominion Energy Utah
O33: 7.1

Sheet Exhibit 7.2
O31: ='Exhibit 1.1'!O31 -> DEU Variance Exhibit | P31: ='Exhibit 1.1'!P31 -> Docket No. 19-057-01 | Q31: ='Exhibit 1.1'!Q31 -> Dominion Energy Utah
O32: 7.2

Sheet Exhibit 7.3
O31: ='Exhibit 1.1'!O31 -> DEU Variance Exhibit | P31: ='Exhibit 1.1'!P31 -> Docket No. 19-057-01 | Q31: ='Exhibit 1.1'!Q31 -> Dominion Energy Utah
O32: 7.3

Sheet Ex 8 New Drill
A1: Isolated New Drill Component (MDths)
J6: Cumulative | L6: Cumulative
A7: Month/Year | B7: ND Actual | C7: ND IRP Forecast (Normal) | D7: Legacy Actual | E7: Legacy IRP Forecast (Normal) | H7: Prod Actual | I7: Prod Normal | J7: ND Actual | K7: ND IRP Forecast (Normal) | L7: =D7 -> Legacy Actual | M7: Legacy IRP Forecast (Normal)
A8: ='Ex 1 HDD'!A8 -> 2019-06-01 | B8: =SUM('Company Nom Groups'!S98:S100,'Company Nom Groups'!S115) -> 131.356 | C8: ='Company Nom Groups'!B135 -> 214.347 | D8: =H8-B8 -> 5845.981 | E8: =I8-C8 -> 5533.563 | H8: ='Ex 7 Co. Owned Gas'!B8 -> 5977.337 | I8: ='Ex 7 Co. Owned Gas'!C8 -> 5747.91 | J8: =B8 -> 131.356 | K8: =C8 -> 214.347 | L8: =D8 -> 5845.981 | M8: =E8 -> 5533.563
A9: ='Ex 1 HDD'!A9 -> 2019-07-01 | B9: =SUM('Company Nom Groups'!W98:W100,'Company Nom Groups'!W115) -> 118.494 | C9: ='Company Nom Groups'!C135 -> 255.97 | D9: 5997.1 | E9: 5604.686 | H9: ='Ex 7 Co. Owned Gas'!B9 -> 6115.594 | I9: ='Ex 7 Co. Owned Gas'!C9 -> 5860.656 | J9: =B8+B9 -> 249.85 | K9: =K8+C9 -> 470.317 | L9: 11843.081 | M9: 11138.249
A10: ='Ex 1 HDD'!A10 -> 2019-08-01 | B10: =SUM('Company Nom Groups'!AA98:AA100,'Company Nom Groups'!AA115) -> 107.493 | C10: ='Company Nom Groups'!D135 -> 223.128 | D10: 5987.737 | E10: 5333.219 | H10: ='Ex 7 Co. Owned Gas'!B10 -> 6095.23 | I10: ='Ex 7 Co. Owned Gas'!C10 -> 5556.347 | J10: =J9+B10 -> 357.343 | K10: 693.445 | L10: 17830.818 | M10: 16471.468
A11: ='Ex 1 HDD'!A11 -> 2019-09-01 | B11: =SUM('Company Nom Groups'!AM97:AM100,'Company Nom Groups'!AM114:AM115) -> 94.46 | C11: ='Company Nom Groups'!E135 -> 386.985 | D11: 5527.41 | E11: 5224.702 | H11: ='Ex 7 Co. Owned Gas'!B11 -> 5621.87 | I11: ='Ex 7 Co. Owned Gas'!C11 -> 5611.687 | J11: 451.803 | K11: =K10+C11 -> 1080.43 | L11: =L10+D11 -> 23358.228 | M11: =M10+E11 -> 21696.17
A12: ='Ex 1 HDD'!A12 -> 2019-10-01 | B12: =SUM('Company Nom Groups'!AQ97:AQ100,'Company Nom Groups'!AQ114:AQ115) -> 170.712 | C12: ='Company Nom Groups'!F135 -> 349.534 | D12: 5352.516 | E12: 5308.69 | H12: ='Ex 7 Co. Owned Gas'!B12 -> 5523.228 | I12: ='Ex 7 Co. Owned Gas'!C12 -> 5658.224 | J12: 622.515 | K12: 1429.964 | L12: =L11+D12 -> 28710.744 | M12: 27004.86
A13: ='Ex 1 HDD'!A13 -> 2019-11-01 | B13: =SUM('Company Nom Groups'!AU97:AU100,'Company Nom Groups'!AU114:AU115) -> 409.896 | C13: ='Company Nom Groups'!G135 -> 303.342 | D13: 5486.148 | E13: 5057.163 | H13: ='Ex 7 Co. Owned Gas'!B13 -> 5896.044 | I13: ='Ex 7 Co. Owned Gas'!C13 -> 5360.505 | J13: 1032.411 | K13: 1733.306 | L13: 34196.892 | M13: 32062.023
A14: ='Ex 1 HDD'!A14 -> 2019-12-01 | B14: ='Company Nom Groups'!BH115+'Company Nom Groups'!BH114+'Company Nom Groups'!BH100+'Company Nom Groups'!BH99+'Company Nom Groups'!BH98+'Company Nom Groups'!BH97 -> 382.755 | C14: ='Company Nom Groups'!H135 -> 414.43 | D14: 5494.18 | E14: 5148.232 | H14: ='Ex 7 Co. Owned Gas'!B14 -> 5876.935 | I14: ='Ex 7 Co. Owned Gas'!C14 -> 5562.662 | J14: 1415.166 | K14: 2147.736 | L14: 39691.072 | M14: 37210.255
A15: ='Ex 1 HDD'!A15 -> 2020-01-01 | B15: ='Company Nom Groups'!BP115+'Company Nom Groups'!BP114+'Company Nom Groups'!BP100+'Company Nom Groups'!BP99+'Company Nom Groups'!BP98+'Company Nom Groups'!BP97 -> 466.238 | C15: ='Company Nom Groups'!I135 -> 365.437 | D15: 5510.781 | E15: 5068.179 | H15: ='Ex 7 Co. Owned Gas'!B15 -> 5977.019 | I15: ='Ex 7 Co. Owned Gas'!C15 -> 5433.616 | J15: 1881.404 | K15: 2513.173 | L15: 45201.853 | M15: 42278.434
A16: ='Ex 1 HDD'!A16 -> 2020-02-01 | B16: ='Company Nom Groups'!BL115+'Company Nom Groups'!BL114+'Company Nom Groups'!BL100+'Company Nom Groups'!BL99+'Company Nom Groups'!BL98+'Company Nom Groups'!BL97 -> 518.421 | C16: ='Company Nom Groups'!J135 -> 430.206 | D16: 4917.182 | E16: 4666.003 | H16: ='Ex 7 Co. Owned Gas'!B16 -> 5435.603 | I16: ='Ex 7 Co. Owned Gas'!C16 -> 5096.209 | J16: 2399.825 | K16: 2943.379 | L16: 50119.035 | M16: 46944.437
A17: ='Ex 1 HDD'!A17 -> 2020-03-01 | B17: ='Company Nom Groups'!BP103 -> 0 | C17: ='Company Nom Groups'!K135 -> 406.838 | D17: 0 | E17: 4913.55 | H17: ='Ex 7 Co. Owned Gas'!B17 -> 0 | I17: ='Ex 7 Co. Owned Gas'!C17 -> 5320.388 | J17: 2399.825 | K17: 3350.217 | L17: 50119.035 | M17: 51857.987
A18: ='Ex 1 HDD'!A18 -> 2020-04-01 | B18: ='Company Nom Groups'!BP104 -> 0 | C18: ='Company Nom Groups'!L135 -> 357.975 | D18: 0 | E18: 4688.109 | H18: ='Ex 7 Co. Owned Gas'!B18 -> 0 | I18: ='Ex 7 Co. Owned Gas'!C18 -> 5046.084 | J18: 2399.825 | K18: 3708.192 | L18: 50119.035 | M18: 56546.096
A19: ='Ex 1 HDD'!A19 -> 2020-05-01 | B19: ='Company Nom Groups'!BP105 -> 21.462 | C19: ='Company Nom Groups'!M135 -> 341.748 | D19: -21.462 | E19: 4778.922 | H19: ='Ex 7 Co. Owned Gas'!B19 -> 0 | I19: ='Ex 7 Co. Owned Gas'!C19 -> 5120.67 | J19: 2421.287 | K19: 4049.94 | L19: 50097.573 | M19: 61325.018

Sheet Exhibit 8.1
O31: ='Exhibit 1.1'!O31 -> DEU Variance Exhibit | P31: ='Exhibit 1.1'!P31 -> Docket No. 19-057-01 | Q31: ='Exhibit 1.1'!Q31 -> Dominion Energy Utah
O32: 8.1

Sheet Exhibit 8.2
O31: ='Exhibit 1.1'!O31 -> DEU Variance Exhibit | P31: ='Exhibit 1.1'!P31 -> Docket No. 19-057-01 | Q31: ='Exhibit 1.1'!Q31 -> Dominion Energy Utah
O32: 8.2

Sheet Exhibit 8.3
O31: ='Exhibit 1.1'!O31 -> DEU Variance Exhibit | P31: ='Exhibit 1.1'!P31 -> Docket No. 19-057-01 | Q31: ='Exhibit 1.1'!Q31 -> Dominion Energy Utah
O32: 8.3

Sheet Company Nom Groups (hidden)
A1: Company Nom Groups
A2: Withdrawn Gross Volume (MDths) | D2: 1106 | R2: June 2019 Cost-of-Service | V2: July 2019 Cost-of-Service | Z2: August 2019 Cost-of-Service | AD2: First Quarter Cost-of-Service | AL2: September 2019 Cost-of-Service | AP2: October 2019 Cost-of-Service | AT2: November 2019 Cost-of-Service | AX2: Second Quarter Cost-of-Service | BG2: December 2019 Cost-of-Service | BK2: January 2020 Cost-of-Service | BO2: February 2020 Cost-of-Service | BS2: Third Quarter Cost-of-Service | CD2: March 2020 Cost-of-Service | CH2: April 2020 Cost-of-Service | CL2: May 2020 Cost-of-Service | CP2: Fourth Quarter Cost-of-Service
A3: Source: IRP Base Case, Monthly Custom Report Writer | R3: Variance Mdth | V3: Variance Mdth | Z3: Variance Mdth | AD3: Variance Mdth | AL3: Variance Mdth | AP3: Variance Mdth | AT3: Variance Mdth | AX3: Variance Mdth | BG3: Variance Mdth | BK3: Variance Mdth | BO3: Variance Mdth | BS3: Variance Mdth | CD3: Variance Mdth | CH3: Variance Mdth | CL3: Variance Mdth | CP3: Variance Mdth
B4: 2 | C4: 3 | D4: 4 | E4: 5 | F4: 6 | G4: 7 | H4: 8 | I4: 9 | J4: 10 | K4: 11 | L4: 12 | M4: 13
A5: Nomination Group Production | B5: 2019-06-01 | C5: 2019-07-01 | D5: 2019-08-01 | E5: 2019-09-01 | F5: 2019-10-01 | G5: 2019-11-01 | H5: 2019-12-01 | I5: 2020-01-01 | J5: 2020-02-01 | K5: 2020-03-01 | L5: 2020-04-01 | M5: 2020-05-01 | N5: Total | R5: Nomination Group | S5: Actual | T5: Normal | V5: Nomination Group | W5: Actual | X5: Normal | Z5: Nomination Group | AA5: Actual | AB5: Normal | AD5: Nomination Group | AE5: Actual | AF5: Normal | AL5: Nomination Group | AM5: Actual | AN5: Normal | AP5: Nomination Group | AQ5: Actual | AR5: Normal | AT5: =AP5 -> Nomination Group | AU5: =AQ5 -> Actual | AV5: Normal | AX5: =AT5 -> Nomination Group | AY5: =AU5 -> Actual | AZ5: =AV5 -> Normal | BG5: Nomination Group | BH5: Actual | BI5: Normal | BK5: Nomination Group | BL5: Actual | BM5: Normal | BO5: Nomination Group | BP5: Actual | BQ5: Normal | BS5: =BO5 -> Nomination Group | BT5: =BP5 -> Actual | BU5: =BQ5 -> Normal | CD5: Nomination Group | CE5: Actual | CF5: Normal | CH5: Nomination Group | CI5: Actual | CJ5: Normal | CL5: Nomination Group | CM5: Actual | CN5: Normal | CP5: Nomination Group | CQ5: Actual | CR5: Normal
A6: BIRCH CREEK | B6: 126.669 | C6: 130.07 | D6: 129.251 | E6: 124.296 | F6: 127.63 | G6: 122.739 | H6: 126.034 | I6: 125.243 | J6: 116.426 | K6: 123.675 | L6: 118.935 | M6: 122.131 | N6: =SUM(B6:M6) -> 1493.099 | R6: =A6 -> BIRCH CREEK | S6: =IFERROR(VLOOKUP(R6,$R$122:$S$216,2,FALSE),0) -> 142.053 | T6: =IFERROR(VLOOKUP(R6,$A$6:$M$125,2,FALSE),"") -> 126.669 | V6: =R6 -> BIRCH CREEK | W6: =IFERROR(VLOOKUP(V6,$V$122:$W$216,2,FALSE),0) -> 143.52 | X6: =IFERROR(VLOOKUP(V6,$A$6:$M$125,3,FALSE),"") -> 130.07 | Z6: =R6 -> BIRCH CREEK | AA6: =IFERROR(VLOOKUP(A6,$Z$122:$AA$216,2,FALSE),0) -> 149.054 | AB6: =IFERROR(VLOOKUP(Z6,$A$6:$M$125,4,FALSE),"") -> 129.251 | AD6: =R6 -> BIRCH CREEK | AE6: =SUM(S6,W6,AA6) -> 434.627 | AF6: =SUM(T6,X6,AB6) -> 385.99 | AL6: =AD6 -> BIRCH CREEK | AM6: =IFERROR(VLOOKUP(AL6,$AL$122:$AM$212,2,FALSE),0) -> 129.584 | AN6: =IFERROR(VLOOKUP(AL6,$A$6:$M$125,5,FALSE),"") -> 124.296 | AP6: =AL6 -> BIRCH CREEK | AQ6: =IFERROR(VLOOKUP(AP6,$AP$122:$AQ$221,2,FALSE),0) -> 123.797 | AR6: =IFERROR(VLOOKUP($AP6,$A$6:$M$125,6,FALSE),"") -> 127.63 | AT6: =AP6 -> BIRCH CREEK | AU6: =IFERROR(VLOOKUP(AT6,$AT$122:$AU$214,2,FALSE),0) -> 116.632 | AV6: =IFERROR(VLOOKUP($AT6,$A$6:$M$125,7,FALSE),"") -> 122.739 | AX6: =AT6 -> BIRCH CREEK | AY6: =SUM(AM6,AQ6,AU6) -> 370.013 | AZ6: =SUM(AN6,AR6,AV6) -> 374.665 | BG6: =R6 -> BIRCH CREEK | BH6: =IFERROR(VLOOKUP($BG6,$BG$120:$BH$215,2,FALSE),0) -> 101.006 | BI6: =IFERROR(VLOOKUP($BG6,$A$6:$M$125,8,FALSE),"") -> 126.034 | BK6: =R6 -> BIRCH CREEK | BL6: =IFERROR(VLOOKUP($BK6,$BK$120:$BL$215,2,FALSE),0) -> 113.621 | BM6: =IFERROR(VLOOKUP($BK6,$A$6:$M$125,9,FALSE),"") -> 125.243 | BO6: =A6 -> BIRCH CREEK | BP6: =IFERROR(VLOOKUP($BO6,$BO$120:$BP$215,2,FALSE),0) -> 112.086 | BQ6: =IFERROR(VLOOKUP($BO6,$A$6:$M$125,10,FALSE),0) -> 116.426 | BS6: =A6 -> BIRCH CREEK | BT6: =SUM(BH6,BL6,BP6) -> 326.713 | BU6: =SUM(BI6,BM6,BQ6) -> 367.703 | CD6: =A6 -> BIRCH CREEK | CE6: 2.7 | CF6: =IFERROR(VLOOKUP($A6,$A$6:$M$125,11,FALSE),"") -> 123.675 | CH6: =A6 -> BIRCH CREEK | CI6: 2.7 | CJ6: =IFERROR(VLOOKUP($A6,$A$6:$M$125,12,FALSE),"") -> 118.935 | CL6: =A6 -> BIRCH CREEK | CM6: 2.7 | CN6: =IFERROR(VLOOKUP($A6,$A$6:$M$125,13,FALSE),"") -> 122.131 | CP6: BIRCH CREEK | CQ6: 0 | CR6: 386.6897888
A7: PDW1A1B D21 | B7: 0 | C7: 0 | D7: 0 | E7: 0 | F7: 0 | G7: 0 | H7: 0.682 | I7: 0.679 | J7: 0.629 | K7: 0 | L7: 0 | M7: 0 | N7: =SUM(B7:M7) -> 1.99 | R7: =A7 -> PDW1A1B D21 | S7: 0.449 | T7: 0 | V7: =R7 -> PDW1A1B D21 | W7: 0.307 | X7: 0 | Z7: =R7 -> PDW1A1B D21 | AA7: 0.185 | AB7: 0 | AD7: =R7 -> PDW1A1B D21 | AE7: =SUM(S7,W7,AA7) -> 0.941 | AF7: =SUM(T7,X7,AB7) -> 0 | AL7: =AD7 -> PDW1A1B D21 | AM7: 0.142 | AN7: 0 | AP7: =AL7 -> PDW1A1B D21 | AQ7: 0.13 | AR7: 0 | AT7: =AP7 -> PDW1A1B D21 | AU7: 0.075 | AV7: 0 | AX7: =AT7 -> PDW1A1B D21 | AY7: =SUM(AM7,AQ7,AU7) -> 0.347 | AZ7: =SUM(AN7,AR7,AV7) -> 0 | BG7: =R7 -> PDW1A1B D21 | BH7: 0.051 | BI7: 0.682 | BK7: =R7 -> PDW1A1B D21 | BL7: 0.016 | BM7: 0.679 | BO7: PDW1A1B D21 | BP7: 0.01 | BQ7: 0.629 | BS7: PDW1A1B D21 | BT7: 0.077 | BU7: 1.99 | CD7: PDW1A1B D21 | CE7: 3.7 | CF7: 0 | CH7: PDW1A1B D21 | CI7: 3.7 | CJ7: 0 | CL7: PDW1A1B D21 | CM7: 3.7 | CN7: 0 | CP7: PDW1A1B D21 | CQ7: 0 | CR7: 2.157500029
A8: ACEJDMT D24 | B8: 9.924 | C8: 10.143 | D8: 10.035 | E8: 9.609 | F8: 9.824 | G8: 9.408 | H8: 9.619 | I8: 9.517 | J8: 8.813 | K8: 9.322 | L8: 8.931 | M8: 9.133 | N8: =SUM(B8:M8) -> 114.278 | R8: ACEJDMT D24 | S8: 9.067 | T8: 9.924 | V8: ACEJDMT D24 | W8: 11.848 | X8: 10.143 | Z8: ACEJDMT D24 | AA8: 7.849 | AB8: 10.035 | AD8: ACEJDMT D24 | AE8: =SUM(S8,W8,AA8) -> 28.764 | AF8: =SUM(T8,X8,AB8) -> 30.102 | AL8: ACEJDMT D24 | AM8: 8.086 | AN8: 9.609 | AP8: ACEJDMT D24 | AQ8: 7.638 | AR8: 9.824 | AT8: ACEJDMT D24 | AU8: 7.397 | AV8: 9.408 | AX8: ACEJDMT D24 | AY8: =SUM(AM8,AQ8,AU8) -> 23.121 | AZ8: =SUM(AN8,AR8,AV8) -> 28.841 | BG8: ACEJDMT D24 | BH8: 7.254 | BI8: 9.619 | BK8: =R8 -> ACEJDMT D24 | BL8: 7.266 | BM8: 9.517 | BO8: ACEJDMT D24 | BP8: 7.838 | BQ8: 8.813 | BS8: ACEJDMT D24 | BT8: 22.358 | BU8: 27.949 | CD8: ACEJDMT D24 | CE8: 4.7 | CF8: 9.322 | CH8: ACEJDMT D24 | CI8: 4.7 | CJ8: 8.931 | CL8: ACEJDMT D24 | CM8: 4.7 | CN8: 9.133 | CP8: ACEJDMT D24 | CQ8: 0 | CR8: 30.1548996
A9: BRFM D24 | B9: 1.917 | C9: 1.969 | D9: 0 | E9: 1.884 | F9: 1.934 | G9: 1.86 | H9: 1.91 | I9: 1.9 | J9: 1.766 | K9: 1.876 | L9: 1.806 | M9: 1.854 | N9: 20.676 | R9: BRFM D24 | S9: 2.458 | T9: 1.917 | V9: BRFM D24 | W9: 2.527 | X9: 1.969 | Z9: BRFM D24 | AA9: 2.427 | AB9: 0 | AD9: BRFM D24 | AE9: 7.412 | AF9: 3.886 | AL9: BRFM D24 | AM9: 2.445 | AN9: 1.884 | AP9: BRFM D24 | AQ9: 2.179 | AR9: 1.934 | AT9: BRFM D24 | AU9: 1.31 | AV9: 1.86 | AX9: BRFM D24 | AY9: 5.934 | AZ9: 5.678 | BG9: BRFM D24 | BH9: 2.488 | BI9: 1.91 | BK9: =R9 -> BRFM D24 | BL9: 2.274 | BM9: 1.9 | BO9: BRFM D24 | BP9: 2.175 | BQ9: 1.766 | BS9: BRFM D24 | BT9: 6.937 | BU9: 5.576 | CD9: BRFM D24 | CE9: 5.7 | CF9: 1.876 | CH9: BRFM D24 | CI9: 5.7 | CJ9: 1.806 | CL9: BRFM D24 | CM9: 5.7 | CN9: 1.854 | CP9: BRFM D24 | CQ9: 0 | CR9: 5.968199849
A10: BRFQ D24 | B10: 151.464 | C10: 155.409 | D10: 150.536 | E10: 144.246 | F10: 148.006 | G10: 142.227 | H10: 145.939 | I10: 144.919 | J10: 134.624 | K10: 142.904 | L10: 137.331 | M10: 140.52 | N10: 1738.125 | R10: BRFQ D24 | S10: 147.899 | T10: 151.464 | V10: BRFQ D24 | W10: 148.099 | X10: 155.409 | Z10: BRFQ D24 | AA10: 141.059 | AB10: 150.536 | AD10: BRFQ D24 | AE10: 437.057 | AF10: 457.409 | AL10: BRFQ D24 | AM10: 139.346 | AN10: 144.246 | AP10: BRFQ D24 | AQ10: 143.833 | AR10: 148.006 | AT10: BRFQ D24 | AU10: 139.095 | AV10: 142.227 | AX10: BRFQ D24 | AY10: 422.274 | AZ10: 434.479 | BG10: BRFQ D24 | BH10: 127.855 | BI10: 145.939 | BK10: =R10 -> BRFQ D24 | BL10: 140.584 | BM10: 144.919 | BO10: BRFQ D24 | BP10: 131.856 | BQ10: 134.624 | BS10: BRFQ D24 | BT10: 400.295 | BU10: 425.482 | CD10: BRFQ D24 | CE10: 6.7 | CF10: 142.904 | CH10: BRFQ D24 | CI10: 6.7 | CJ10: 137.331 | CL10: BRFQ D24 | CM10: 6.7 | CN10: 140.52 | CP10: BRFQ D24 | CQ10: 0 | CR10: 460.7208099
A11: BRFQMT D24 | B11: 5.487 | C11: 5.636 | D11: 5.605 | E11: 5.391 | F11: 5.54 | G11: 5.331 | H11: 5.475 | I11: 5.444 | J11: 5.063 | K11: 5.382 | L11: 5.178 | M11: 5.32 | N11: 64.852 | R11: BRFQMT D24 | S11: 4.382 | T11: 5.487 | V11: BRFQMT D24 | W11: 4.737 | X11: 5.636 | Z11: BRFQMT D24 | AA11: 4.719 | AB11: 5.605 | AD11: BRFQMT D24 | AE11: 13.838 | AF11: 16.728 | AL11: BRFQMT D24 | AM11: 3.512 | AN11: 5.391 | AP11: BRFQMT D24 | AQ11: 8.086 | AR11: 5.54 | AT11: BRFQMT D24 | AU11: 7.78 | AV11: 5.331 | AX11: BRFQMT D24 | AY11: 19.378 | AZ11: 16.262 | BG11: BRFQMT D24 | BH11: 5.008 | BI11: 5.475 | BK11: =BG11 -> BRFQMT D24 | BL11: 7.121 | BM11: 5.444 | BO11: BRFQMT D24 | BP11: 4.996 | BQ11: 5.063 | BS11: BRFQMT D24 | BT11: 17.125 | BU11: 15.982 | CD11: BRFQMT D24 | CE11: 7.7 | CF11: 5.382 | CH11: BRFQMT D24 | CI11: 7.7 | CJ11: 5.178 | CL11: BRFQMT D24 | CM11: 7.7 | CN11: 5.32 | CP11: BRFQMT D24 | CQ11: 0 | CR11: 17.04929972
A12: BRFW D24 | B12: 57.342 | C12: 58.807 | D12: 58.367 | E12: 56.061 | F12: 57.496 | G12: 55.224 | H12: 56.637 | I12: 56.215 | J12: 52.197 | K12: 55.382 | L12: 53.196 | M12: 54.56 | N12: 671.484 | R12: BRFW D24 | S12: 66.501 | T12: 57.342 | V12: BRFW D24 | W12: 65.497 | X12: 58.807 | Z12: BRFW D24 | AA12: 64.419 | AB12: 58.367 | AD12: BRFW D24 | AE12: 196.417 | AF12: 174.516 | AL12: BRFW D24 | AM12: 63.127 | AN12: 56.061 | AP12: BRFW D24 | AQ12: 64.792 | AR12: 57.496 | AT12: BRFW D24 | AU12: 61.03 | AV12: 55.224 | AX12: BRFW D24 | AY12: 188.949 | AZ12: 168.781 | BG12: BRFW D24 | BH12: 59.865 | BI12: 56.637 | BK12: =R12 -> BRFW D24 | BL12: 57.074 | BM12: 56.215 | BO12: BRFW D24 | BP12: 60.694 | BQ12: 52.197 | BS12: BRFW D24 | BT12: 177.633 | BU12: 165.049 | CD12: BRFW D24 | CE12: 8.7 | CF12: 55.382 | CH12: BRFW D24 | CI12: 8.7 | CJ12: 53.196 | CL12: BRFW D24 | CM12: 8.7 | CN12: 54.56 | CP12: BRFW D24 | CQ12: 0 | CR12: 173.982399
A13: CBFR D24 | B13: 15.393 | C13: 15.742 | D13: 0 | E13: 14.928 | F13: 15.274 | G13: 14.637 | H13: 14.982 | I13: 14.84 | J13: 13.752 | K13: 14.567 | L13: 13.968 | M13: 14.307 | N13: 162.39 | R13: CBFR D24 | S13: 18.148 | T13: 15.393 | V13: CBFR D24 | W13: 17.42 | X13: 15.742 | Z13: CBFR D24 | AA13: 18.388 | AB13: 0 | AD13: CBFR D24 | AE13: 53.956 | AF13: 31.135 | AL13: CBFR D24 | AM13: 17.154 | AN13: 14.928 | AP13: CBFR D24 | AQ13: 17.466 | AR13: 15.274 | AT13: CBFR D24 | AU13: 17.087 | AV13: 14.637 | AX13: CBFR D24 | AY13: 51.707 | AZ13: 44.839 | BG13: CBFR D24 | BH13: 16.699 | BI13: 14.982 | BK13: CBFR D24 | BL13: 14.204 | BM13: 14.84 | BO13: CBFR D24 | BP13: 16.141 | BQ13: 13.752 | BS13: CBFR D24 | BT13: 47.044 | BU13: 43.574 | CD13: CBFR D24 | CE13: 9.7 | CF13: 14.567 | CH13: CBFR D24 | CI13: 9.7 | CJ13: 13.968 | CL13: CBFR D24 | CM13: 9.7 | CN13: 14.307 | CP13: CBFR D24 | CQ13: 0 | CR13: 46.92340088
A14: CCRUNIT D24 | B14: 528.126 | C14: 540.373 | D14: 535.131 | E14: 512.901 | F14: 524.973 | G14: 503.271 | H14: 515.217 | I14: 510.48 | J14: 473.202 | K14: 501.276 | L14: 480.777 | M14: 492.41 | N14: 6118.137 | R14: CCRUNIT D24 | S14: 535.054 | T14: 528.126 | V14: CCRUNIT D24 | W14: 556.042 | X14: 540.373 | Z14: CCRUNIT D24 | AA14: 546.893 | AB14: 535.131 | AD14: CCRUNIT D24 | AE14: 1637.989 | AF14: 1603.63 | AL14: CCRUNIT D24 | AM14: 488.133 | AN14: 512.901 | AP14: CCRUNIT D24 | AQ14: 428.833 | AR14: 524.973 | AT14: CCRUNIT D24 | AU14: 501.304 | AV14: 503.271 | AX14: CCRUNIT D24 | AY14: 1418.27 | AZ14: 1541.145 | BG14: CCRUNIT D24 | BH14: 478.947 | BI14: 515.217 | BK14: CCRUNIT D24 | BL14: 510.707 | BM14: 510.48 | BO14: CCRUNIT D24 | BP14: 472.34 | BQ14: 473.202 | BS14: CCRUNIT D24 | BT14: 1461.994 | BU14: 1498.899 | CD14: CCRUNIT D24 | CE14: 10.7 | CF14: 501.276 | CH14: CCRUNIT D24 | CI14: 10.7 | CJ14: 480.777 | CL14: CCRUNIT D24 | CM14: 10.7 | CN14: 492.41 | CP14: CCRUNIT D24 | CQ14: 0 | CR14: 1570.394928
A15: CCRUNITMTD24 | B15: 44.769 | C15: 45.874 | D15: 45.496 | E15: 43.665 | F15: 44.749 | G15: 42.954 | H15: 44.026 | I15: 43.67 | J15: 40.525 | K15: 42.975 | L15: 41.259 | M15: 42.296 | N15: 522.258 | R15: CCRUNITMTD24 | S15: 45.316 | T15: 44.769 | V15: CCRUNITMTD24 | W15: 47.974 | X15: 45.874 | Z15: CCRUNITMTD24 | AA15: 49.927 | AB15: 45.496 | AD15: CCRUNITMTD24 | AE15: 143.217 | AF15: 136.139 | AL15: CCRUNITMTD24 | AM15: 45.047 | AN15: 43.665 | AP15: CCRUNITMTD24 | AQ15: 42.348 | AR15: 44.749 | AT15: CCRUNITMTD24 | AU15: 46.022 | AV15: 42.954 | AX15: CCRUNITMTD24 | AY15: 133.417 | AZ15: 131.368 | BG15: CCRUNITMTD24 | BH15: 48.488 | BI15: 44.026 | BK15: CCRUNITMTD24 | BL15: 44.076 | BM15: 43.67 | BO15: CCRUNITMTD24 | BP15: 37.73 | BQ15: 40.525 | BS15: CCRUNITMTD24 | BT15: 130.294 | BU15: 128.221 | CD15: CCRUNITMTD24 | CE15: 11.7 | CF15: 42.975 | CH15: CCRUNITMTD24 | CI15: 11.7 | CJ15: 41.259 | CL15: CCRUNITMTD24 | CM15: 11.7 | CN15: 42.296 | CP15: CCRUNITMTD24 | CQ15: 0 | CR15: 126.5646019
A16: CHBT MT | B16: 16.608 | C16: 17.05 | D16: 16.935 | E16: 16.281 | F16: 16.712 | G16: 16.068 | H16: 16.492 | I16: 16.384 | J16: 15.225 | K16: 16.17 | L16: 15.543 | M16: 15.956 | N16: 195.424 | R16: CHBT MT | S16: 15.433 | T16: 16.608 | V16: CHBT MT | W16: 15.805 | X16: 17.05 | Z16: CHBT MT | AA16: 17.814 | AB16: 16.935 | AD16: CHBT MT | AE16: 49.052 | AF16: 50.593 | AL16: CHBT MT | AM16: 16.419 | AN16: 16.281 | AP16: CHBT MT | AQ16: 16.195 | AR16: 16.712 | AT16: CHBT MT | AU16: 15.885 | AV16: 16.068 | AX16: CHBT MT | AY16: 48.499 | AZ16: 49.061 | BG16: CHBT MT | BH16: 15.411 | BI16: 16.492 | BK16: CHBT MT | BL16: 15.007 | BM16: 16.384 | BO16: CHBT MT | BP16: 14.263 | BQ16: 15.225 | BS16: CHBT MT | BT16: 44.681 | BU16: 48.101 | CD16: CHBT MT | CE16: 12.7 | CF16: 16.17 | CH16: CHBT MT | CI16: 12.7 | CJ16: 15.543 | CL16: CHBT MT | CM16: 12.7 | CN16: 15.956 | CP16: CHBTBUFF D24 | CQ16: 0 | CR16: 2.25059998
A17: CHBTBUFF D24 | B17: 0.789 | C17: 0.809 | D17: 0.806 | E17: 0.774 | F17: 0.797 | G17: 0.765 | H17: 0.787 | I17: 0.784 | J17: 0.728 | K17: 0.775 | L17: 0.744 | M17: 0.766 | N17: 9.324 | R17: CHBTBUFF D24 | S17: 0.718 | T17: 0.789 | V17: CHBTBUFF D24 | W17: 0.643 | X17: 0.809 | Z17: CHBTBUFF D24 | AA17: 0.701 | AB17: 0.806 | AD17: CHBTBUFF D24 | AE17: 2.062 | AF17: 2.404 | AL17: CHBTBUFF D24 | AM17: 0.857 | AN17: 0.774 | AP17: CHBTBUFF D24 | AQ17: 0.808 | AR17: 0.797 | AT17: CHBTBUFF D24 | AU17: 0.784 | AV17: 0.765 | AX17: CHBTBUFF D24 | AY17: 2.449 | AZ17: 2.336 | BG17: CHBTBUFF D24 | BH17: 0.897 | BI17: 0.787 | BK17: CHBTBUFF D24 | BL17: 0.985 | BM17: 0.784 | BO17: CHBTBUFF D24 | BP17: 0.817 | BQ17: 0.728 | BS17: CHBTBUFF D24 | BT17: 2.699 | BU17: 2.299 | CD17: CHBTBUFF D24 | CE17: 13.7 | CF17: 0.775 | CH17: CHBTBUFF D24 | CI17: 13.7 | CJ17: 0.744 | CL17: CHBTBUFF D24 | CM17: 13.7 | CN17: 0.766 | CP17: CHBTCAT2 D24 | CQ17: 0 | CR17: 316.7329025
A18: CHBTCAT2 D24 | B18: 98.094 | C18: 100.598 | D18: 99.839 | E18: 95.889 | F18: 98.335 | G18: 94.446 | H18: 96.856 | I18: 96.128 | J18: 89.248 | K18: 94.683 | L18: 90.936 | M18: 93.26 | N18: 1148.312 | R18: CHBTCAT2 D24 | S18: 80.105 | T18: 98.094 | V18: CHBTCAT2 D24 | W18: 84.345 | X18: 100.598 | Z18: CHBTCAT2 D24 | AA18: 98.414 | AB18: 99.839 | AD18: CHBTCAT2 D24 | AE18: 262.864 | AF18: 298.531 | AL18: CHBTCAT2 D24 | AM18: 95.151 | AN18: 95.889 | AP18: CHBTCAT2 D24 | AQ18: 99.129 | AR18: 98.335 | AT18: CHBTCAT2 D24 | AU18: 99.873 | AV18: 94.446 | AX18: CHBTCAT2 D24 | AY18: 294.153 | AZ18: 288.67 | BG18: CHBTCAT2 D24 | BH18: 100.906 | BI18: 96.856 | BK18: CHBTCAT2 D24 | BL18: 100.118 | BM18: 96.128 | BO18: CHBTCAT2 D24 | BP18: 93.043 | BQ18: 89.248 | BS18: CHBTCAT2 D24 | BT18: 294.067 | BU18: 282.232 | CD18: CHBTCAT2 D24 | CE18: 14.7 | CF18: 94.683 | CH18: CHBTCAT2 D24 | CI18: 14.7 | CJ18: 90.936 | CL18: CHBTCAT2 D24 | CM18: 14.7 | CN18: 93.26 | CP18: CHBTCAT3 D24 | CQ18: 0 | CR18: 491.7114105
A19: CHBTCAT3 D24 | B19: 166.461 | C19: 167.481 | D19: 166.176 | E19: 155.748 | F19: 159.697 | G19: 153.351 | H19: 157.241 | I19: 156.032 | J19: 144.841 | K19: 153.639 | L19: 147.282 | M19: 151.026 | N19: 1878.975 | R19: CHBTCAT3 D24 | S19: 156.892 | T19: 166.461 | V19: CHBTCAT3 D24 | W19: 159.285 | X19: 167.481 | Z19: CHBTCAT3 D24 | AA19: 187.11 | AB19: 166.176 | AD19: CHBTCAT3 D24 | AE19: 503.287 | AF19: 500.118 | AL19: CHBTCAT3 D24 | AM19: 173.132 | AN19: 155.748 | AP19: CHBTCAT3 D24 | AQ19: 171.136 | AR19: 159.697 | AT19: CHBTCAT3 D24 | AU19: 177.51 | AV19: 153.351 | AX19: CHBTCAT3 D24 | AY19: 521.778 | AZ19: 468.796 | BG19: CHBTCAT3 D24 | BH19: 192.227 | BI19: 157.241 | BK19: CHBTCAT3 D24 | BL19: 185.672 | BM19: 156.032 | BO19: CHBTCAT3 D24 | BP19: 159.255 | BQ19: 144.841 | BS19: CHBTCAT3 D24 | BT19: 537.154 | BU19: 458.114 | CD19: CHBTCAT3 D24 | CE19: 15.7 | CF19: 153.639 | CH19: CHBTCAT3 D24 | CI19: 15.7 | CJ19: 147.282 | CL19: CHBTCAT3 D24 | CM19: 15.7 | CN19: 151.026 | CP19: DRYPINY6 D24 | CQ19: 0 | CR19: 3.904399991
A20: DRY PINY MT | B20: 5.592 | C20: 5.726 | D20: 0 | E20: 5.445 | F20: 5.577 | G20: 5.352 | H20: 5.484 | I20: 5.434 | J20: 5.04 | K20: 5.344 | L20: 5.127 | M20: 5.255 | N20: 59.376 | R20: DRY PINY MT | S20: 2.109 | T20: 5.592 | V20: DRY PINY MT | W20: 2.2 | X20: 5.726 | Z20: DRY PINY MT | AA20: 2.421 | AB20: 0 | AD20: DRY PINY MT | AE20: 6.73 | AF20: 11.318 | AL20: DRY PINY MT | AM20: 2.218 | AN20: 5.445 | AP20: DRY PINY MT | AQ20: 2.462 | AR20: 5.577 | AT20: DRY PINY MT | AU20: 4.809 | AV20: 5.352 | AX20: DRY PINY MT | AY20: 9.489 | AZ20: 16.374 | BG20: DRY PINY MT | BH20: 5.531 | BI20: 5.484 | BK20: DRY PINY MT | BL20: 5.616 | BM20: 5.434 | BO20: DRY PINY MT | BP20: 5.045 | BQ20: 5.04 | BS20: DRY PINY MT | BT20: 16.192 | BU20: 15.958 | CD20: DRY PINY MT | CE20: 16.7 | CF20: 5.344 | CH20: DRY PINY MT | CI20: 16.7 | CJ20: 5.127 | CL20: DRY PINY MT | CM20: 16.7 | CN20: 5.255 | CP20: DRYPINYU D24 | CQ20: 0 | CR20: 21.70809984
A21: DRYPINY6 D24 | B21: 1.257 | C21: 1.287 | D21: 1.274 | E21: 1.221 | F21: 1.252 | G21: 1.2 | H21: 1.231 | I21: 1.218 | J21: 1.131 | K21: 1.197 | L21: 1.149 | M21: 1.178 | N21: 14.595 | R21: DRYPINY6 D24 | S21: 1.012 | T21: 1.257 | V21: DRYPINY6 D24 | W21: 1.086 | X21: 1.287 | Z21: DRYPINY6 D24 | AA21: 1.04 | AB21: 1.274 | AD21: DRYPINY6 D24 | AE21: 3.138 | AF21: 3.818 | AL21: DRYPINY6 D24 | AM21: 1.097 | AN21: 1.221 | AP21: DRYPINY6 D24 | AQ21: 1.236 | AR21: 1.252 | AT21: DRYPINY6 D24 | AU21: 1.204 | AV21: 1.2 | AX21: DRYPINY6 D24 | AY21: 3.537 | AZ21: 3.673 | BG21: DRYPINY6 D24 | BH21: 1.446 | BI21: 1.231 | BK21: DRYPINY6 D24 | BL21: 1.365 | BM21: 1.218 | BO21: DRYPINY6 D24 | BP21: 1.212 | BQ21: 1.131 | BS21: DRYPINY6 D24 | BT21: 4.023 | BU21: 3.58 | CD21: DRYPINY6 D24 | CE21: 17.7 | CF21: 1.197 | CH21: DRYPINY6 D24 | CI21: 17.7 | CJ21: 1.149 | CL21: DRYPINY6 D24 | CM21: 17.7 | CN21: 1.178 | CP21: HWA DEEP D24 | CQ21: 0 | CR21: 0
A22: DRYPINYU D24 | B22: 1.8 | C22: 1.854 | D22: 1.845 | E22: 1.776 | F22: 1.826 | G22: 1.758 | H22: 1.807 | I22: 1.798 | J22: 1.676 | K22: 1.783 | L22: 1.716 | M22: 1.764 | N22: 21.403 | R22: DRYPINYU D24 | S22: 1.051 | T22: 1.8 | V22: DRYPINYU D24 | W22: 1.169 | X22: 1.854 | Z22: DRYPINYU D24 | AA22: 1.173 | AB22: 1.845 | AD22: DRYPINYU D24 | AE22: 3.393 | AF22: 5.499 | AL22: DRYPINYU D24 | AM22: 1.108 | AN22: 1.776 | AP22: DRYPINYU D24 | AQ22: 1.083 | AR22: 1.826 | AT22: DRYPINYU D24 | AU22: 2.043 | AV22: 1.758 | AX22: DRYPINYU D24 | AY22: 4.234 | AZ22: 5.36 | BG22: DRYPINYU D24 | BH22: 2.003 | BI22: 1.807 | BK22: DRYPINYU D24 | BL22: 1.823 | BM22: 1.798 | BO22: DRYPINYU D24 | BP22: 1.661 | BQ22: 1.676 | BS22: DRYPINYU D24 | BT22: 5.487 | BU22: 5.281 | CD22: DRYPINYU D24 | CE22: 18.7 | CF22: 1.783 | CH22: DRYPINYU D24 | CI22: 18.7 | CJ22: 1.716 | CL22: DRYPINYU D24 | CM22: 18.7 | CN22: 1.764 | CP22: HWADEEPMTD24 | CQ22: 0 | CR22: 44.37110043
A23: HWA MT | B23: 3.792 | C23: 3.887 | D23: 3.86 | E23: 3.708 | F23: 3.804 | G23: 3.651 | H23: 3.745 | I23: 3.717 | J23: 3.451 | K23: 3.664 | L23: 3.519 | M23: 3.608 | N23: 44.406 | R23: HWA MT | S23: 2.516 | T23: 3.792 | V23: HWA MT | W23: 2.562 | X23: 3.887 | Z23: HWA MT | AA23: 3.045 | AB23: 3.86 | AD23: HWA MT | AE23: 8.123 | AF23: 11.539 | AL23: HWA MT | AM23: 2.779 | AN23: 3.708 | AP23: HWA MT | AQ23: 3.231 | AR23: 3.804 | AT23: HWA MT | AU23: 3.084 | AV23: 3.651 | AX23: HWA MT | AY23: 9.094 | AZ23: 11.163 | BG23: HWA MT | BH23: 2.705 | BI23: 3.745 | BK23: HWA MT | BL23: 3.17 | BM23: 3.717 | BO23: HWA MT | BP23: 2.549 | BQ23: 3.451 | BS23: HWA MT | BT23: 8.424 | BU23: 10.913 | CD23: HWA MT | CE23: 19.7 | CF23: 3.664 | CH23: HWA MT | CI23: 19.7 | CJ23: 3.519 | CL23: HWA MT | CM23: 19.7 | CN23: 3.608 | CP23: HWPL1&3MTD24 | CQ23: 0 | CR23: 24.84759998
A24: HWA DEEP D24 | B24: 0 | C24: 0 | D24: 0 | E24: 0 | F24: 0 | G24: 0 | H24: 0 | I24: 0 | J24: 0 | K24: 0 | L24: 0 | M24: 0 | N24: 0 | R24: HWA DEEP D24 | S24: 0.268 | T24: 0 | V24: HWA DEEP D24 | W24: 0.396 | X24: 0 | Z24: HWA DEEP D24 | AA24: 0.124 | AB24: 0 | AD24: HWA DEEP D24 | AE24: 0.788 | AF24: 0 | AL24: HWA DEEP D24 | AM24: 0.42 | AN24: 0 | AP24: HWA DEEP D24 | AQ24: 0.446 | AR24: 0 | AT24: HWA DEEP D24 | AU24: 0.276 | AV24: 0 | AX24: HWA DEEP D24 | AY24: 1.142 | AZ24: 0 | BG24: HWA DEEP D24 | BH24: 0.264 | BI24: 0 | BK24: HWA DEEP D24 | BL24: 0.336 | BM24: 0 | BO24: HWA DEEP D24 | BP24: 0.026 | BQ24: 0 | BS24: HWA DEEP D24 | BT24: 0.626 | BU24: 0 | CD24: =A25 -> HWADEEPMTD24 | CE24: 20.7 | CF24: =IFERROR(VLOOKUP($A25,$A$6:$M$125,11,FALSE),"") -> 13.516 | CH24: =A25 -> HWADEEPMTD24 | CI24: 20.7 | CJ24: =IFERROR(VLOOKUP($A25,$A$6:$M$125,12,FALSE),"") -> 12.984 | CL24: =A25 -> HWADEEPMTD24 | CM24: 20.7 | CN24: =IFERROR(VLOOKUP($A25,$A$6:$M$125,13,FALSE),"") -> 13.318 | CP24: HWPLT1&3 D24 | CQ24: 0 | CR24: 285.700798
A25: HWADEEPMTD24 | B25: 14.04 | C25: 14.39 | D25: 14.272 | E25: 13.701 | F25: 14.046 | G25: 13.485 | H25: 13.829 | I25: 13.721 | J25: 12.74 | K25: 13.516 | L25: 12.984 | M25: 13.318 | N25: =SUM(B25:M25) -> 164.042 | R25: HWADEEPMTD24 | S25: 11.134 | T25: 14.04 | V25: HWADEEPMTD24 | W25: 18.597 | X25: 14.39 | Z25: HWADEEPMTD24 | AA25: 17.663 | AB25: 14.272 | AD25: HWADEEPMTD24 | AE25: 47.394 | AF25: 42.702 | AL25: HWADEEPMTD24 | AM25: 17.588 | AN25: 13.701 | AP25: HWADEEPMTD24 | AQ25: 18.126 | AR25: 14.046 | AT25: HWADEEPMTD24 | AU25: 17.33 | AV25: 13.485 | AX25: HWADEEPMTD24 | AY25: 53.044 | AZ25: 41.232 | BG25: HWADEEPMTD24 | BH25: 17.547 | BI25: 13.829 | BK25: HWADEEPMTD24 | BL25: 17.394 | BM25: 13.721 | BO25: HWADEEPMTD24 | BP25: 14.698 | BQ25: 12.74 | BS25: HWADEEPMTD24 | BT25: 49.639 | BU25: 40.29 | CD25: HWPL1&3MTD24 | CE25: 21.7 | CF25: 7.97 | CH25: HWPL1&3MTD24 | CI25: 21.7 | CJ25: 7.665 | CL25: HWPL1&3MTD24 | CM25: 21.7 | CN25: 7.874 | CP25: HWPLT2 D24 | CQ25: 0 | CR25: 27.91779995
A26: HWPL1&3MTD24 | B26: 8.133 | C26: 8.355 | D26: 8.305 | E26: 7.989 | F26: 8.209 | G26: 7.896 | H26: 8.113 | I26: 8.063 | J26: 7.499 | K26: 7.97 | L26: 7.665 | M26: 7.874 | N26: 96.071 | R26: HWPL1&3MTD24 | S26: 8.052 | T26: 8.133 | V26: HWPL1&3MTD24 | W26: 9.044 | X26: 8.355 | Z26: HWPL1&3MTD24 | AA26: 8.454 | AB26: 8.305 | AD26: HWPL1&3MTD24 | AE26: 25.55 | AF26: 24.793 | AL26: HWPL1&3MTD24 | AM26: 8.091 | AN26: 7.989 | AP26: HWPL1&3MTD24 | AQ26: 7.924 | AR26: 8.209 | AT26: HWPL1&3MTD24 | AU26: 8.63 | AV26: 7.896 | AX26: HWPL1&3MTD24 | AY26: 24.645 | AZ26: 24.094 | BG26: HWPL1&3MTD24 | BH26: 8.947 | BI26: 8.113 | BK26: HWPL1&3MTD24 | BL26: 8.459 | BM26: 8.063 | BO26: HWPL1&3MTD24 | BP26: 7.658 | BQ26: 7.499 | BS26: HWPL1&3MTD24 | BT26: 25.064 | BU26: 23.675 | CD26: HWPLT1&3 D24 | CE26: 22.7 | CF26: 81.443 | CH26: HWPLT1&3 D24 | CI26: 22.7 | CJ26: 77.913 | CL26: HWPLT1&3 D24 | CM26: 22.7 | CN26: 79.586 | CP26: HWPLT2MT D24 | CQ26: 0 | CR26: 14.81040049
A27: HWPLT1&3 D24 | B27: 87.543 | C27: 89.404 | D27: 88.359 | E27: 84.513 | F27: 86.316 | G27: 82.563 | H27: 84.326 | I27: 83.353 | J27: 77.076 | K27: 81.443 | L27: 77.913 | M27: 79.586 | N27: 1002.395 | R27: HWPLT1&3 D24 | S27: 80.887 | T27: 87.543 | V27: HWPLT1&3 D24 | W27: 87.067 | X27: 89.404 | Z27: HWPLT1&3 D24 | AA27: 82.162 | AB27: 88.359 | AD27: HWPLT1&3 D24 | AE27: 250.116 | AF27: 265.306 | AL27: HWPLT1&3 D24 | AM27: 85.079 | AN27: 84.513 | AP27: HWPLT1&3 D24 | AQ27: 95.983 | AR27: 86.316 | AT27: HWPLT1&3 D24 | AU27: 88.759 | AV27: 82.563 | AX27: HWPLT1&3 D24 | AY27: 269.821 | AZ27: 253.392 | BG27: HWPLT1&3 D24 | BH27: 91.384 | BI27: 84.326 | BK27: HWPLT1&3 D24 | BL27: 90.148 | BM27: 83.353 | BO27: HWPLT1&3 D24 | BP27: 80.139 | BQ27: 77.076 | BS27: HWPLT1&3 D24 | BT27: 261.671 | BU27: 244.755 | CD27: HWPLT2 D24 | CE27: 23.7 | CF27: 5.137 | CH27: HWPLT2 D24 | CI27: 23.7 | CJ27: 4.938 | CL27: HWPLT2 D24 | CM27: 23.7 | CN27: 5.065 | CP27: ISLAND D24 | CQ27: 0 | CR27: 169.4888
A28: HWPLT2 D24 | B28: 5.295 | C28: 5.434 | D28: 5.397 | E28: 5.184 | F28: 5.32 | G28: 5.112 | H28: 5.248 | I28: 5.211 | J28: 4.84 | K28: 5.137 | L28: 4.938 | M28: 5.065 | N28: 62.181 | R28: HWPLT2 D24 | S28: 2.84 | T28: 5.295 | V28: HWPLT2 D24 | W28: 8.828 | X28: 5.434 | Z28: HWPLT2 D24 | AA28: 8.941 | AB28: 5.397 | AD28: HWPLT2 D24 | AE28: 20.609 | AF28: 16.126 | AL28: HWPLT2 D24 | AM28: 9.092 | AN28: 5.184 | AP28: HWPLT2 D24 | AQ28: 10.55 | AR28: 5.32 | AT28: HWPLT2 D24 | AU28: 9.203 | AV28: 5.112 | AX28: HWPLT2 D24 | AY28: 28.845 | AZ28: 15.616 | BG28: HWPLT2 D24 | BH28: 8.182 | BI28: 5.248 | BK28: HWPLT2 D24 | BL28: 9.108 | BM28: 5.211 | BO28: HWPLT2 D24 | BP28: 7.399 | BQ28: 4.84 | BS28: HWPLT2 D24 | BT28: 24.689 | BU28: 15.299 | CD28: HWPLT2MT D24 | CE28: 24.7 | CF28: 4.433 | CH28: HWPLT2MT D24 | CI28: 24.7 | CJ28: 4.245 | CL28: HWPLT2MT D24 | CM28: 24.7 | CN28: 4.34 | CP28: JNSNRDG D24 | CQ28: 0 | CR28: 6.609999895
A29: HWPLT2MT D24 | B29: 4.722 | C29: 4.827 | D29: 4.774 | E29: 4.572 | F29: 4.675 | G29: 4.476 | H29: 4.576 | I29: 4.526 | J29: 4.191 | K29: 4.433 | L29: 4.245 | M29: 4.34 | N29: 54.357 | R29: HWPLT2MT D24 | S29: 1.61 | T29: 4.722 | V29: HWPLT2MT D24 | W29: 1.491 | X29: 4.827 | Z29: HWPLT2MT D24 | AA29: 1.417 | AB29: 4.774 | AD29: HWPLT2MT D24 | AE29: 4.518 | AF29: 14.323 | AL29: HWPLT2MT D24 | AM29: 1.128 | AN29: 4.572 | AP29: HWPLT2MT D24 | AQ29: 0.583 | AR29: 4.675 | AT29: HWPLT2MT D24 | AU29: 2.153 | AV29: 4.476 | AX29: HWPLT2MT D24 | AY29: 3.864 | AZ29: 13.723 | BG29: HWPLT2MT D24 | BH29: 2.358 | BI29: 4.576 | BK29: HWPLT2MT D24 | BL29: 2.318 | BM29: 4.526 | BO29: HWPLT2MT D24 | BP29: 1.264 | BQ29: 4.191 | BS29: HWPLT2MT D24 | BT29: 5.94 | BU29: 13.293 | CD29: ISLAND D24 | CE29: 25.7 | CF29: 53.63 | CH29: ISLAND D24 | CI29: 25.7 | CJ29: 51.552 | CL29: ISLAND D24 | CM29: 25.7 | CN29: 52.914 | CP29: JRDG WFS D24 | CQ29: 0 | CR29: 7.087299824
A30: ISLAND D24 | B30: 55.746 | C30: 57.214 | D30: 56.829 | E30: 54.042 | F30: 55.468 | G30: 53.319 | H30: 54.724 | I30: 54.359 | J30: 50.509 | K30: 53.63 | L30: 51.552 | M30: 52.914 | N30: 650.306 | R30: ISLAND D24 | S30: 56.159 | T30: 55.746 | V30: ISLAND D24 | W30: 62.051 | X30: 57.214 | Z30: ISLAND D24 | AA30: 59.595 | AB30: 56.829 | AD30: ISLAND D24 | AE30: 177.805 | AF30: 169.789 | AL30: ISLAND D24 | AM30: 56.572 | AN30: 54.042 | AP30: ISLAND D24 | AQ30: 54.711 | AR30: 55.468 | AT30: ISLAND D24 | AU30: 53.924 | AV30: 53.319 | AX30: ISLAND D24 | AY30: 165.207 | AZ30: 162.829 | BG30: ISLAND D24 | BH30: 50.692 | BI30: 54.724 | BK30: ISLAND D24 | BL30: 45.817 | BM30: 54.359 | BO30: ISLAND D24 | BP30: 50.042 | BQ30: 50.509 | BS30: ISLAND D24 | BT30: 146.551 | BU30: 159.592 | CD30: JNSNRDG D24 | CE30: 26.7 | CF30: 2.195 | CH30: JNSNRDG D24 | CI30: 26.7 | CJ30: 2.115 | CL30: JNSNRDG D24 | CM30: 26.7 | CN30: 2.176 | CP30: KNY FLD D24 | CQ30: 0 | CR30: 53.44070053
A31: JNSNRDG D24 | B31: 2.202 | C31: 2.266 | D31: 0 | E31: 2.175 | F31: 2.238 | G31: 2.157 | H31: 2.22 | I31: 2.21 | J31: 2.059 | K31: 2.195 | L31: 2.115 | M31: 2.176 | N31: 24.013 | R31: JNSNRDG D24 | S31: 2.284 | T31: 2.202 | V31: JNSNRDG D24 | W31: 2.555 | X31: 2.266 | Z31: JNSNRDG D24 | AA31: 2.67 | AB31: 0 | AD31: JNSNRDG D24 | AE31: 7.509 | AF31: 4.468 | AL31: JNSNRDG D24 | AM31: 2.328 | AN31: 2.175 | AP31: JNSNRDG D24 | AQ31: 2.442 | AR31: 2.238 | AT31: JNSNRDG D24 | AU31: 2.192 | AV31: 2.157 | AX31: JNSNRDG D24 | AY31: 6.962 | AZ31: 6.57 | BG31: JNSNRDG D24 | BH31: 0.688 | BI31: 2.22 | BK31: JNSNRDG D24 | BL31: 0 | BM31: 2.21 | BO31: JNSNRDG D24 | BP31: 0 | BQ31: 2.059 | BS31: JNSNRDG D24 | BT31: 0.688 | BU31: 6.489 | CD31: JRDG WFS D24 | CE31: 27.7 | CF31: 2.864 | CH31: JRDG WFS D24 | CI31: 27.7 | CJ31: 2.754 | CL31: JRDG WFS D24 | CM31: 27.7 | CN31: 2.83 | CP31: MESA D24 | CQ31: 0 | CR31: 2634.647339
A32: JRDG WFS D24 | B32: 2.931 | C32: 3.01 | D32: 0 | E32: 2.877 | F32: 2.954 | G32: 2.841 | H32: 2.917 | I32: 2.902 | J32: 2.697 | K32: 2.864 | L32: 2.754 | M32: 2.83 | N32: 31.577 | R32: JRDG WFS D24 | S32: 3.411 | T32: 2.931 | V32: JRDG WFS D24 | W32: 3.537 | X32: 3.01 | Z32: JRDG WFS D24 | AA32: 3.798 | AB32: 0 | AD32: JRDG WFS D24 | AE32: =SUM(S32,W32,AA32) -> 10.746 | AF32: =SUM(T32,X32,AB32) -> 5.941 | AL32: JRDG WFS D24 | AM32: 3.195 | AN32: 2.877 | AP32: JRDG WFS D24 | AQ32: 3.365 | AR32: 2.954 | AT32: JRDG WFS D24 | AU32: 3.077 | AV32: 2.841 | AX32: JRDG WFS D24 | AY32: 9.637 | AZ32: 8.672 | BG32: JRDG WFS D24 | BH32: 2.353 | BI32: 2.917 | BK32: JRDG WFS D24 | BL32: 0.523 | BM32: 2.902 | BO32: JRDG WFS D24 | BP32: 0 | BQ32: 2.697 | BS32: JRDG WFS D24 | BT32: 2.876 | BU32: 8.516 | CD32: KNY FLD D24 | CE32: 28.7 | CF32: 16.157 | CH32: KNY FLD D24 | CI32: 28.7 | CJ32: 15.498 | CL32: KNY FLD D24 | CM32: 28.7 | CN32: 15.875 | CP32: MOSUMT D24 | CQ32: 0 | CR32: 3.103399992
A33: KNY FLD D24 | B33: 17.01 | C33: 17.403 | D33: 17.236 | E33: 16.521 | F33: 16.911 | G33: 16.212 | H33: 16.597 | I33: 16.449 | J33: 15.248 | K33: 16.157 | L33: 15.498 | M33: 15.875 | N33: 197.117 | R33: KNY FLD D24 | S33: 18.672 | T33: 17.01 | V33: KNY FLD D24 | W33: 20.581 | X33: 17.403 | Z33: KNY FLD D24 | AA33: 18.832 | AB33: 17.236 | AD33: KNY FLD D24 | AE33: 58.085 | AF33: 51.649 | AL33: KNY FLD D24 | AM33: 19.922 | AN33: 16.521 | AP33: KNY FLD D24 | AQ33: 14.482 | AR33: 16.911 | AT33: KNY FLD D24 | AU33: 15.958 | AV33: 16.212 | AX33: KNY FLD D24 | AY33: 50.362 | AZ33: 49.644 | BG33: KNY FLD D24 | BH33: 13.297 | BI33: 16.597 | BK33: KNY FLD D24 | BL33: 14.601 | BM33: 16.449 | BO33: KNY FLD D24 | BP33: 9.52 | BQ33: 15.248 | BS33: KNY FLD D24 | BT33: 37.418 | BU33: 48.294 | CD33: MESA D24 | CE33: 29.7 | CF33: 793.73 | CH33: MESA D24 | CI33: 29.7 | CJ33: 760.422 | CL33: MESA D24 | CM33: 29.7 | CN33: 777.948 | CP33: PDW1A1B D24 | CQ33: 0 | CR33: 5.689200044
A34: MESA D24 | B34: 845.85 | C34: 864.59 | D34: 855.33 | E34: 817.359 | F34: 835.723 | G34: 800.337 | H34: 818.465 | I34: 810.07 | J34: 750.097 | K34: 793.73 | L34: 760.422 | M34: 777.948 | N34: 9729.921 | R34: MESA D24 | S34: 839.44 | T34: 845.85 | V34: MESA D24 | W34: 846.808 | X34: 864.59 | Z34: MESA D24 | AA34: 838.455 | AB34: 855.33 | AD34: MESA D24 | AE34: 2524.703 | AF34: 2565.77 | AL34: MESA D24 | AM34: 791.484 | AN34: 817.359 | AP34: MESA D24 | AQ34: 784.762 | AR34: 835.723 | AT34: MESA D24 | AU34: 789.803 | AV34: 800.337 | AX34: MESA D24 | AY34: 2366.049 | AZ34: 2453.419 | BG34: MESA D24 | BH34: 805.21 | BI34: 818.465 | BK34: MESA D24 | BL34: 779.779 | BM34: 810.07 | BO34: MESA D24 | BP34: 697.24 | BQ34: 750.097 | BS34: MESA D24 | BT34: 2282.229 | BU34: 2378.632 | CD34: MOSUMT D24 | CE34: 30.7 | CF34: 0.853 | CH34: MOSUMT D24 | CI34: 30.7 | CJ34: 0.81 | CL34: MOSUMT D24 | CM34: 30.7 | CN34: 0.822 | CP34: PDWCUT D24 | CQ34: 0 | CR34: 290.959404
A35: MOSUMT D24 | B35: 0.975 | C35: 0.989 | D35: 0 | E35: 0.924 | F35: 0.936 | G35: 0.888 | H35: 0.902 | I35: 0.887 | J35: 0.812 | K35: 0.853 | L35: 0.81 | M35: 0.822 | N35: 9.798 | R35: MOSUMT D24 | S35: 1.59 | T35: 0.975 | V35: MOSUMT D24 | W35: 1.653 | X35: 0.989 | Z35: MOSUMT D24 | AA35: 1.58 | AB35: 0 | AD35: MOSUMT D24 | AE35: 4.823 | AF35: 1.964 | AL35: MOSUMT D24 | AM35: 1.437 | AN35: 0.924 | AP35: MOSUMT D24 | AQ35: 1.612 | AR35: 0.936 | AT35: MOSUMT D24 | AU35: 1.265 | AV35: 0.888 | AX35: MOSUMT D24 | AY35: =SUM(AM35,AQ35,AU35) -> 4.314 | AZ35: =SUM(AN35,AR35,AV35) -> 2.748 | BG35: MOSUMT D24 | BH35: 1.113 | BI35: 0.902 | BK35: MOSUMT D24 | BL35: 0.946 | BM35: 0.887 | BO35: MOSUMT D24 | BP35: 0.7 | BQ35: 0.812 | BS35: MOSUMT D24 | BT35: 2.759 | BU35: 2.601 | CD35: PDW MT | CE35: 31.7 | CF35: 199.051 | CH35: PDW MT | CI35: 31.7 | CJ35: 191.154 | CL35: PDW MT | CM35: 31.7 | CN35: 196.022 | CP35: PDWMT D24 | CQ35: 0 | CR35: 82.17730141
A36: PDW MT | B36: 207.063 | C36: 212.183 | D36: 210.434 | E36: 201.99 | F36: 207.04 | G36: 198.765 | H36: 203.766 | I36: 202.17 | J36: 187.656 | K36: 199.051 | L36: 191.154 | M36: 196.022 | N36: 2417.294 | R36: PDW MT | S36: 208.942 | T36: 207.063 | V36: PDW MT | W36: 205.237 | X36: 212.183 | Z36: PDW MT | AA36: 235.037 | AB36: 210.434 | AD36: PDW MT | AE36: 649.216 | AF36: 629.68 | AL36: PDW MT | AM36: 222.156 | AN36: 201.99 | AP36: PDW MT | AQ36: 217.858 | AR36: 207.04 | AT36: PDW MT | AU36: 206.881 | AV36: 198.765 | AX36: PDW MT | AY36: 646.895 | AZ36: 607.795 | BG36: PDW MT | BH36: 198.491 | BI36: 203.766 | BK36: PDW MT | BL36: 195.129 | BM36: 202.17 | BO36: PDW MT | BP36: 167.437 | BQ36: 187.656 | BS36: PDW MT | BT36: 561.057 | BU36: 593.592 | CD36: PDW1A1B D24 | CE36: 32.7 | CF36: 0.623 | CH36: PDW1A1B D24 | CI36: 32.7 | CJ36: 0.597 | CL36: PDW1A1B D24 | CM36: 32.7 | CN36: 0.614 | CP36: PDWPLT2 D24 | CQ36: 0 | CR36: 233.3149948
A37: PDW1A1B D24 | B37: 0.642 | C37: 0.657 | D37: 0.654 | E37: 0.627 | F37: 0.645 | G37: 0.618 | H37: 0.636 | I37: 0.629 | J37: 0.586 | K37: 0.623 | L37: 0.597 | M37: 0.614 | N37: 7.528 | R37: PDW1A1B D24 | S37: 0.431 | T37: 0.642 | V37: PDW1A1B D24 | W37: 0.372 | X37: 0.657 | Z37: PDW1A1B D24 | AA37: 0.478 | AB37: 0.654 | AD37: PDW1A1B D24 | AE37: 1.281 | AF37: 1.953 | AL37: PDW1A1B D24 | AM37: 0.37 | AN37: 0.627 | AP37: PDW1A1B D24 | AQ37: 0.297 | AR37: 0.645 | AT37: PDW1A1B D24 | AU37: 0.35 | AV37: 0.618 | AX37: PDW1A1B D24 | AY37: 1.017 | AZ37: 1.89 | BG37: PDW1A1B D24 | BH37: 0.301 | BI37: 0.636 | BK37: PDW1A1B D24 | BL37: 0.182 | BM37: 0.629 | BO37: PDW1A1B D24 | BP37: 0.168 | BQ37: 0.586 | BS37: PDW1A1B D24 | BT37: 0.651 | BU37: 1.851 | CD37: PDWCUT D24 | CE37: 33.7 | CF37: 1.547 | CH37: PDWCUT D24 | CI37: 33.7 | CJ37: 1.488 | CL37: PDWCUT D24 | CM37: 33.7 | CN37: 1.531 | CP37: PDWPLT3 D24 | CQ37: 0 | CR37: 33.02519989
A38: PDWCUT D24 | B38: 1.56 | C38: 1.603 | D38: 0 | E38: 1.539 | F38: 1.581 | G38: 1.524 | H38: 1.569 | I38: 1.559 | J38: 1.453 | K38: 1.547 | L38: 1.488 | M38: 1.531 | N38: 16.954 | R38: PDWCUT D24 | S38: =IFERROR(VLOOKUP(R38,$R$122:$S$216,2,FALSE),0) -> 1.287 | T38: =IFERROR(VLOOKUP(R38,$A$6:$M$125,2,FALSE),"") -> 1.56 | V38: PDWCUT D24 | W38: =IFERROR(VLOOKUP(V38,$V$122:$W$216,2,FALSE),0) -> 1.286 | X38: =IFERROR(VLOOKUP(V38,$A$6:$M$125,3,FALSE),"") -> 1.603 | Z38: PDWCUT D24 | AA38: =IFERROR(VLOOKUP(A38,$Z$122:$AA$216,2,FALSE),0) -> 1.441 | AB38: =IFERROR(VLOOKUP(Z38,$A$6:$M$125,4,FALSE),"") -> 0 | AD38: PDWCUT D24 | AE38: 4.014 | AF38: 3.163 | AL38: PDWCUT D24 | AM38: =IFERROR(VLOOKUP(AL38,$AL$122:$AM$212,2,FALSE),0) -> 1.273 | AN38: =IFERROR(VLOOKUP(AL38,$A$6:$M$125,5,FALSE),"") -> 1.539 | AP38: PDWCUT D24 | AQ38: =IFERROR(VLOOKUP(AP38,$AP$122:$AQ$221,2,FALSE),0) -> 1.032 | AR38: =IFERROR(VLOOKUP($AP38,$A$6:$M$125,6,FALSE),"") -> 1.581 | AT38: PDWCUT D24 | AU38: =IFERROR(VLOOKUP(AT38,$AT$122:$AU$214,2,FALSE),0) -> 0.976 | AV38: =IFERROR(VLOOKUP($AT38,$A$6:$M$125,7,FALSE),"") -> 1.524 | AX38: PDWCUT D24 | AY38: 3.281 | AZ38: 4.644 | BG38: PDWCUT D24 | BH38: =IFERROR(VLOOKUP($BG38,$BG$120:$BH$215,2,FALSE),0) -> 0.846 | BI38: =IFERROR(VLOOKUP($BG38,$A$6:$M$125,8,FALSE),"") -> 1.569 | BK38: PDWCUT D24 | BL38: =IFERROR(VLOOKUP($BK38,$BK$120:$BL$215,2,FALSE),0) -> 0.761 | BM38: =IFERROR(VLOOKUP($BK38,$A$6:$M$125,9,FALSE),"") -> 1.559 | BO38: =A38 -> PDWCUT D24 | BP38: =IFERROR(VLOOKUP($BO38,$BO$120:$BP$215,2,FALSE),0) -> 0.612 | BQ38: =IFERROR(VLOOKUP($BO38,$A$6:$M$125,10,FALSE),0) -> 1.453 | BS38: =A38 -> PDWCUT D24 | BT38: =SUM(BH38,BL38,BP38) -> 2.219 | BU38: =SUM(BI38,BM38,BQ38) -> 4.581 | CD38: PDWMT D24 | CE38: 34.7 | CF38: 25.854 | CH38: PDWMT D24 | CI38: 34.7 | CJ38: 24.834 | CL38: PDWMT D24 | CM38: 34.7 | CN38: 25.473 | CP38: SGRLF D24 | CQ38: 0 | CR38: 5.275200009
A39: PDWMT D24 | B39: 26.805 | C39: 27.482 | D39: 27.271 | E39: 26.187 | F39: 26.852 | G39: 25.788 | H39: 26.446 | I39: 26.248 | J39: 24.369 | K39: 25.854 | L39: 24.834 | M39: 25.473 | N39: 313.609 | R39: PDWMT D24 | S39: 35.178 | T39: 26.805 | V39: PDWMT D24 | W39: 32.323 | X39: 27.482 | Z39: PDWMT D24 | AA39: 34.32 | AB39: 27.271 | AD39: PDWMT D24 | AE39: 101.821 | AF39: 81.558 | AL39: PDWMT D24 | AM39: 31.011 | AN39: 26.187 | AP39: PDWMT D24 | AQ39: 30.96 | AR39: 26.852 | AT39: PDWMT D24 | AU39: 28.483 | AV39: 25.788 | AX39: PDWMT D24 | AY39: 90.454 | AZ39: 78.827 | BG39: PDWMT D24 | BH39: 24.131 | BI39: 26.446 | BK39: PDWMT D24 | BL39: 24.344 | BM39: 26.248 | BO39: PDWMT D24 | BP39: 23.569 | BQ39: 24.369 | BS39: PDWMT D24 | BT39: 72.044 | BU39: 77.063 | CD39: PDWPLT2 D24 | CE39: 35.7 | CF39: 4.898 | CH39: PDWPLT2 D24 | CI39: 35.7 | CJ39: 4.71 | CL39: PDWPLT2 D24 | CM39: 35.7 | CN39: 4.839 | CP39: SGRLFMT D24 | CQ39: 0 | CR39: 30.96720028
A40: PDWPLT2 D24 | B40: 5.013 | C40: 5.149 | D40: 5.115 | E40: 4.92 | F40: 5.053 | G40: 4.86 | H40: 4.991 | I40: 4.96 | J40: 4.611 | K40: 4.898 | L40: 4.71 | M40: 4.839 | N40: 59.119 | R40: PDWPLT2 D24 | S40: 4.34 | T40: 5.013 | V40: PDWPLT2 D24 | W40: 4.118 | X40: 5.149 | Z40: PDWPLT2 D24 | AA40: 5.176 | AB40: 5.115 | AD40: PDWPLT2 D24 | AE40: 13.634 | AF40: 15.277 | AL40: PDWPLT2 D24 | AM40: 4.94 | AN40: 4.92 | AP40: PDWPLT2 D24 | AQ40: 4.557 | AR40: 5.053 | AT40: PDWPLT2 D24 | AU40: 4.422 | AV40: 4.86 | AX40: PDWPLT2 D24 | AY40: 13.919 | AZ40: 14.833 | BG40: PDWPLT2 D24 | BH40: 4.168 | BI40: 4.991 | BK40: PDWPLT2 D24 | BL40: 4.128 | BM40: 4.96 | BO40: PDWPLT2 D24 | BP40: 3.44 | BQ40: 4.611 | BS40: PDWPLT2 D24 | BT40: 11.736 | BU40: 14.562 | CD40: SGRLF D24 | CE40: 36.7 | CF40: 1.637 | CH40: SGRLF D24 | CI40: 36.7 | CJ40: 1.572 | CL40: SGRLF D24 | CM40: 36.7 | CN40: 1.615 | CP40: TRAIL D24 | CQ40: 0 | CR40: 1088.497711
A41: SGRLF D24 | B41: 1.686 | C41: 1.73 | D41: 0 | E41: 1.653 | F41: 1.696 | G41: 1.629 | H41: 1.671 | I41: 1.662 | J41: 1.543 | K41: 1.637 | L41: 1.572 | M41: 1.615 | N41: 18.094 | R41: SGRLF D24 | S41: 1.477 | T41: 1.686 | V41: SGRLF D24 | W41: 1.55 | X41: 1.73 | Z41: SGRLF D24 | AA41: 2.009 | AB41: 0 | AD41: SGRLF D24 | AE41: 5.036 | AF41: 3.416 | AL41: SGRLF D24 | AM41: 1.767 | AN41: 1.653 | AP41: SGRLF D24 | AQ41: 1.735 | AR41: 1.696 | AT41: SGRLF D24 | AU41: 1.401 | AV41: 1.629 | AX41: SGRLF D24 | AY41: 4.903 | AZ41: 4.978 | BG41: SGRLF D24 | BH41: 1.304 | BI41: 1.671 | BK41: SGRLF D24 | BL41: 1.36 | BM41: 1.662 | BO41: SGRLF D24 | BP41: 1.419 | BQ41: 1.543 | BS41: SGRLF D24 | BT41: 4.083 | BU41: 4.876 | CD41: SGRLFMT D24 | CE41: 37.7 | CF41: 10.05 | CH41: SGRLFMT D24 | CI41: 37.7 | CJ41: 9.66 | CL41: SGRLFMT D24 | CM41: 37.7 | CN41: 9.911 | CP41: TRAILMT D24 | CQ41: 0 | CR41: 198.712101
A42: SGRLFMT D24 | B42: 10.353 | C42: 10.627 | D42: 10.552 | E42: 10.14 | F42: 10.407 | G42: 10.002 | H42: 10.261 | I42: 10.193 | J42: 9.469 | K42: 10.05 | L42: 9.66 | M42: 9.911 | N42: 121.625 | R42: SGRLFMT D24 | S42: 19.598 | T42: 10.353 | V42: SGRLFMT D24 | W42: 19.256 | X42: 10.627 | Z42: =R42 -> SGRLFMT D24 | AA42: 20.797 | AB42: 10.552 | AD42: SGRLFMT D24 | AE42: 59.651 | AF42: 31.532 | AL42: SGRLFMT D24 | AM42: 18.742 | AN42: 10.14 | AP42: SGRLFMT D24 | AQ42: 15.984 | AR42: 10.407 | AT42: SGRLFMT D24 | AU42: 16.717 | AV42: 10.002 | AX42: SGRLFMT D24 | AY42: 51.443 | AZ42: 30.549 | BG42: SGRLFMT D24 | BH42: 12.099 | BI42: 10.261 | BK42: SGRLFMT D24 | BL42: 14.902 | BM42: 10.193 | BO42: SGRLFMT D24 | BP42: 10.232 | BQ42: 9.469 | BS42: SGRLFMT D24 | BT42: 37.233 | BU42: 29.923 | CD42: TRAIL D24 | CE42: 38.7 | CF42: 308.54 | CH42: TRAIL D24 | CI42: 38.7 | CJ42: 293.649 | CL42: TRAIL D24 | CM42: 38.7 | CN42: 298.561 | CP42: WHLA D24 | CQ42: 0 | CR42: 102.9545994
A43: TRAIL D24 | B43: 356.901 | C43: 360.418 | D43: 352.566 | E43: 334.047 | F43: 338.222 | G43: 320.949 | H43: 325.419 | I43: 319.511 | J43: 293.642 | K43: 308.54 | L43: 293.649 | M43: 298.561 | N43: 3902.425 | R43: TRAIL D24 | S43: 406.866 | T43: 356.901 | V43: TRAIL D24 | W43: 435.793 | X43: 360.418 | Z43: TRAIL D24 | AA43: 445.503 | AB43: 352.566 | AD43: TRAIL D24 | AE43: 1288.162 | AF43: 1069.885 | AL43: TRAIL D24 | AM43: 426.622 | AN43: 334.047 | AP43: TRAIL D24 | AQ43: 392.88 | AR43: 338.222 | AT43: TRAIL D24 | AU43: 391.99 | AV43: 320.949 | AX43: TRAIL D24 | AY43: 1211.492 | AZ43: 993.218 | BG43: TRAIL D24 | BH43: 412.162 | BI43: 325.419 | BK43: TRAIL D24 | BL43: 425.711 | BM43: 319.511 | BO43: TRAIL D24 | BP43: 392.625 | BQ43: 293.642 | BS43: TRAIL D24 | BT43: 1230.498 | BU43: 938.572 | CD43: TRAILMT D24 | CE43: 39.7 | CF43: 55.899 | CH43: TRAILMT D24 | CI43: 39.7 | CJ43: 53.325 | CL43: TRAILMT D24 | CM43: 39.7 | CN43: 54.34 | CP43: WWILSON D24 | CQ43: 0 | CR43: 10.05229974
A44: TRAILMT D24 | B44: 63.06 | C44: 63.888 | D44: 62.691 | E44: 59.574 | F44: 60.493 | G44: 57.561 | H44: 58.519 | I44: 57.604 | J44: 53.073 | K44: 55.899 | L44: 53.325 | M44: 54.34 | N44: 700.027 | R44: TRAILMT D24 | S44: 70.773 | T44: 63.06 | V44: TRAILMT D24 | W44: 65.174 | X44: 63.888 | Z44: TRAILMT D24 | AA44: 63.314 | AB44: 62.691 | AD44: TRAILMT D24 | AE44: 199.261 | AF44: 189.639 | AL44: TRAILMT D24 | AM44: 56.633 | AN44: 59.574 | AP44: TRAILMT D24 | AQ44: 58.383 | AR44: 60.493 | AT44: TRAILMT D24 | AU44: 61.083 | AV44: 57.561 | AX44: TRAILMT D24 | AY44: 176.099 | AZ44: 177.628 | BG44: TRAILMT D24 | BH44: 60.316 | BI44: 58.519 | BK44: =R44 -> TRAILMT D24 | BL44: 61.792 | BM44: 57.604 | BO44: TRAILMT D24 | BP44: 54.589 | BQ44: 53.073 | BS44: TRAILMT D24 | BT44: 176.697 | BU44: 169.196 | CD44: WHLA D24 | CE44: 40.7 | CF44: 30.613 | CH44: WHLA D24 | CI44: 40.7 | CJ44: 29.406 | CL44: WHLA D24 | CM44: 40.7 | CN44: 30.163 | CP44: ACEJD PC | CQ44: 0 | CR44: 0
A45: WHLA D24 | B45: 32.106 | C45: 32.466 | D45: 32.231 | E45: 30.96 | F45: 31.76 | G45: 30.51 | H45: 31.295 | I45: 31.065 | J45: 28.849 | K45: 30.613 | L45: 29.406 | M45: 30.163 | N45: 371.424 | R45: WHLA D24 | S45: 30.157 | T45: 32.106 | V45: WHLA D24 | W45: 34.476 | X45: 32.466 | Z45: WHLA D24 | AA45: 33.102 | AB45: 32.231 | AD45: WHLA D24 | AE45: 97.735 | AF45: 96.803 | AL45: WHLA D24 | AM45: 33.572 | AN45: 30.96 | AP45: WHLA D24 | AQ45: 29.793 | AR45: 31.76 | AT45: WHLA D24 | AU45: 31.273 | AV45: 30.51 | AX45: WHLA D24 | AY45: 94.638 | AZ45: 93.23 | BG45: WHLA D24 | BH45: 27.778 | BI45: 31.295 | BK45: WHLA D24 | BL45: 27.677 | BM45: 31.065 | BO45: WHLA D24 | BP45: 29.944 | BQ45: 28.849 | BS45: WHLA D24 | BT45: 85.399 | BU45: 91.209 | CD45: WWILSON D24 | CE45: 41.7 | CF45: 3.534 | CH45: WWILSON D24 | CI45: 41.7 | CJ45: 3.396 | CL45: WWILSON D24 | CM45: 41.7 | CN45: 3.484 | CP45: ACEJDMT PC | CQ45: 0 | CR45: 11.64780045
A46: WWILSON D24 | B46: 3.639 | C46: 3.732 | D46: 0 | E46: 3.564 | F46: 3.658 | G46: 3.516 | H46: 3.608 | I46: 3.584 | J46: 3.329 | K46: 3.534 | L46: 3.396 | M46: 3.484 | N46: 39.044 | R46: WWILSON D24 | S46: 1.501 | T46: 3.639 | V46: WWILSON D24 | W46: 3.856 | X46: 3.732 | Z46: WWILSON D24 | AA46: 3.621 | AB46: 0 | AD46: WWILSON D24 | AE46: 8.978 | AF46: 7.371 | AL46: WWILSON D24 | AM46: 3.762 | AN46: 3.564 | AP46: WWILSON D24 | AQ46: 3.78 | AR46: 3.658 | AT46: WWILSON D24 | AU46: 3.588 | AV46: 3.516 | AX46: WWILSON D24 | AY46: 11.13 | AZ46: 10.738 | BG46: WWILSON D24 | BH46: 3.236 | BI46: 3.608 | BK46: WWILSON D24 | BL46: 3.113 | BM46: 3.584 | BO46: WWILSON D24 | BP46: 2.909 | BQ46: 3.329 | BS46: WWILSON D24 | BT46: 9.258 | BU46: 10.521 | CD46: ACEJDMT PC | CE46: 42.7 | CF46: 3.847 | CH46: ACEJDMT PC | CI46: 42.7 | CJ46: 3.705 | CL46: ACEJDMT PC | CM46: 42.7 | CN46: 3.81 | CP46: BKSPUNT6MTPC | CQ46: 0 | CR46: 7.471199989
A47: ACEJDMT PC | B47: 3.882 | C47: 3.993 | D47: 3.974 | E47: 3.828 | F47: 3.937 | G47: 3.792 | H47: 3.9 | I47: 3.881 | J47: 3.616 | K47: 3.847 | L47: 3.705 | M47: 3.81 | N47: 46.165 | R47: ACEJDMT PC | S47: 3.812 | T47: 3.882 | V47: ACEJDMT PC | W47: 3.841 | X47: 3.993 | Z47: ACEJDMT PC | AA47: 3.602 | AB47: 3.974 | AD47: ACEJDMT PC | AE47: 11.255 | AF47: 11.849 | AL47: ACEJDMT PC | AM47: 3.618 | AN47: 3.828 | AP47: ACEJDMT PC | AQ47: 3.664 | AR47: 3.937 | AT47: ACEJDMT PC | AU47: 2.717 | AV47: 3.792 | AX47: ACEJDMT PC | AY47: 9.999 | AZ47: 11.557 | BG47: ACEJDMT PC | BH47: 3.895 | BI47: 3.9 | BK47: ACEJDMT PC | BL47: 4.022 | BM47: 3.881 | BO47: ACEJDMT PC | BP47: 3.74 | BQ47: 3.616 | BS47: ACEJDMT PC | BT47: 11.657 | BU47: 11.397 | CD47: BKSPUNT6MTPC | CE47: 43.7 | CF47: 2.399 | CH47: BKSPUNT6MTPC | CI47: 43.7 | CJ47: 2.313 | CL47: BKSPUNT6MTPC | CM47: 43.7 | CN47: 2.378 | CP47: BRFM PC | CQ47: 0 | CR47: 0.465200007
A48: BKSPUNT6MTPC | B48: 2.421 | C48: 2.489 | D48: 2.48 | E48: 2.388 | F48: 2.455 | G48: 2.367 | H48: 2.434 | I48: 2.421 | J48: 2.256 | K48: 2.399 | L48: 2.313 | M48: 2.378 | N48: 28.801 | R48: BKSPUNT6MTPC | S48: 7.81 | T48: 2.421 | V48: BKSPUNT6MTPC | W48: 4.231 | X48: 2.489 | Z48: BKSPUNT6MTPC | AA48: 4.687 | AB48: 2.48 | AD48: BKSPUNT6MTPC | AE48: 16.728 | AF48: 7.39 | AL48: BKSPUNT6MTPC | AM48: 3.738 | AN48: 2.388 | AP48: BKSPUNT6MTPC | AQ48: 3.621 | AR48: 2.455 | AT48: BKSPUNT6MTPC | AU48: 3.189 | AV48: 2.367 | AX48: BKSPUNT6MTPC | AY48: 10.548 | AZ48: 7.21 | BG48: BKSPUNT6MTPC | BH48: 1.835 | BI48: 2.434 | BK48: BKSPUNT6MTPC | BL48: 0 | BM48: 2.421 | BO48: BKSPUNT6MTPC | BP48: 0 | BQ48: 2.256 | BS48: BKSPUNT6MTPC | BT48: 1.835 | BU48: 7.111 | CD48: BRFM PC | CE48: 44.7 | CF48: 0.146 | CH48: BRFM PC | CI48: 44.7 | CJ48: 0.138 | CL48: BRFM PC | CM48: 44.7 | CN48: 0.143 | CP48: BRFQ PC | CQ48: 0 | CR48: 43.73929977
A49: BRFM PC | B49: 0.15 | C49: 0.152 | D49: 0 | E49: 0.147 | F49: 0.149 | G49: 0.144 | H49: 0.149 | I49: 0.146 | J49: 0.136 | K49: 0.146 | L49: 0.138 | M49: 0.143 | N49: 1.6 | R49: BRFM PC | S49: 0.176 | T49: 0.15 | V49: BRFM PC | W49: 0.168 | X49: 0.152 | Z49: BRFM PC | AA49: 0.161 | AB49: 0 | AD49: BRFM PC | AE49: 0.505 | AF49: 0.302 | AL49: BRFM PC | AM49: 0.158 | AN49: 0.147 | AP49: BRFM PC | AQ49: 0.168 | AR49: 0.149 | AT49: BRFM PC | AU49: 0.044 | AV49: 0.144 | AX49: BRFM PC | AY49: 0.37 | AZ49: 0.44 | BB49: IRP Variance | BC49: Docket No. 17-057-12 | BD49: Dominion Energy Utah | BG49: BRFM PC | BH49: 0.184 | BI49: 0.149 | BK49: BRFM PC | BL49: 0.17 | BM49: 0.146 | BO49: BRFM PC | BP49: 0.149 | BQ49: 0.136 | BS49: BRFM PC | BT49: 0.503 | BU49: 0.431 | CD49: BRFQ PC | CE49: 45.7 | CF49: 10.128 | CH49: BRFQ PC | CI49: 45.7 | CJ49: 9.756 | CL49: BRFQ PC | CM49: 45.7 | CN49: 10.035 | CP49: BRFQMT PC | CQ49: 0 | CR49: 10.74250007
A50: BRFQ PC | B50: 10.215 | C50: 10.506 | D50: 0 | E50: 10.074 | F50: 10.363 | G50: 9.981 | H50: 10.267 | I50: 10.221 | J50: 9.518 | K50: 10.128 | L50: 9.756 | M50: 10.035 | N50: 111.064 | R50: BRFQ PC | S50: 10.472 | T50: 10.215 | V50: BRFQ PC | W50: 8.539 | X50: 10.506 | Z50: BRFQ PC | AA50: 9.543 | AB50: 0 | AD50: BRFQ PC | AE50: 28.554 | AF50: 20.721 | AL50: BRFQ PC | AM50: 11.685 | AN50: 10.074 | AP50: BRFQ PC | AQ50: 8.679 | AR50: 10.363 | AT50: BRFQ PC | AU50: 11.098 | AV50: 9.981 | AX50: BRFQ PC | AY50: 31.462 | AZ50: 30.418 | BC50: 0 | BD50: 0 | BG50: BRFQ PC | BH50: 12.718 | BI50: 10.267 | BK50: BRFQ PC | BL50: 12.348 | BM50: 10.221 | BO50: BRFQ PC | BP50: 13.196 | BQ50: 9.518 | BS50: BRFQ PC | BT50: 38.262 | BU50: 30.006 | CD50: BRFQMT PC | CE50: 46.7 | CF50: 3.333 | CH50: BRFQMT PC | CI50: 46.7 | CJ50: 3.204 | CL50: BRFQMT PC | CM50: 46.7 | CN50: 3.286 | CP50: BRFW PC | CQ50: 0 | CR50: 30.49769974
A51: BRFQMT PC | B51: 3.432 | C51: 3.525 | D51: 3.5 | E51: 3.363 | F51: 3.45 | G51: 3.315 | H51: 3.404 | I51: 3.379 | J51: 3.141 | K51: 3.333 | L51: 3.204 | M51: 3.286 | N51: 40.332 | R51: BRFQMT PC | S51: 8.117 | T51: 3.432 | V51: BRFQMT PC | W51: 7.775 | X51: 3.525 | Z51: BRFQMT PC | AA51: 7.204 | AB51: 3.5 | AD51: BRFQMT PC | AE51: 23.096 | AF51: 10.457 | AH51: ='Ex 1 HDD'!I3 -> DEU Variance Exhibit | AI51: ='Ex 1 HDD'!I2 -> Docket No. 19-057-01 | AJ51: ='Ex 1 HDD'!I1 -> Dominion Energy Utah | AL51: BRFQMT PC | AM51: 7.536 | AN51: 3.363 | AP51: BRFQMT PC | AQ51: 7.22 | AR51: 3.45 | AT51: BRFQMT PC | AU51: 8.203 | AV51: 3.315 | AX51: BRFQMT PC | AY51: 22.959 | AZ51: 10.128 | BC51: 0 | BD51: 0 | BG51: BRFQMT PC | BH51: 7.719 | BI51: 3.404 | BK51: BRFQMT PC | BL51: 8.237 | BM51: 3.379 | BO51: BRFQMT PC | BP51: 7.151 | BQ51: 3.141 | BS51: BRFQMT PC | BT51: 23.107 | BU51: 9.924 | CD51: BRFW PC | CE51: 47.7 | CF51: 9.719 | CH51: BRFW PC | CI51: 47.7 | CJ51: 9.354 | CL51: BRFW PC | CM51: 47.7 | CN51: 9.613 | CP51: CBFR PC | CQ51: 0 | CR51: 171.4421997
A52: BRFW PC | B52: 9.885 | C52: 10.159 | D52: 0 | E52: 9.72 | F52: 9.988 | G52: 9.615 | H52: 9.88 | I52: 9.827 | J52: 9.144 | K52: 9.719 | L52: 9.354 | M52: 9.613 | N52: 106.904 | R52: BRFW PC | S52: 11.623 | T52: 9.885 | V52: BRFW PC | W52: 11.431 | X52: 10.159 | Z52: BRFW PC | AA52: 10.346 | AB52: 0 | AD52: BRFW PC | AE52: 33.4 | AF52: 20.044 | AL52: BRFW PC | AM52: 9.025 | AN52: 9.72 | AP52: BRFW PC | AQ52: 10.4 | AR52: 9.988 | AT52: BRFW PC | AU52: 10.048 | AV52: 9.615 | AX52: BRFW PC | AY52: 29.473 | AZ52: 29.323 | BC52: 0 | BD52: 0 | BG52: BRFW PC | BH52: 8.314 | BI52: 9.88 | BK52: BRFW PC | BL52: 8.169 | BM52: 9.827 | BO52: BRFW PC | BP52: 8.914 | BQ52: 9.144 | BS52: BRFW PC | BT52: 25.397 | BU52: 28.851 | BV52: QGC Variance Exhibit | BW52: Docket No. 15-057-07 | BX52: Questar Gas Company | CD52: BRUFF MT | CE52: 48.7 | CF52: 4.895 | CH52: BRUFF MT | CI52: 48.7 | CJ52: 4.71 | CL52: BRUFF MT | CM52: 48.7 | CN52: 4.836 | CP52: CCRUNIT PC | CQ52: 0 | CR52: 149.0542984
A53: BRUFF MT | B53: 5.013 | C53: 5.149 | D53: 0 | E53: 4.92 | F53: 5.053 | G53: 4.857 | H53: 4.988 | I53: 4.957 | J53: 4.608 | K53: 4.895 | L53: 4.71 | M53: 4.836 | N53: 53.986 | R53: BRUFF MT | S53: 9.843 | T53: 5.013 | V53: BRUFF MT | W53: 9.999 | X53: 5.149 | Z53: BRUFF MT | AA53: 9.057 | AB53: 0 | AD53: BRUFF MT | AE53: 28.899 | AF53: 10.162 | AL53: BRUFF MT | AM53: 9.681 | AN53: 4.92 | AP53: BRUFF MT | AQ53: 7.804 | AR53: 5.053 | AT53: BRUFF MT | AU53: 7.513 | AV53: 4.857 | AX53: BRUFF MT | AY53: 24.998 | AZ53: 14.83 | BC53: 0 | BD53: 0 | BG53: BRUFF MT | BH53: 5.919 | BI53: 4.988 | BK53: BRUFF MT | BL53: 4.602 | BM53: 4.957 | BO53: BRUFF MT | BP53: 4.527 | BQ53: 4.608 | BS53: BRUFF MT | BT53: 15.048 | BU53: 14.553 | CD53: CBFR PC | CF53: 54.414 | CH53: CBFR PC | CJ53: 52.188 | CL53: CBFR PC | CN53: 53.447 | CP53: CCRUNITMT PC | CQ53: 0 | CR53: 36.75720024
A54: CBFR PC | B54: 57.261 | C54: 58.602 | D54: 58.048 | E54: 55.647 | F54: 56.966 | G54: 54.618 | H54: 55.918 | I54: 55.409 | J54: 51.365 | K54: 54.414 | L54: 52.188 | M54: 53.447 | N54: 663.883 | R54: CBFR PC | S54: 70.67 | T54: 57.261 | V54: CBFR PC | W54: 66.564 | X54: 58.602 | Z54: CBFR PC | AA54: 69.017 | AB54: 58.048 | AD54: CBFR PC | AE54: 206.251 | AF54: 173.911 | AL54: CBFR PC | AM54: 62.407 | AN54: 55.647 | AP54: CBFR PC | AQ54: 64.733 | AR54: 56.966 | AT54: CBFR PC | AU54: 59.596 | AV54: 54.618 | AX54: CBFR PC | AY54: 186.736 | AZ54: 167.231 | BC54: 0 | BD54: 0 | BG54: CBFR PC | BH54: 62.478 | BI54: 55.918 | BK54: CBFR PC | BL54: 60.8 | BM54: 55.409 | BO54: CBFR PC | BP54: 58.379 | BQ54: 51.365 | BS54: CBFR PC | BT54: 181.657 | BU54: 162.692 | CD54: CCRUNIT MT | CE54: 49.7 | CF54: 58.305 | CH54: CCRUNIT MT | CI54: 49.7 | CJ54: 55.287 | CL54: CCRUNIT MT | CM54: 49.7 | CN54: 56.02 | CP54: CHBTC1 MT PC | CQ54: 0 | CR54: 10.51779985
A55: CCRUNIT MT | B55: 71.091 | C55: 71.179 | D55: 69.099 | E55: 65.025 | F55: 65.435 | G55: 61.746 | H55: 62.291 | I55: 60.875 | J55: 55.709 | K55: 58.305 | L55: 55.287 | M55: 56.02 | N55: 752.062 | R55: CCRUNIT MT | S55: =IFERROR(VLOOKUP(R55,$R$122:$S$216,2,FALSE),0)*O145 -> 76.39953483 | T55: 71.091 | V55: CCRUNIT MT | W55: =IFERROR(VLOOKUP(V55,$V$122:$W$216,2,FALSE),0)*O146 -> 74.0324319 | X55: 71.179 | Z55: CCRUNIT MT | AA55: =IFERROR(VLOOKUP(A55,$Z$122:$AA$216,2,FALSE),0)*O147 -> 71.40152308 | AB55: 69.099 | AD55: CCRUNIT MT | AE55: 221.8334898 | AF55: 211.369 | AL55: CCRUNIT MT | AM55: =IFERROR(VLOOKUP(AL55,$AL$122:$AM$212,2,FALSE),0)*O148 -> 64.59062419 | AN55: 65.025 | AP55: CCRUNIT MT | AQ55: =IFERROR(VLOOKUP(AP55,$AP$122:$AQ$221,2,FALSE),0)*O149 -> 58.94334285 | AR55: 65.435 | AT55: CCRUNIT MT | AU55: =IFERROR(VLOOKUP(AT55,$AT$122:$AU$214,2,FALSE),0)*O150 -> 62.01933427 | AV55: 61.746 | AX55: CCRUNIT MT | AY55: 185.5533013 | AZ55: 192.206 | BC55: 0 | BD55: 0 | BG55: CCRUNIT MT | BH55: =IFERROR(VLOOKUP($BG55,$BG$120:$BH$215,2,FALSE),0)*O151 -> 61.39613411 | BI55: 62.291 | BK55: CCRUNIT MT | BL55: =IFERROR(VLOOKUP($BK55,$BK$120:$BL$215,2,FALSE),0)*O152 -> 58.982147 | BM55: 60.875 | BO55: CCRUNIT MT | BP55: =IFERROR(VLOOKUP($BO55,$BO$120:$BP$215,2,FALSE),0)*O153 -> 55.09945989 | BQ55: 55.709 | BS55: CCRUNIT MT | BT55: 175.477741 | BU55: 178.875 | CD55: CCRUNIT PC | CE55: 50.7 | CF55: 57.362 | CH55: CCRUNIT PC | CI55: 50.7 | CJ55: 55.074 | CL55: CCRUNIT PC | CM55: 50.7 | CN55: 56.467 | CP55: CHBTCAT1 PC | CQ55: 0 | CR55: 127.5614014
A56: CCRUNIT PC | B56: 59.706 | C56: 61.188 | D56: 60.686 | E56: 58.248 | F56: 59.703 | G56: 57.312 | H56: 58.748 | I56: 58.28 | J56: 54.088 | K56: 57.362 | L56: 55.074 | M56: 56.467 | N56: 696.862 | R56: CCRUNIT PC | S56: =IFERROR(VLOOKUP(R56,$R$122:$S$216,2,FALSE),0) -> 59.336 | T56: 59.706 | V56: CCRUNIT PC | W56: =IFERROR(VLOOKUP(V56,$V$122:$W$216,2,FALSE),0) -> 59.475 | X56: 61.188 | Z56: CCRUNIT PC | AA56: =IFERROR(VLOOKUP(A56,$Z$122:$AA$216,2,FALSE),0) -> 56.155 | AB56: 60.686 | AD56: CCRUNIT PC | AE56: 174.966 | AF56: 181.58 | AL56: CCRUNIT PC | AM56: =IFERROR(VLOOKUP(AL56,$AL$122:$AM$212,2,FALSE),0) -> 48.936 | AN56: 58.248 | AP56: CCRUNIT PC | AQ56: =IFERROR(VLOOKUP(AP56,$AP$122:$AQ$221,2,FALSE),0) -> 40.509 | AR56: 59.703 | AT56: CCRUNIT PC | AU56: =IFERROR(VLOOKUP(AT56,$AT$122:$AU$214,2,FALSE),0) -> 56.772 | AV56: 57.312 | AX56: CCRUNIT PC | AY56: 146.217 | AZ56: 175.263 | BG56: CCRUNIT PC | BH56: =IFERROR(VLOOKUP($BG56,$BG$120:$BH$215,2,FALSE),0) -> 55.351 | BI56: 58.748 | BK56: CCRUNIT PC | BL56: =IFERROR(VLOOKUP($BK56,$BK$120:$BL$215,2,FALSE),0) -> 57.102 | BM56: 58.28 | BO56: CCRUNIT PC | BP56: =IFERROR(VLOOKUP($BO56,$BO$120:$BP$215,2,FALSE),0) -> 60.934 | BQ56: 54.088 | BS56: CCRUNIT PC | BT56: 173.387 | BU56: 171.116 | CD56: CCRUNITMT PC | CE56: 51.7 | CF56: 13.24 | CH56: CCRUNITMT PC | CI56: 51.7 | CJ56: 12.717 | CL56: CCRUNITMT PC | CM56: 51.7 | CN56: 13.042 | CP56: CHBTCAT2 PC | CQ56: 0 | CR56: 1.443399996
A57: CCRUNITMT PC | B57: 13.755 | C57: 14.096 | D57: 13.984 | E57: 13.425 | F57: 13.761 | G57: 13.215 | H57: 13.55 | I57: 13.445 | J57: 12.482 | K57: 13.24 | L57: 12.717 | M57: 13.042 | N57: =SUM(B57:M57) -> 160.712 | R57: CCRUNITMT PC | S57: 17.136 | T57: 13.755 | V57: CCRUNITMT PC | W57: 18.422 | X57: 14.096 | Z57: CCRUNITMT PC | AA57: 19.247 | AB57: 13.984 | AD57: CCRUNITMT PC | AE57: 54.805 | AF57: 41.835 | AL57: CCRUNITMT PC | AM57: 14.621 | AN57: 13.425 | AP57: CCRUNITMT PC | AQ57: 12.331 | AR57: 13.761 | AT57: CCRUNITMT PC | AU57: 18.015 | AV57: 13.215 | AX57: CCRUNITMT PC | AY57: 44.967 | AZ57: 40.401 | BB57: 9.1 | BG57: CCRUNITMT PC | BH57: 17.751 | BI57: 13.55 | BK57: CCRUNITMT PC | BL57: 18.222 | BM57: 13.445 | BO57: CCRUNITMT PC | BP57: 16.46 | BQ57: 12.482 | BS57: CCRUNITMT PC | BT57: 52.433 | BU57: 39.477 | CD57: CHBTC1 MT PC | CE57: 52.7 | CF57: 13.594 | CH57: CHBTC1 MT PC | CI57: 52.7 | CJ57: 12.792 | CL57: CHBTC1 MT PC | CM57: 52.7 | CN57: 12.871 | CP57: DRYPINY6 PC | CQ57: 0 | CR57: 3.045399964
A58: CHBTC1 MT PC | B58: 18.336 | C58: 18.079 | D58: 17.307 | E58: 16.08 | F58: 15.993 | G58: 14.928 | H58: 14.911 | I58: 14.437 | J58: 13.096 | K58: 13.594 | L58: 12.792 | M58: 12.871 | N58: 182.424 | R58: CHBTC1 MT PC | S58: 20.243 | T58: 18.336 | V58: CHBTC1 MT PC | W58: 19.425 | X58: 18.079 | Z58: CHBTC1 MT PC | AA58: 24.297 | AB58: 17.307 | AD58: CHBTC1 MT PC | AE58: 63.965 | AF58: 53.722 | AL58: CHBTC1 MT PC | AM58: 23.358 | AN58: 16.08 | AP58: CHBTC1 MT PC | AQ58: 22.472 | AR58: 15.993 | AT58: CHBTC1 MT PC | AU58: 22.08 | AV58: 14.928 | AX58: CHBTC1 MT PC | AY58: 67.91 | AZ58: 47.001 | BG58: CHBTC1 MT PC | BH58: 21.402 | BI58: 14.911 | BK58: CHBTC1 MT PC | BL58: 20.171 | BM58: 14.437 | BO58: CHBTC1 MT PC | BP58: 19.187 | BQ58: 13.096 | BS58: CHBTC1 MT PC | BT58: 60.76 | BU58: 42.444 | CD58: CHBTCAT1 PC | CE58: 53.7 | CF58: 37.516 | CH58: CHBTCAT1 PC | CI58: 53.7 | CJ58: 36.06 | CL58: CHBTCAT1 PC | CM58: 53.7 | CN58: 37.008 | CP58: DRYPINYU PC | CQ58: 0 | CR58: 37.82579994
A59: CHBTCAT1 PC | B59: 38.598 | C59: 39.612 | D59: 39.345 | E59: 37.818 | F59: 38.812 | G59: 37.305 | H59: 38.288 | I59: 38.028 | J59: 35.334 | K59: 37.516 | L59: 36.06 | M59: 37.008 | N59: 453.724 | R59: CHBTCAT1 PC | S59: 43.013 | T59: 38.598 | V59: CHBTCAT1 PC | W59: 30.925 | X59: 39.612 | Z59: CHBTCAT1 PC | AA59: 45.861 | AB59: 39.345 | AD59: CHBTCAT1 PC | AE59: 119.799 | AF59: 117.555 | AH59: 9.1 | AL59: CHBTCAT1 PC | AM59: 34.497 | AN59: 37.818 | AP59: CHBTCAT1 PC | AQ59: 57.41 | AR59: 38.812 | AT59: CHBTCAT1 PC | AU59: 49.787 | AV59: 37.305 | AX59: CHBTCAT1 PC | AY59: 141.694 | AZ59: 113.935 | BG59: CHBTCAT1 PC | BH59: 43.555 | BI59: 38.288 | BK59: CHBTCAT1 PC | BL59: 47.07 | BM59: 38.028 | BO59: CHBTCAT1 PC | BP59: 47.265 | BQ59: 35.334 | BS59: CHBTCAT1 PC | BT59: 137.89 | BU59: 111.65 | CD59: CHBTCAT2 PC | CE59: 54.7 | CF59: 0.484 | CH59: CHBTCAT2 PC | CI59: 54.7 | CJ59: 0.462 | CL59: CHBTCAT2 PC | CM59: 54.7 | CN59: 0.474 | CP59: FOGARTY PC | CQ59: 0 | CR59: 1.266499996
A60: CHBTCAT2 PC | B60: 0.51 | C60: 0.521 | D60: 0 | E60: 0.495 | F60: 0.508 | G60: 0.486 | H60: 0.496 | I60: 0.493 | J60: 0.455 | K60: 0.484 | L60: 0.462 | M60: 0.474 | N60: 5.384 | R60: CHBTCAT2 PC | S60: 2.149 | T60: 0.51 | V60: CHBTCAT2 PC | W60: 2.059 | X60: 0.521 | Z60: CHBTCAT2 PC | AA60: 2.556 | AB60: 0 | AD60: CHBTCAT2 PC | AE60: 6.764 | AF60: 1.031 | AL60: CHBTCAT2 PC | AM60: 0.322 | AN60: 0.495 | AP60: CHBTCAT2 PC | AQ60: 1.833 | AR60: 0.508 | AT60: CHBTCAT2 PC | AU60: 2.475 | AV60: 0.486 | AX60: CHBTCAT2 PC | AY60: 4.63 | AZ60: 1.489 | BG60: CHBTCAT2 PC | BH60: 2.326 | BI60: 0.496 | BK60: CHBTCAT2 PC | BL60: 2.277 | BM60: 0.493 | BO60: CHBTCAT2 PC | BP60: 1.94 | BQ60: 0.455 | BS60: CHBTCAT2 PC | BT60: 6.543 | BU60: 1.444 | CD60: DRYPINY6 PC | CE60: 55.7 | CF60: 1.051 | CH60: DRYPINY6 PC | CI60: 55.7 | CJ60: 1.011 | CL60: DRYPINY6 PC | CM60: 55.7 | CN60: 1.042 | CP60: HWA DEEP PC | CQ60: 0 | CR60: 5.185199976
A61: DRYPINY6 PC | B61: 1.056 | C61: 1.088 | D61: 0 | E61: 1.044 | F61: 1.073 | G61: 1.035 | H61: 1.063 | I61: 1.06 | J61: 0.986 | K61: 1.051 | L61: 1.011 | M61: 1.042 | N61: 11.509 | R61: DRYPINY6 PC | S61: 1.158 | T61: 1.056 | V61: DRYPINY6 PC | W61: 1.282 | X61: 1.088 | Z61: DRYPINY6 PC | AA61: 1.272 | AB61: 0 | AD61: DRYPINY6 PC | AE61: 3.712 | AF61: 2.144 | AL61: DRYPINY6 PC | AM61: 1.226 | AN61: 1.044 | AP61: DRYPINY6 PC | AQ61: 1.245 | AR61: 1.073 | AT61: DRYPINY6 PC | AU61: 1.26 | AV61: 1.035 | AX61: DRYPINY6 PC | AY61: 3.731 | AZ61: 3.152 | BG61: DRYPINY6 PC | BH61: 1.193 | BI61: 1.063 | BK61: DRYPINY6 PC | BL61: 1.226 | BM61: 1.06 | BO61: DRYPINY6 PC | BP61: 1.094 | BQ61: 0.986 | BS61: DRYPINY6 PC | BT61: 3.513 | BU61: 3.109 | BW61: 9.1 | CD61: DRYPINYU PC | CE61: 56.7 | CF61: 12.71 | CH61: DRYPINYU PC | CI61: 56.7 | CJ61: 12.225 | CL61: DRYPINYU PC | CM61: 56.7 | CN61: 12.555 | CP61: HWPL1&3MTPC | CQ61: 0 | CR61: 21.44340038
A62: DRYPINYU PC | B62: 12.999 | C62: 13.349 | D62: 0 | E62: 12.762 | F62: 13.107 | G62: 12.606 | H62: 12.946 | I62: 12.865 | J62: 11.963 | K62: 12.71 | L62: 12.225 | M62: 12.555 | N62: 140.087 | R62: DRYPINYU PC | S62: 5.429 | T62: 12.999 | V62: DRYPINYU PC | W62: 5.719 | X62: 13.349 | Z62: DRYPINYU PC | AA62: 6.464 | AB62: 0 | AD62: DRYPINYU PC | AE62: 17.612 | AF62: 26.348 | AL62: DRYPINYU PC | AM62: 7.038 | AN62: 12.762 | AP62: DRYPINYU PC | AQ62: 6.509 | AR62: 13.107 | AT62: DRYPINYU PC | AU62: 9.889 | AV62: 12.606 | AX62: DRYPINYU PC | AY62: 23.436 | AZ62: 38.475 | BG62: DRYPINYU PC | BH62: 9.672 | BI62: 12.946 | BK62: DRYPINYU PC | BL62: 10.54 | BM62: 12.865 | BO62: DRYPINYU PC | BP62: 8.962 | BQ62: 11.963 | BS62: DRYPINYU PC | BT62: 29.174 | BU62: 37.774 | CD62: FOGARTY PC | CE62: 57.7 | CF62: 0.502 | CH62: FOGARTY PC | CI62: 57.7 | CJ62: 0.483 | CL62: FOGARTY PC | CM62: 57.7 | CN62: 0.496 | CP62: HWPLT1&3 PC | CQ62: 0 | CR62: 181.0788994
A63: FOGARTY PC | B63: 0.528 | C63: 0.539 | D63: 0 | E63: 0.513 | F63: 0.527 | G63: 0.504 | H63: 0.518 | I63: 0.512 | J63: 0.476 | K63: 0.502 | L63: 0.483 | M63: 0.496 | N63: 5.598 | R63: FOGARTY PC | S63: 0.923 | T63: 0.528 | V63: FOGARTY PC | W63: 1.478 | X63: 0.539 | Z63: FOGARTY PC | AA63: 1.473 | AB63: 0 | AD63: FOGARTY PC | AE63: 3.874 | AF63: 1.067 | AL63: FOGARTY PC | AM63: 0.85 | AN63: 0.513 | AP63: FOGARTY PC | AQ63: 0.83 | AR63: 0.527 | AT63: FOGARTY PC | AU63: 0 | AV63: 0.504 | AX63: FOGARTY PC | AY63: 1.68 | AZ63: 1.544 | BG63: FOGARTY PC | BH63: 0 | BI63: 0.518 | BK63: FOGARTY PC | BL63: 0 | BM63: 0.512 | BO63: FOGARTY PC | BP63: 0 | BQ63: 0.476 | BS63: FOGARTY PC | BT63: 0 | BU63: 1.506 | CD63: HWA DEEP PC | CE63: 58.7 | CF63: 1.618 | CH63: HWA DEEP PC | CI63: 58.7 | CJ63: 1.557 | CL63: HWA DEEP PC | CM63: 58.7 | CN63: 1.6 | CP63: HWPLT2 PC | CQ63: 0 | CR63: 2.820700049
A64: HWA DEEP PC | B64: 1.662 | C64: 1.705 | D64: 1.696 | E64: 1.629 | F64: 1.674 | G64: 1.608 | H64: 1.652 | I64: 1.64 | J64: 1.525 | K64: 1.618 | L64: 1.557 | M64: 1.6 | N64: 19.566 | R64: HWA DEEP PC | S64: 0.164 | T64: 1.662 | V64: HWA DEEP PC | W64: 1.16 | X64: 1.705 | Z64: =R64 -> HWA DEEP PC | AA64: 1.044 | AB64: 1.696 | AD64: HWA DEEP PC | AE64: 2.368 | AF64: 5.063 | AL64: HWA DEEP PC | AM64: 0.449 | AN64: 1.629 | AP64: HWA DEEP PC | AQ64: 0.279 | AR64: 1.674 | AT64: HWA DEEP PC | AU64: 0.241 | AV64: 1.608 | AX64: HWA DEEP PC | AY64: 0.969 | AZ64: 4.911 | BG64: HWA DEEP PC | BH64: 0.023 | BI64: 1.652 | BK64: HWA DEEP PC | BL64: 0.19 | BM64: 1.64 | BO64: HWA DEEP PC | BP64: 0.145 | BQ64: 1.525 | BS64: HWA DEEP PC | BT64: 0.358 | BU64: 4.817 | CD64: HWPL1&3MTPC | CE64: 59.7 | CF64: 6.693 | CH64: HWPL1&3MTPC | CI64: 59.7 | CJ64: 6.426 | CL64: HWPL1&3MTPC | CM64: 59.7 | CN64: 6.588 | CP64: ISLAND PC | CQ64: 0 | CR64: 2.382499993
A65: HWPL1&3MTPC | B65: 6.957 | C65: 7.133 | D65: 7.077 | E65: 6.795 | F65: 6.966 | G65: 6.687 | H65: 6.854 | I65: 6.801 | J65: 6.31 | K65: 6.693 | L65: 6.426 | M65: 6.588 | N65: 81.287 | R65: HWPL1&3MTPC | S65: 7.324 | T65: 6.957 | V65: HWPL1&3MTPC | W65: 6.546 | X65: 7.133 | Z65: HWPL1&3MTPC | AA65: 6.598 | AB65: 7.077 | AD65: HWPL1&3MTPC | AE65: 20.468 | AF65: 21.167 | AL65: HWPL1&3MTPC | AM65: 6.113 | AN65: 6.795 | AP65: HWPL1&3MTPC | AQ65: 7.614 | AR65: 6.966 | AT65: HWPL1&3MTPC | AU65: 7.283 | AV65: 6.687 | AX65: HWPL1&3MTPC | AY65: 21.01 | AZ65: 20.448 | BG65: HWPL1&3MTPC | BH65: 7.87 | BI65: 6.854 | BK65: HWPL1&3MTPC | BL65: 7.623 | BM65: 6.801 | BO65: HWPL1&3MTPC | BP65: 7.185 | BQ65: 6.31 | BS65: HWPL1&3MTPC | BT65: 22.678 | BU65: 19.965 | CD65: HWPLT1&3 PC | CE65: 60.7 | CF65: 55.856 | CH65: HWPLT1&3 PC | CI65: 60.7 | CJ65: 53.652 | CL65: HWPLT1&3 PC | CM65: 60.7 | CN65: 55.028 | CP65: JNSNRDG PC | CQ65: 0 | CR65: 7.78030014
A66: HWPLT1&3 PC | B66: 57.915 | C66: 59.381 | D66: 0 | E66: 56.577 | F66: 58.017 | G66: 55.716 | H66: 57.136 | I66: 56.705 | J66: 52.647 | K66: 55.856 | L66: 53.652 | M66: 55.028 | N66: 618.63 | R66: HWPLT1&3 PC | S66: 62.687 | T66: 57.915 | V66: HWPLT1&3 PC | W66: 51.482 | X66: 59.381 | Z66: HWPLT1&3 PC | AA66: 50.115 | AB66: 0 | AD66: HWPLT1&3 PC | AE66: 164.284 | AF66: 117.296 | AL66: HWPLT1&3 PC | AM66: 51.958 | AN66: 56.577 | AP66: HWPLT1&3 PC | AQ66: 64.43 | AR66: 58.017 | AT66: HWPLT1&3 PC | AU66: 63.344 | AV66: 55.716 | AX66: HWPLT1&3 PC | AY66: 179.732 | AZ66: 170.31 | BG66: HWPLT1&3 PC | BH66: 64.337 | BI66: 57.136 | BK66: HWPLT1&3 PC | BL66: 62.476 | BM66: 56.705 | BO66: HWPLT1&3 PC | BP66: 56.318 | BQ66: 52.647 | BS66: HWPLT1&3 PC | BT66: 183.131 | BU66: 166.488 | CD66: HWPLT2 PC | CE66: 61.7 | CF66: 0.791 | CH66: HWPLT2 PC | CI66: 61.7 | CJ66: 0.759 | CL66: HWPLT2 PC | CM66: 61.7 | CN66: 0.778 | CP66: KNY FLD PC | CQ66: 0 | CR66: 12.9630003
A67: HWPLT2 PC | B67: 0.831 | C67: 0.849 | D67: 0.843 | E67: 0.807 | F67: 0.828 | G67: 0.795 | H67: 0.812 | I67: 0.806 | J67: 0.745 | K67: 0.791 | L67: 0.759 | M67: 0.778 | N67: 9.644 | R67: HWPLT2 PC | S67: 0.81 | T67: 0.831 | V67: HWPLT2 PC | W67: 0.697 | X67: 0.849 | Z67: HWPLT2 PC | AA67: 0.759 | AB67: 0.843 | AD67: HWPLT2 PC | AE67: 2.266 | AF67: 2.523 | AL67: HWPLT2 PC | AM67: 0.932 | AN67: 0.807 | AP67: HWPLT2 PC | AQ67: 0.804 | AR67: 0.828 | AT67: HWPLT2 PC | AU67: 0.77 | AV67: 0.795 | AX67: HWPLT2 PC | AY67: 2.506 | AZ67: 2.43 | BG67: HWPLT2 PC | BH67: 0.593 | BI67: 0.812 | BK67: HWPLT2 PC | BL67: 0.725 | BM67: 0.806 | BO67: HWPLT2 PC | BP67: 0.762 | BQ67: 0.745 | BS67: HWPLT2 PC | BT67: 2.08 | BU67: 2.363 | CD67: ISLAND PC | CE67: 62.7 | CF67: 0 | CH67: ISLAND PC | CI67: 62.7 | CJ67: 0 | CL67: ISLAND PC | CM67: 62.7 | CN67: 0 | CP67: MDBXCOMP PC | CQ67: 0 | CR67: 0.6420999914
A68: ISLAND PC | B68: 0.612 | C68: 0.626 | D68: 0 | E68: 0.007 | F68: 0 | G68: 0.597 | H68: 0.617 | I68: 0.617 | J68: 0 | K68: 0 | L68: 0 | M68: 0 | N68: 3.076 | R68: ISLAND PC | S68: 0.839 | T68: 0.612 | V68: ISLAND PC | W68: 0.812 | X68: 0.626 | Z68: ISLAND PC | AA68: 0.734 | AB68: 0 | AD68: ISLAND PC | AE68: 2.385 | AF68: 1.238 | AL68: ISLAND PC | AM68: 0.681 | AN68: 0.007 | AP68: ISLAND PC | AQ68: 0.593 | AR68: 0 | AT68: ISLAND PC | AU68: 0.655 | AV68: 0.597 | AX68: ISLAND PC | AY68: 1.929 | AZ68: 0.604 | BG68: ISLAND PC | BH68: 0.553 | BI68: 0.617 | BK68: ISLAND PC | BL68: 0.558 | BM68: 0.617 | BO68: ISLAND PC | BP68: 0.616 | BQ68: 0 | BS68: ISLAND PC | BT68: 1.727 | BU68: 1.234 | CD68: JNSNRDG PC | CE68: 63.7 | CF68: 2.44 | CH68: JNSNRDG PC | CI68: 63.7 | CJ68: 2.352 | CL68: JNSNRDG PC | CM68: 63.7 | CN68: 2.418 | CP68: MOSUMT PC | CQ68: 0 | CR68: 36.07250023
A69: JNSNRDG PC | B69: 2.451 | C69: 2.523 | D69: 0 | E69: 2.421 | F69: 2.492 | G69: 2.4 | H69: 2.471 | I69: 2.461 | J69: 2.291 | K69: 2.44 | L69: 2.352 | M69: 2.418 | N69: 26.72 | R69: JNSNRDG PC | S69: 2.501 | T69: 2.451 | V69: JNSNRDG PC | W69: 2.846 | X69: 2.523 | Z69: JNSNRDG PC | AA69: 2.814 | AB69: 0 | AD69: JNSNRDG PC | AE69: 8.161 | AF69: 4.974 | AL69: JNSNRDG PC | AM69: 2.748 | AN69: 2.421 | AP69: JNSNRDG PC | AQ69: 2.721 | AR69: 2.492 | AT69: JNSNRDG PC | AU69: 2.459 | AV69: 2.4 | AX69: JNSNRDG PC | AY69: 7.928 | AZ69: 7.313 | BG69: JNSNRDG PC | BH69: 0.321 | BI69: 2.471 | BK69: JNSNRDG PC | BL69: 0 | BM69: 2.461 | BO69: JNSNRDG PC | BP69: 0 | BQ69: 2.291 | BS69: JNSNRDG PC | BT69: 0.321 | BU69: 7.223 | CD69: KNY FLD PC | CE69: 64.7 | CF69: 5.211 | CH69: KNY FLD PC | CI69: 64.7 | CJ69: 5.013 | CL69: KNY FLD PC | CM69: 64.7 | CN69: 5.146 | CP69: NBXCAMP PC | CQ69: 0 | CR69: 12.01710033
A70: KNY FLD PC | B70: 5.334 | C70: 5.478 | D70: 0 | E70: 5.235 | F70: 5.375 | G70: 5.169 | H70: 5.31 | I70: 5.276 | J70: 4.904 | K70: 5.211 | L70: 5.013 | M70: 5.146 | N70: 57.451 | R70: KNY FLD PC | S70: 1.86 | T70: =IFERROR(VLOOKUP(R70,$A$6:$M$125,2,FALSE),"") -> 5.334 | V70: KNY FLD PC | W70: 0 | X70: =IFERROR(VLOOKUP(V70,$A$6:$M$125,3,FALSE),"") -> 5.478 | Z70: KNY FLD PC | AA70: 5.069 | AB70: 0 | AD70: KNY FLD PC | AE70: 6.929 | AF70: 10.812 | AL70: KNY FLD PC | AM70: 4.658 | AN70: =IFERROR(VLOOKUP(AL70,$A$6:$M$125,5,FALSE),"") -> 5.235 | AP70: KNY FLD PC | AQ70: 2.981 | AR70: =IFERROR(VLOOKUP($AP70,$A$6:$M$125,6,FALSE),"") -> 5.375 | AT70: KNY FLD PC | AU70: 3.342 | AV70: =IFERROR(VLOOKUP($AT70,$A$6:$M$125,7,FALSE),"") -> 5.169 | AX70: KNY FLD PC | AY70: 10.981 | AZ70: 15.779 | BG70: KNY FLD PC | BH70: 4.775 | BI70: =IFERROR(VLOOKUP($BG70,$A$6:$M$125,8,FALSE),"") -> 5.31 | BK70: KNY FLD PC | BL70: 3.888 | BM70: =IFERROR(VLOOKUP($BK70,$A$6:$M$125,9,FALSE),"") -> 5.276 | BO70: =A70 -> KNY FLD PC | BP70: 3.053 | BQ70: =IFERROR(VLOOKUP($BO70,$A$6:$M$125,10,FALSE),0) -> 4.904 | BS70: =A70 -> KNY FLD PC | BT70: =SUM(BH70,BL70,BP70) -> 11.716 | BU70: =SUM(BI70,BM70,BQ70) -> 15.49 | CD70: MDBXCOMP PC | CE70: 65.7 | CF70: 0.099 | CH70: MDBXCOMP PC | CI70: 65.7 | CJ70: 0.102 | CL70: MDBXCOMP PC | CM70: 65.7 | CN70: 0.112 | CP70: NOBXFLD PC | CQ70: 0 | CR70: 7.217000246
A71: MDBXCOMP PC | B71: 0.045 | C71: 0.053 | D71: 0 | E71: 0.063 | F71: 0.071 | G71: 0.075 | H71: 0.084 | I71: 0.087 | J71: 0.087 | K71: 0.099 | L71: 0.102 | M71: 0.112 | N71: 0.878 | R71: MDBXCOMP PC | S71: 0 | T71: 0.045 | V71: MDBXCOMP PC | W71: 0 | X71: 0.053 | Z71: MDBXCOMP PC | AA71: 0 | AB71: 0 | AD71: MDBXCOMP PC | AE71: =SUM(S71,W71,AA71) -> 0 | AF71: =SUM(T71,X71,AB71) -> 0.098 | AL71: =AD71 -> MDBXCOMP PC | AM71: 0 | AN71: 0.063 | AP71: =AL71 -> MDBXCOMP PC | AQ71: 0 | AR71: 0.071 | AT71: MDBXCOMP PC | AU71: 0 | AV71: 0.075 | AX71: MDBXCOMP PC | AY71: 0 | AZ71: 0.209 | BG71: MDBXCOMP PC | BH71: 0 | BI71: 0.084 | BK71: MDBXCOMP PC | BL71: 0 | BM71: 0.087 | BO71: MDBXCOMP PC | BP71: 0 | BQ71: 0.087 | BS71: MDBXCOMP PC | BT71: 0 | BU71: 0.258 | CD71: MOSUMT PC | CE71: 66.7 | CF71: 12.431 | CH71: MOSUMT PC | CI71: 66.7 | CJ71: 11.94 | CL71: MOSUMT PC | CM71: 66.7 | CN71: 12.242 | CP71: PDW1A1B PC | CQ71: 0 | CR71: 49.55020142
A72: MOSUMT PC | B72: 12.891 | C72: 13.218 | D72: 13.116 | E72: 12.597 | F72: 12.918 | G72: 12.405 | H72: 12.719 | I72: 12.623 | J72: 11.719 | K72: 12.431 | L72: 11.94 | M72: 12.242 | N72: 150.819 | R72: MOSUMT PC | S72: 13.212 | T72: 12.891 | V72: MOSUMT PC | W72: 11.187 | X72: 13.218 | Z72: MOSUMT PC | AA72: 12.137 | AD72: MOSUMT PC | AE72: 36.536 | AF72: 26.109 | AL72: MOSUMT PC | AM72: 11.953 | AN72: 12.597 | AP72: MOSUMT PC | AQ72: 10.986 | AR72: 12.918 | AT72: =AP72 -> MOSUMT PC | AU72: 9.922 | AV72: 12.405 | AX72: =AT72 -> MOSUMT PC | AY72: =SUM(AM72,AQ72,AU72) -> 32.861 | AZ72: =SUM(AN72,AR72,AV72) -> 37.92 | BG72: MOSUMT PC | BH72: 11.259 | BI72: 12.719 | BK72: MOSUMT PC | BL72: 12.335 | BM72: 12.623 | BO72: MOSUMT PC | BP72: 6.488 | BQ72: 11.719 | BS72: MOSUMT PC | BT72: 30.082 | BU72: 37.061
A73: NBXCAMP PC | B73: 0 | C73: 0 | D73: 0 | E73: 0 | F73: 0.074 | G73: 0.147 | H73: 0.226 | I73: 0.304 | J73: 0.354 | K73: 0.453 | L73: 0.51 | M73: 0.605 | N73: 2.673 | R73: =A73 -> NBXCAMP PC | S73: 0 | T73: 0 | V73: =R73 -> NBXCAMP PC | W73: 0 | X73: 0 | Z73: =R73 -> NBXCAMP PC | AA73: 0 | AB73: =IFERROR(VLOOKUP(Z73,$A$6:$M$125,4,FALSE),"") -> 0 | AD73: =R73 -> NBXCAMP PC | AE73: 0 | AF73: 0 | AL73: NBXCAMP PC | AM73: 0 | AN73: 0 | AP73: NBXCAMP PC | AQ73: 0 | AR73: 0.074 | AT73: NBXCAMP PC | AU73: 0 | AV73: 0.147 | AX73: NBXCAMP PC | AY73: 0 | AZ73: 0.221 | BG73: =R73 -> NBXCAMP PC | BH73: 0 | BI73: 0.226 | BK73: NBXCAMP PC | BL73: 0 | BM73: 0.304 | BO73: NBXCAMP PC | BP73: 0 | BQ73: 0.354 | BS73: NBXCAMP PC | BT73: 0 | BU73: 0.884 | CD73: =A74 -> NOBXFLD PC | CE73: 67.7 | CF73: =IFERROR(VLOOKUP($A74,$A$6:$M$125,11,FALSE),"") -> 0.285 | CH73: =A74 -> NOBXFLD PC | CI73: 67.7 | CJ73: =IFERROR(VLOOKUP($A74,$A$6:$M$125,12,FALSE),"") -> 0.321 | CL73: =A74 -> NOBXFLD PC | CM73: 67.7 | CN73: =IFERROR(VLOOKUP($A74,$A$6:$M$125,13,FALSE),"") -> 0.378 | CP73: PDWCUT PC | CQ73: 0 | CR73: 10.39709997
A74: NOBXFLD PC | B74: 0 | C74: 0 | D74: 0 | E74: 0 | F74: 0.047 | G74: 0.093 | H74: 0.143 | I74: 0.189 | J74: 0.223 | K74: 0.285 | L74: 0.321 | M74: 0.378 | N74: 1.679 | R74: NOBXFLD PC | S74: 0 | T74: 0 | V74: NOBXFLD PC | W74: 0 | X74: 0 | Z74: NOBXFLD PC | AA74: 0 | AB74: 0 | AD74: NOBXFLD PC | AE74: 0 | AF74: 0 | AL74: NOBXFLD PC | AM74: 0 | AN74: 0 | AP74: NOBXFLD PC | AQ74: 0 | AR74: 0.047 | AT74: NOBXFLD PC | AU74: 0 | AV74: 0.093 | AX74: NOBXFLD PC | AY74: 0 | AZ74: 0.14 | BG74: NOBXFLD PC | BH74: 0 | BI74: 0.143 | BK74: NOBXFLD PC | BL74: 0 | BM74: 0.189 | BO74: NOBXFLD PC | BP74: 0 | BQ74: 0.223 | BS74: NOBXFLD PC | BT74: 0 | BU74: 0.555 | CD74: PDW1A1B PC | CE74: 68.7 | CF74: 1.07 | CH74: PDW1A1B PC | CI74: 68.7 | CJ74: 1.026 | CL74: PDW1A1B PC | CM74: 68.7 | CN74: 1.054 | CP74: PDWPLT2 PC | CQ74: 0 | CR74: 58.49489975
A75: PDW1A1B PC | B75: 1.101 | C75: 1.132 | D75: 0 | E75: 1.08 | F75: 1.107 | G75: 1.065 | H75: 1.091 | I75: 1.085 | J75: 1.006 | K75: 1.07 | L75: 1.026 | M75: 1.054 | N75: 11.817 | R75: PDW1A1B PC | S75: 1.476 | T75: 1.101 | V75: PDW1A1B PC | W75: 1.044 | X75: 1.132 | Z75: PDW1A1B PC | AA75: 1.738 | AB75: 0 | AD75: PDW1A1B PC | AE75: 4.258 | AF75: 2.233 | AL75: PDW1A1B PC | AM75: 1.84 | AN75: 1.08 | AP75: PDW1A1B PC | AQ75: 1.666 | AR75: 1.107 | AT75: PDW1A1B PC | AU75: 1.346 | AV75: 1.065 | AX75: PDW1A1B PC | AY75: 4.852 | AZ75: 3.252 | BG75: PDW1A1B PC | BH75: 1.206 | BI75: 1.091 | BK75: PDW1A1B PC | BL75: 0.84 | BM75: 1.085 | BO75: PDW1A1B PC | BP75: 0.314 | BQ75: 1.006 | BS75: PDW1A1B PC | BT75: 2.36 | BU75: 3.182 | CD75: PDW1A1B MT PC | CE75: 69.7 | CF75: 5.152 | CH75: PDW1A1B MT PC | CI75: 69.7 | CJ75: 4.962 | CL75: PDW1A1B MT PC | CM75: 69.7 | CN75: 5.103 | CP75: PDWPLT3 PC | CQ75: 0 | CR75: 27.73690033
A76: PDW1A1B MT PC | B76: 5.208 | C76: 5.354 | D76: 5.329 | E76: 5.133 | F76: 5.279 | G76: 5.082 | H76: 5.227 | I76: 5.202 | J76: 4.843 | K76: 5.152 | L76: 4.962 | M76: 5.103 | N76: 61.874 | R76: PDW1A1B MT PC | S76: 3.584 | T76: 5.208 | V76: PDW1A1B MT PC | W76: 3.804 | X76: 5.354 | Z76: PDW1A1B MT PC | AA76: 3.924 | AB76: 5.329 | AD76: PDW1A1B MT PC | AE76: 11.312 | AF76: 15.891 | AL76: PDW1A1B MT PC | AM76: 3.668 | AN76: 5.133 | AP76: PDW1A1B MT PC | AQ76: 3.957 | AR76: 5.279 | AT76: PDW1A1B MT PC | AU76: 3.534 | AV76: 5.082 | AX76: PDW1A1B MT PC | AY76: 11.159 | AZ76: 15.494 | BG76: PDW1A1B MT PC | BH76: 0.746 | BI76: 5.227 | BK76: =R76 -> PDW1A1B MT PC | BL76: 2.719 | BM76: 5.202 | BO76: PDW1A1B MT PC | BP76: 3.448 | BQ76: 4.843 | BS76: PDW1A1B MT PC | BT76: 6.913 | BU76: 15.272 | CD76: PDWCUT PC | CE76: 70.7 | CF76: 0.645 | CH76: PDWCUT PC | CI76: 70.7 | CJ76: 0.621 | CL76: PDWCUT PC | CM76: 70.7 | CN76: 0.639 | CP76: SGRLF PC | CQ76: 0 | CR76: 106.3186989
A77: PDWCUT PC | B77: 0.645 | C77: 0.663 | D77: 0.66 | E77: 0.636 | F77: 0.657 | G77: 0.633 | H77: 0.651 | I77: 0.648 | J77: 0.603 | K77: 0.645 | L77: 0.621 | M77: 0.639 | N77: 7.701 | R77: PDWCUT PC | S77: 1.164 | T77: 0.645 | V77: PDWCUT PC | W77: 1.258 | X77: 0.663 | Z77: PDWCUT PC | AA77: 1.596 | AB77: 0.66 | AD77: PDWCUT PC | AE77: 4.018 | AF77: 1.968 | AL77: PDWCUT PC | AM77: 1.404 | AN77: 0.636 | AP77: PDWCUT PC | AQ77: 1.184 | AR77: 0.657 | AT77: PDWCUT PC | AU77: 0.65 | AV77: 0.633 | AX77: PDWCUT PC | AY77: 3.238 | AZ77: 1.926 | BG77: PDWCUT PC | BH77: 0.001 | BI77: 0.651 | BK77: PDWCUT PC | BL77: 0 | BM77: 0.648 | BO77: PDWCUT PC | BP77: 0 | BQ77: 0.603 | BS77: PDWCUT PC | BT77: 0.001 | BU77: 1.902 | CD77: PDWPLT2 PC | CE77: 71.7 | CF77: 4.424 | CH77: PDWPLT2 PC | CI77: 71.7 | CJ77: 4.26 | CL77: PDWPLT2 PC | CM77: 71.7 | CN77: 4.38 | CP77: TRAIL PC | CQ77: 0 | CR77: 3.342700005
A78: PDWPLT2 PC | B78: 4.467 | C78: 4.594 | D78: 4.573 | E78: 4.404 | F78: 4.529 | G78: 4.362 | H78: 4.486 | I78: 4.464 | J78: 4.156 | K78: 4.424 | L78: 4.26 | M78: 4.38 | N78: 53.099 | R78: PDWPLT2 PC | S78: 5.813 | T78: 4.467 | V78: PDWPLT2 PC | W78: 7.076 | X78: 4.594 | Z78: PDWPLT2 PC | AA78: 5.816 | AB78: 4.573 | AD78: PDWPLT2 PC | AE78: 18.705 | AF78: 13.634 | AL78: PDWPLT2 PC | AM78: 5.336 | AN78: 4.404 | AP78: PDWPLT2 PC | AQ78: 6.008 | AR78: 4.529 | AT78: PDWPLT2 PC | AU78: 4.738 | AV78: 4.362 | AX78: PDWPLT2 PC | AY78: 16.082 | AZ78: 13.295 | BG78: PDWPLT2 PC | BH78: 4.775 | BI78: 4.486 | BK78: PDWPLT2 PC | BL78: 5.319 | BM78: 4.464 | BO78: PDWPLT2 PC | BP78: 3.71 | BQ78: 4.156 | BS78: PDWPLT2 PC | BT78: 13.804 | BU78: 13.106 | CD78: PDWPLT3 PC | CE78: 72.7 | CF78: 5.49 | CH78: PDWPLT3 PC | CI78: 72.7 | CJ78: 5.289 | CL78: PDWPLT3 PC | CM78: 72.7 | CN78: 5.437 | CP78: WHLA PC | CQ78: 0 | CR78: 26.20359993
A79: PDWPLT3 PC | B79: 5.547 | C79: 5.707 | D79: 5.679 | E79: 5.469 | F79: 5.623 | G79: 5.415 | H79: 5.571 | I79: 5.543 | J79: 5.162 | K79: 5.49 | L79: 5.289 | M79: 5.437 | N79: 65.932 | R79: PDWPLT3 PC | S79: 5.67 | T79: 5.547 | V79: PDWPLT3 PC | W79: 5.139 | X79: 5.707 | Z79: PDWPLT3 PC | AA79: 5.749 | AB79: 5.679 | AD79: PDWPLT3 PC | AE79: 16.558 | AF79: 16.933 | AL79: PDWPLT3 PC | AM79: 4.793 | AN79: 5.469 | AP79: PDWPLT3 PC | AQ79: 4.626 | AR79: 5.623 | AT79: PDWPLT3 PC | AU79: 4.503 | AV79: 5.415 | AX79: PDWPLT3 PC | AY79: 13.922 | AZ79: 16.507 | BG79: PDWPLT3 PC | BH79: 3.696 | BI79: 5.571 | BK79: PDWPLT3 PC | BL79: 3.805 | BM79: 5.543 | BO79: PDWPLT3 PC | BP79: 3.664 | BQ79: 5.162 | BS79: PDWPLT3 PC | BT79: 11.165 | BU79: 16.276 | CD79: SGRLF PC | CE79: 73.7 | CF79: 34.881 | CH79: SGRLF PC | CI79: 73.7 | CJ79: 33.471 | CL79: SGRLF PC | CM79: 73.7 | CN79: 34.298 | CP79: WWILSON PC | CQ79: 0 | CR79: 42.77359962
A80: SGRLF PC | B80: 36.615 | C80: 37.476 | D80: 37.126 | E80: 35.598 | F80: 36.45 | G80: 34.959 | H80: 35.805 | I80: 35.492 | J80: 32.915 | K80: 34.881 | L80: 33.471 | M80: 34.298 | N80: 425.086 | R80: SGRLF PC | S80: 41.673 | T80: 36.615 | V80: SGRLF PC | W80: 40.914 | X80: 37.476 | Z80: SGRLF PC | AA80: 42.406 | AB80: 37.126 | AD80: SGRLF PC | AE80: 124.993 | AF80: 111.217 | AL80: SGRLF PC | AM80: 40.141 | AN80: 35.598 | AP80: SGRLF PC | AQ80: 37.679 | AR80: 36.45 | AT80: SGRLF PC | AU80: 36.821 | AV80: 34.959 | AX80: SGRLF PC | AY80: 114.641 | AZ80: 107.007 | BG80: SGRLF PC | BH80: 34.442 | BI80: 35.805 | BK80: SGRLF PC | BL80: 37.392 | BM80: 35.492 | BO80: SGRLF PC | BP80: 33.484 | BQ80: 32.915 | BS80: SGRLF PC | BT80: 105.318 | BU80: 104.212 | CD80: TRAIL PC | CE80: 74.7 | CF80: 1.287 | CH80: TRAIL PC | CI80: 74.7 | CJ80: 1.236 | CL80: TRAIL PC | CM80: 74.7 | CN80: 1.268 | CP80: DRYPINYU PW | CQ80: 0 | CR80: 1.629299998
A81: TRAIL PC | B81: 1.326 | C81: 1.361 | D81: 1.352 | E81: 1.299 | F81: 1.333 | G81: 1.281 | H81: 1.314 | I81: 1.305 | J81: 1.212 | K81: 1.287 | L81: 1.236 | M81: 1.268 | N81: 15.574 | R81: TRAIL PC | S81: 0.767 | T81: 1.326 | V81: TRAIL PC | W81: 2.058 | X81: 1.361 | Z81: TRAIL PC | AA81: 1.573 | AB81: 1.352 | AD81: TRAIL PC | AE81: 4.398 | AF81: 4.039 | AL81: TRAIL PC | AM81: 1.398 | AN81: 1.299 | AP81: TRAIL PC | AQ81: 1.125 | AR81: 1.333 | AT81: TRAIL PC | AU81: 1.009 | AV81: 1.281 | AX81: TRAIL PC | AY81: 3.532 | AZ81: 3.913 | BG81: TRAIL PC | BH81: 1.194 | BI81: 1.314 | BK81: TRAIL PC | BL81: 1.361 | BM81: 1.305 | BO81: TRAIL PC | BP81: 1.25 | BQ81: 1.212 | BS81: TRAIL PC | BT81: 3.805 | BU81: 3.831 | CD81: WHLA PC | CE81: 75.7 | CF81: 7.536 | CH81: WHLA PC | CI81: 75.7 | CJ81: 7.215 | CL81: WHLA PC | CM81: 75.7 | CN81: 7.378 | CP81: MOSU PW | CQ81: 0 | CR81: 1.809300005
A82: WHLA PC | B82: 8.055 | C82: 8.231 | D82: 0 | E82: 7.788 | F82: 7.958 | G82: 7.617 | H82: 7.784 | I82: 7.7 | J82: 7.125 | K82: 7.536 | L82: 7.215 | M82: 7.378 | N82: 84.387 | R82: WHLA PC | S82: 5.479 | T82: 8.055 | V82: WHLA PC | W82: 6.467 | X82: 8.231 | Z82: WHLA PC | AA82: 7.548 | AB82: 0 | AD82: WHLA PC | AE82: 19.494 | AF82: 16.286 | AL82: WHLA PC | AM82: 6.48 | AN82: 7.788 | AP82: WHLA PC | AQ82: 6.264 | AR82: 7.958 | AT82: WHLA PC | AU82: 5.68 | AV82: 7.617 | AX82: WHLA PC | AY82: 18.424 | AZ82: 23.363 | BG82: =R82 -> WHLA PC | BH82: 4.106 | BI82: 7.784 | BK82: WHLA PC | BL82: 3.809 | BM82: 7.7 | BO82: WHLA PC | BP82: 3.252 | BQ82: 7.125 | BS82: WHLA PC | BT82: 11.167 | BU82: 22.609
A83: WWILSON PC | B83: 14.016 | C83: 14.39 | D83: 14.3 | E83: 13.752 | F83: 14.121 | G83: 13.578 | H83: 13.944 | I83: 13.854 | J83: 12.879 | K83: 13.68 | L83: 13.155 | M83: 13.51 | N83: 165.179 | R83: WWILSON PC | S83: 5.106 | T83: 14.016 | V83: WWILSON PC | W83: 13.489 | X83: 14.39 | Z83: WWILSON PC | AA83: 12.185 | AB83: 14.3 | AD83: WWILSON PC | AE83: 30.78 | AF83: 42.706 | AL83: WWILSON PC | AM83: 11.135 | AN83: 13.752 | AP83: WWILSON PC | AQ83: 5.072 | AR83: 14.121 | AT83: WWILSON PC | AU83: 2.91 | AV83: 13.578 | AX83: WWILSON PC | AY83: 19.117 | AZ83: 41.451 | BG83: WWILSON PC | BH83: 2.066 | BI83: 13.944 | BK83: WWILSON PC | BL83: 0.994 | BM83: 13.854 | BO83: WWILSON PC | BP83: 10.568 | BQ83: 12.879 | BS83: WWILSON PC | BT83: 13.628 | BU83: 40.677
A84: MOSU MT | B84: 0.597 | C84: 0.614 | D84: 0 | E84: 0.588 | F84: 0.605 | G84: 0.582 | H84: 0.601 | I84: 0.598 | J84: 0.557 | K84: 0.592 | L84: 0.57 | M84: 0.586 | N84: 6.49 | R84: MOSU MT | S84: 0.387 | T84: 0.597 | V84: MOSU MT | W84: 0.166 | X84: 0.614 | Z84: MOSU MT | AA84: 0.212 | AB84: 0 | AD84: MOSU MT | AE84: 0.765 | AF84: 1.211 | AL84: MOSU MT | AM84: 0.265 | AN84: 0.588 | AP84: MOSU MT | AQ84: 0.299 | AR84: 0.605 | AT84: MOSU MT | AU84: 0.52 | AV84: 0.582 | AX84: MOSU MT | AY84: 1.084 | AZ84: 1.775 | BG84: MOSU MT | BH84: 0.309 | BI84: 0.601 | BK84: MOSU MT | BL84: 0.1 | BM84: 0.598 | BO84: MOSU MT | BP84: 0.132 | BQ84: 0.557 | BS84: MOSU MT | BT84: 0.541 | BU84: 1.756
N85: =SUM(B85:M85) -> 0 | AL85: =AD85 -> 0
N86: 0 | AL86: 0
N87: 0 | AL87: 0
N88: 0 | AL88: 0
N89: 0 | AL89: 0
A90: Legacy Total | B90: =SUM(B6:B89) -> 3463.872 | C90: 3535.246 | D90: 3337.346 | E90: 3336.256 | F90: 3411.033 | G90: 3267.342 | H90: 3342.511 | I90: 3308.974 | J90: 3064.321 | K90: 3243.067 | L90: =SUM(L6:L89) -> 3108 | M90: =SUM(M6:M89) -> 3180.716 | N90: =SUM(N6:N89) -> 39598.684 | R90: =A90 -> Legacy Total | S90: =SUM(S6:S89) -> 3546.885535 | T90: =SUM(T6:T89) -> 3463.872 | V90: =R90 -> Legacy Total | W90: =SUM(W6:W89) -> 3612.625432 | X90: =SUM(X6:X81) -> 3512.011 | Z90: Legacy Total | AA90: =SUM(AA6:AA89) -> 3689.487523 | AB90: =SUM(AB6:AB81) -> 3309.93 | AD90: Legacy Total | AE90: =SUM(AE6:AE89) -> 10848.99849 | AF90: =SUM(AF6:AF81) -> 10263.145 | AL90: Legacy Total | AM90: =SUM(AM6:AM84) -> 3445.759624 | AN90: =SUM(AN6:AN84) -> 3336.256 | AP90: =AL90 -> Legacy Total | AQ90: =SUM(AQ6:AQ84) -> 3353.286343 | AR90: =SUM(AR6:AR84) -> 3411.033 | AT90: =AP90 -> Legacy Total | AU90: =SUM(AU6:AU84) -> 3417.090334 | AV90: =SUM(AV6:AV84) -> 3267.342 | AX90: =AT90 -> Legacy Total | AY90: =SUM(AM90,AQ90,AU90) -> 10216.1363 | AZ90: 10014.631 | BF90: =(AY90-AZ90)/AZ90 -> 0.02012109096 | BG90: =R90 -> Legacy Total | BH90: =SUM(BH6:BH84) -> 3373.634134 | BI90: =SUM(BI6:BI81) -> 3320.182 | BK90: =R90 -> Legacy Total | BL90: =SUM(BL6:BL84) -> 3397.299147 | BM90: =SUM(BM6:BM81) -> 3286.822 | BO90: =A90 -> Legacy Total | BP90: =SUM(BP6:BP84) -> 3120.72746 | BQ90: =SUM(BQ6:BQ81) -> 3043.76 | BS90: =A90 -> Legacy Total | BT90: =SUM(BH90,BL90,BP90) -> 9891.660741 | BU90: =SUM(BI90,BM90,BQ90) -> 9650.764 | CD90: =A90 -> Legacy Total | CE90: 83.7 | CF90: =IFERROR(VLOOKUP($A90,$A$6:$M$125,11,FALSE),"") -> 3243.067 | CH90: =A90 -> Legacy Total | CI90: 83.7 | CJ90: =IFERROR(VLOOKUP($A90,$A$6:$M$125,12,FALSE),"") -> 3108 | CL90: =A90 -> Legacy Total | CM90: 83.7 | CN90: =IFERROR(VLOOKUP($A90,$A$6:$M$125,13,FALSE),"") -> 3180.716 | CP90: Legacy Total | CQ90: 0 | CR90: 10271.90039
X91: =IFERROR(VLOOKUP(V91,$A$6:$M$125,3,FALSE),"") ->  | AB91: =IFERROR(VLOOKUP(Z91,$A$6:$M$125,4,FALSE),"") ->  | AR91: =IFERROR(VLOOKUP($AP91,$A$6:$M$125,6,FALSE),"") ->  | AV91: =IFERROR(VLOOKUP($AT91,$A$6:$M$125,7,FALSE),"") ->  | BM91: =IFERROR(VLOOKUP($BK91,$A$6:$M$125,9,FALSE),"") -> 
A92: Wexpro I | B92: =B5 -> 2019-06-01 | C92: 2019-07-01 | D92: 2019-08-01 | E92: 2019-09-01 | F92: 2019-10-01 | G92: 2019-11-01 | H92: 2019-12-01 | I92: 2020-01-01 | J92: 2020-02-01 | K92: 2020-03-01 | L92: 2020-04-01 | M92: 2020-05-01 | N92: Total | R92: =A92 -> Wexpro I | V92: =R92 -> Wexpro I | Z92: =R92 -> Wexpro I | AD92: =R92 -> Wexpro I | AL92: Wexpro I | AP92: =AL92 -> Wexpro I | AT92: =AL92 -> Wexpro I | AX92: =AL92 -> Wexpro I | BG92: =AT92 -> Wexpro I | BK92: =AX92 -> Wexpro I | BO92: Wexpro I | BS92: =A92 -> Wexpro I | CF92: 43891 | CJ92: 43922 | CN92: 43952 | CP92: Wexpro I
A93: CCRUNIT D8 | B93: 197.658 | C93: 194.491 | D93: 186.384 | E93: 173.631 | F93: 173.293 | G93: 162.411 | H93: 162.886 | I93: 158.385 | J93: 144.301 | K93: 150.434 | L93: 142.152 | M93: 143.586 | N93: =SUM(B93:M93) -> 1989.612 | R93: CCRUNIT D8 | S93: =IFERROR(VLOOKUP(R93,$R$122:$S$216,2,FALSE),0) -> 247.066 | T93: =IFERROR(VLOOKUP(R93,$A$6:$M$125,2,FALSE),"") -> 197.658 | V93: CCRUNIT D8 | W93: =IFERROR(VLOOKUP(V93,$V$122:$W$216,2,FALSE),0) -> 242.929 | X93: =IFERROR(VLOOKUP(V93,$A$6:$M$125,3,FALSE),"") -> 194.491 | Z93: CCRUNIT D8 | AA93: =IFERROR(VLOOKUP(Z93,$Z$122:$AA$216,2,FALSE),0) -> 233.808 | AB93: =IFERROR(VLOOKUP(Z93,$A$6:$M$125,4,FALSE),"") -> 186.384 | AD93: CCRUNIT D8 | AE93: =SUM(S93,W93,AA93) -> 723.803 | AF93: =SUM(T93,X93,AB93) -> 578.533 | AL93: CCRUNIT D8 | AM93: =IFERROR(VLOOKUP(AL93,$AL$122:$AM$212,2,FALSE),0) -> 187.663 | AN93: =IFERROR(VLOOKUP(AL93,$A$6:$M$125,5,FALSE),"") -> 173.631 | AP93: CCRUNIT D8 | AQ93: =IFERROR(VLOOKUP(AP93,$AP$122:$AQ$221,2,FALSE),0) -> 203.453 | AR93: =IFERROR(VLOOKUP($AP93,$A$6:$M$125,6,FALSE),"") -> 173.293 | AT93: CCRUNIT D8 | AU93: =IFERROR(VLOOKUP(AT93,$AT$122:$AU$214,2,FALSE),0) -> 246.673 | AV93: =IFERROR(VLOOKUP($AT93,$A$6:$M$125,7,FALSE),"") -> 162.411 | AX93: CCRUNIT D8 | AY93: =SUM(AM93,AQ93,AU93) -> 637.789 | AZ93: =SUM(AN93,AR93,AV93) -> 509.335 | BG93: =R93 -> CCRUNIT D8 | BH93: =IFERROR(VLOOKUP($BG93,$BG$120:$BH$215,2,FALSE),0) -> 272.04 | BI93: =IFERROR(VLOOKUP($BG93,$A$6:$M$125,8,FALSE),"") -> 162.886 | BK93: =R93 -> CCRUNIT D8 | BL93: =IFERROR(VLOOKUP($BK93,$BK$124:$BL$213,2,FALSE),0) -> 258.243 | BM93: =IFERROR(VLOOKUP($BK93,$A$6:$M$125,9,FALSE),"") -> 158.385 | BO93: =A93 -> CCRUNIT D8 | BP93: =IFERROR(VLOOKUP($BO93,$BO$123:$BP$210,2,FALSE),0) -> 225.156 | BQ93: =IFERROR(VLOOKUP($BO93,$A$6:$M$125,10,FALSE),0) -> 144.301 | BS93: CCRUNIT D8 | BT93: =SUM(BH93,BL93,BP93) -> 755.439 | BU93: 465.572 | CD93: =A93 -> CCRUNIT D8 | CF93: 150.434 | CH93: =A93 -> CCRUNIT D8 | CJ93: 142.152 | CL93: =A93 -> CCRUNIT D8 | CN93: 143.586 | CP93: CCRUNIT D8 | CQ93: 0 | CR93: 0
A94: KNY FLD D8 | B94: 12.903 | C94: 13.094 | D94: 0 | E94: 12.24 | F94: 12.44 | G94: 11.844 | H94: 12.05 | I94: 11.867 | J94: 10.936 | K94: 11.523 | L94: 10.992 | M94: 11.203 | N94: =SUM(B94:M94) -> 131.092 | R94: KNY FLD D8 | S94: =IFERROR(VLOOKUP(R94,$R$122:$S$216,2,FALSE),0) -> 11.799 | T94: =IFERROR(VLOOKUP(R94,$A$6:$M$125,2,FALSE),"") -> 12.903 | V94: KNY FLD D8 | W94: =IFERROR(VLOOKUP(V94,$V$122:$W$216,2,FALSE),0) -> 11.826 | X94: =IFERROR(VLOOKUP(V94,$A$6:$M$125,3,FALSE),"") -> 13.094 | Z94: KNY FLD D8 | AA94: =IFERROR(VLOOKUP(Z94,$Z$122:$AA$216,2,FALSE),0) -> 14.887 | AB94: =IFERROR(VLOOKUP(Z94,$A$6:$M$125,4,FALSE),"") -> 0 | AD94: KNY FLD D8 | AE94: =SUM(S94,W94,AA94) -> 38.512 | AF94: =SUM(T94,X94,AB94) -> 25.997 | AL94: KNY FLD D8 | AM94: 15.267 | AN94: 12.24 | AP94: KNY FLD D8 | AQ94: 14.808 | AR94: 12.44 | AT94: KNY FLD D8 | AU94: 15.276 | AV94: 11.844 | AX94: KNY FLD D8 | AY94: =SUM(AM94,AQ94,AU94) -> 45.351 | AZ94: =SUM(AN94,AR94,AV94) -> 36.524 | BG94: KNY FLD D8 | BH94: =IFERROR(VLOOKUP($BG94,$BG$120:$BH$215,2,FALSE),0) -> 15.66 | BI94: 12.05 | BK94: KNY FLD D8 | BL94: 7.865 | BM94: 11.867 | BO94: KNY FLD D8 | BP94: 0 | BQ94: 10.936 | BS94: KNY FLD D8 | BT94: 23.525 | BU94: 34.853 | CD94: KNY FLD D8 | CE94: 85.7 | CF94: 11.523 | CH94: KNY FLD D8 | CI94: 85.7 | CJ94: 10.992 | CL94: KNY FLD D8 | CM94: 85.7 | CN94: 11.203 | CP94: KNY FLD D8 | CQ94: 0 | CR94: 43.79970074
A95: MESA D8 | B95: 469.473 | C95: 464.895 | D95: 447.116 | E95: 417.375 | F95: 417.049 | G95: 391.095 | H95: 392.33 | I95: 381.477 | J95: 347.487 | K95: 362.142 | L95: 342.06 | M95: 345.346 | N95: 4777.845 | R95: MESA D8 | S95: =IFERROR(VLOOKUP(R95,$R$122:$S$216,2,FALSE),0) -> 564.666 | T95: =IFERROR(VLOOKUP(R95,$A$6:$M$125,2,FALSE),"") -> 469.473 | V95: MESA D8 | W95: =IFERROR(VLOOKUP(V95,$V$122:$W$216,2,FALSE),0) -> 555.484 | X95: =IFERROR(VLOOKUP(V95,$A$6:$M$125,3,FALSE),"") -> 464.895 | Z95: MESA D8 | AA95: =IFERROR(VLOOKUP(Z95,$Z$122:$AA$216,2,FALSE),0) -> 529.955 | AB95: =IFERROR(VLOOKUP(Z95,$A$6:$M$125,4,FALSE),"") -> 447.116 | AD95: MESA D8 | AE95: =SUM(S95,W95,AA95) -> 1650.105 | AF95: 1381.484 | AL95: MESA D8 | AM95: 483.591 | AN95: 417.375 | AP95: MESA D8 | AQ95: 482.116 | AR95: 417.049 | AT95: MESA D8 | AU95: 453.45 | AV95: 391.095 | AX95: MESA D8 | AY95: 1419.157 | AZ95: 1225.519 | BG95: MESA D8 | BH95: 447.711 | BI95: 392.33 | BK95: MESA D8 | BL95: 434.022 | BM95: 381.477 | BO95: MESA D8 | BP95: 387.053 | BQ95: 347.487 | BS95: MESA D8 | BT95: 1268.786 | BU95: 1121.294 | CD95: MESA D8 | CE95: 86.7 | CF95: 362.142 | CH95: MESA D8 | CI95: 86.7 | CJ95: 342.06 | CL95: MESA D8 | CM95: 86.7 | CN95: 345.346 | CP95: MESA D8 | CQ95: 0 | CR95: 938.6582947
A96: TRAIL D8 | B96: 159.48 | C96: 160.543 | D96: 156.851 | E96: 147.159 | F96: 146.717 | G96: 137.709 | H96: 138.524 | I96: 132.023 | J96: 116.078 | K96: 117.847 | L96: 109.071 | M96: 108.336 | N96: 1630.338 | R96: TRAIL D8 | S96: =IFERROR(VLOOKUP(R96,$R$122:$S$216,2,FALSE),0) -> 157.668 | T96: =IFERROR(VLOOKUP(R96,$A$6:$M$125,2,FALSE),"") -> 159.48 | V96: TRAIL D8 | W96: =IFERROR(VLOOKUP(V96,$V$122:$W$216,2,FALSE),0) -> 157.115 | X96: =IFERROR(VLOOKUP(V96,$A$6:$M$125,3,FALSE),"") -> 160.543 | Z96: TRAIL D8 | AA96: =IFERROR(VLOOKUP(Z96,$Z$122:$AA$216,2,FALSE),0) -> 152.744 | AB96: =IFERROR(VLOOKUP(Z96,$A$6:$M$125,4,FALSE),"") -> 156.851 | AD96: TRAIL D8 | AE96: 467.527 | AF96: 476.874 | AL96: TRAIL D8 | AM96: 144.562 | AN96: 147.159 | AP96: TRAIL D8 | AQ96: 133.48 | AR96: 146.717 | AT96: TRAIL D8 | AU96: 127.853 | AV96: 137.709 | AX96: TRAIL D8 | AY96: 405.895 | AZ96: 431.585 | BG96: TRAIL D8 | BH96: 127.143 | BI96: 138.524 | BK96: TRAIL D8 | BL96: 121.217 | BM96: 132.023 | BO96: TRAIL D8 | BP96: 109.479 | BQ96: 116.078 | BS96: TRAIL D8 | BT96: 357.839 | BU96: 386.625 | CD96: TRAIL D8 | CE96: 87.7 | CF96: 117.847 | CH96: TRAIL D8 | CI96: 87.7 | CJ96: 109.071 | CL96: TRAIL D8 | CM96: 87.7 | CN96: 108.336 | CP96: TRAIL D8 | CQ96: 0 | CR96: 247.4222031
A97: z19CCRUD8 | R97: z19CCRUD8 | V97: z19CCRUD8 | Z97: z19CCRUD8 | AD97: z19CCRUD8 | AL97: z19CCRUD8 | AM97: 0 | AN97: 0 | AP97: z19CCRUD8 | AQ97: 55.809 | AR97: 0 | AT97: z19CCRUD8 | AU97: 59.114 | AV97: 0 | AX97: z19CCRUD8 | AY97: =SUM(AM97,AQ97,AU97) -> 114.923 | AZ97: =SUM(AN97,AR97,AV97) -> 0 | BG97: z19CCRUD8 | BH97: 55.443 | BI97: 0 | BK97: z19CCRUD8 | BL97: 51.524 | BM97: 0 | BO97: z19CCRUD8 | BP97: 41.45 | BQ97: 0 | BS97: z19CCRUD8 | BT97: 148.417 | BU97: 0 | CD97: z19CCRUD8 | CH97: z19CCRUD8 | CL97: z19CCRUD8
A98: z19 PINED D8 | B98: 214.347 | C98: 255.97 | D98: 223.128 | E98: 386.985 | F98: 349.534 | G98: 303.342 | H98: 414.43 | I98: 365.437 | J98: 309.978 | K98: 305.372 | L98: 275.349 | M98: 267.239 | N98: 3671.111 | R98: z19 PINED D8 | S98: =IFERROR(VLOOKUP(R98,$R$122:$S$216,2,FALSE),0) -> 127.946 | T98: =IFERROR(VLOOKUP(R98,$A$6:$M$125,2,FALSE),"") -> 214.347 | V98: z19 PINED D8 | W98: =IFERROR(VLOOKUP(V98,$V$122:$W$216,2,FALSE),0) -> 115.128 | X98: =IFERROR(VLOOKUP(V98,$A$6:$M$125,3,FALSE),"") -> 255.97 | Z98: z19 PINED D8 | AA98: =IFERROR(VLOOKUP(Z98,$Z$122:$AA$216,2,FALSE),0) -> 104.69 | AB98: =IFERROR(VLOOKUP(Z98,$A$6:$M$125,4,FALSE),"") -> 223.128 | AD98: z19 PINED D8 | AE98: 347.764 | AF98: 693.445 | AL98: z19 PINED D8 | AM98: 91.604 | AN98: 386.985 | AP98: z19 PINED D8 | AQ98: 89.133 | AR98: 349.534 | AT98: z19 PINED D8 | AU98: 323.586 | AV98: 303.342 | AX98: z19 PINED D8 | AY98: 504.323 | AZ98: 1039.861 | BG98: z19 PINED D8 | BH98: 300.94 | BI98: 414.43 | BK98: z19 PINED D8 | BL98: 259.047 | BM98: 365.437 | BO98: z19 PINED D8 | BP98: 218.745 | BQ98: 309.978 | BS98: z19 PINED D8 | BT98: 778.732 | BU98: 1089.845 | CD98: z19 PINED D8 | CH98: z19 PINED D8 | CL98: z19 PINED D8 | CP98: z18 CCRK D8
A99: z20 PINED D8 | B99: 0 | C99: 0 | D99: 0 | E99: 0 | F99: 0 | G99: 0 | H99: 0 | I99: 0 | J99: 120.228 | K99: 101.466 | L99: 82.626 | M99: 74.509 | N99: 378.829 | R99: z20 PINED D8 | S99: =IFERROR(VLOOKUP(R99,$R$122:$S$216,2,FALSE),0) -> 0 | T99: =IFERROR(VLOOKUP(R99,$A$6:$M$125,2,FALSE),"") -> 0 | V99: z20 PINED D8 | W99: =IFERROR(VLOOKUP(V99,$V$122:$W$216,2,FALSE),0) -> 0 | X99: =IFERROR(VLOOKUP(V99,$A$6:$M$125,3,FALSE),"") -> 0 | Z99: z20 PINED D8 | AA99: =IFERROR(VLOOKUP(Z99,$Z$122:$AA$216,2,FALSE),0) -> 0 | AB99: =IFERROR(VLOOKUP(Z99,$A$6:$M$125,4,FALSE),"") -> 0 | AD99: z20 PINED D8 | AE99: 0 | AF99: 0 | AL99: z20 PINED D8 | AM99: 0 | AN99: 0 | AP99: z20 PINED D8 | AQ99: 0 | AR99: 0 | AT99: z20 PINED D8 | AU99: 0 | AV99: 0 | AX99: z20 PINED D8 | AY99: 0 | AZ99: 0 | BG99: z20 PINED D8 | BH99: 0 | BI99: 0 | BK99: z20 PINED D8 | BL99: 184.112 | BM99: 0 | BO99: z20 PINED D8 | BP99: 185.942 | BQ99: 120.228 | BS99: z20 PINED D8 | BT99: 370.054 | BU99: 120.228 | CD99: z20 PINED D8 | CE99: 88.7 | CF99: =IFERROR(VLOOKUP($A99,$A$6:$M$125,11,FALSE),"") -> 101.466 | CH99: z20 PINED D8 | CI99: 88.7 | CJ99: =IFERROR(VLOOKUP($A99,$A$6:$M$125,12,FALSE),"") -> 82.626 | CL99: z20 PINED D8 | CM99: 88.7 | CN99: =IFERROR(VLOOKUP($A99,$A$6:$M$125,13,FALSE),"") -> 74.509 | CP99: z18 PINED D8 | CQ99: 0 | CR99: 796.3660126
A100: Z19 TRAIL D8 | N100: 0 | R100: Z19 TRAIL D8 | S100: =IFERROR(VLOOKUP(R100,$R$122:$S$216,2,FALSE),0) -> 1.716 | T100: =IFERROR(VLOOKUP(R100,$A$6:$M$125,2,FALSE),"") -> 0 | V100: Z19 TRAIL D8 | W100: =IFERROR(VLOOKUP(V100,$V$122:$W$216,2,FALSE),0) -> 1.596 | X100: =IFERROR(VLOOKUP(V100,$A$6:$M$125,3,FALSE),"") -> 0 | Z100: Z19 TRAIL D8 | AA100: =IFERROR(VLOOKUP(Z100,$Z$122:$AA$216,2,FALSE),0) -> 1.374 | AB100: =IFERROR(VLOOKUP(Z100,$A$6:$M$125,4,FALSE),"") -> 0 | AD100: Z19 TRAIL D8 | AE100: 4.686 | AF100: 0 | AL100: Z19 TRAIL D8 | AM100: 1.5 | AN100: 0 | AP100: Z19 TRAIL D8 | AQ100: 1.929 | AR100: 0 | AT100: Z19 TRAIL D8 | AU100: 1.993 | AV100: 0 | AX100: Z19 TRAIL D8 | AY100: 5.422 | AZ100: 0 | BG100: Z19 TRAIL D8 | BH100: 2.254 | BI100: 0 | BK100: Z19 TRAIL D8 | BL100: 1.97 | BM100: 0 | BO100: Z19 TRAIL D8 | BP100: 1.745 | BQ100: 0 | BS100: Z19 TRAIL D8 | BT100: 5.969 | BU100: 0 | CD100: Z19 TRAIL D8 | CF100: =IFERROR(VLOOKUP($A100,$A$6:$M$125,11,FALSE),"") -> 0 | CH100: Z19 TRAIL D8 | CJ100: =IFERROR(VLOOKUP($A100,$A$6:$M$125,12,FALSE),"") -> 0 | CL100: Z19 TRAIL D8 | CN100: =IFERROR(VLOOKUP($A100,$A$6:$M$125,13,FALSE),"") -> 0 | CP100: z18 TRAIL D8 | CQ100: 0 | CR100: 280.9939041
A101: z20 PINED D8 | R101: z20 PINED D8 | V101: z20 PINED D8
A102: Wexpro I Total | B102: =SUM(B93:B100) -> 1053.861 | C102: =SUM(C93:C100) -> 1088.993 | D102: 1013.479 | E102: 1137.39 | F102: 1099.033 | G102: 1006.401 | H102: 1120.22 | I102: 1049.189 | J102: 1049.008 | K102: 1048.784 | L102: 962.25 | M102: 950.219 | N102: 12578.827 | R102: Wexpro l Total | S102: =SUM(S93:S100) -> 1110.861 | T102: =SUM(T93:T100) -> 1053.861 | V102: Wexpro l Total | W102: =SUM(W93:W100) -> 1084.078 | X102: =SUM(X93:X100) -> 1088.993 | Z102: Wexpro l Total | AA102: =SUM(AA93:AA100) -> 1037.458 | AB102: =SUM(AB93:AB100) -> 1013.479 | AD102: Wexpro l Total | AE102: 582.763 | AF102: 840.7417049 | AL102: =Z102 -> Wexpro l Total | AM102: =SUM(AM93:AM100) -> 924.187 | AN102: =SUM(AN93:AN100) -> 1137.39 | AP102: =AD102 -> Wexpro l Total | AQ102: =SUM(AQ93:AQ100) -> 980.728 | AR102: =SUM(AR93:AR100) -> 1099.033 | AT102: Wexpro l Total | AU102: =SUM(AU93:AU100) -> 1227.945 | AV102: =SUM(AV93:AV100) -> 1006.401 | AX102: Wexpro l Total | AY102: =SUM(AM102,AQ102,AU102) -> 3132.86 | AZ102: =SUM(AN102,AR102,AV102) -> 3242.824 | BF102: =(AY102-AZ102)/AZ102 -> -0.03390995009 | BG102: Wexpro l Total | BH102: =SUM(BH93:BH100) -> 1221.191 | BI102: =SUM(BI93:BI100) -> 1120.22 | BK102: Wexpro l Total | BL102: =SUM(BL93:BL100) -> 1318 | BM102: =SUM(BM93:BM100) -> 1049.189 | BO102: Wexpro l Total | BP102: =SUM(BP93:BP100) -> 1169.57 | BQ102: =SUM(BQ93:BQ100) -> 1049.008 | BS102: Wexpro l Total | BT102: =SUM(BH102,BL102,BP102) -> 3708.761 | BU102: =SUM(BI102,BM102,BQ102) -> 3218.417 | CF102: =IFERROR(VLOOKUP($A102,$A$6:$M$125,11,FALSE),"") -> 1048.784 | CJ102: =IFERROR(VLOOKUP($A102,$A$6:$M$125,12,FALSE),"") -> 962.25 | CN102: =IFERROR(VLOOKUP($A102,$A$6:$M$125,13,FALSE),"") -> 950.219 | CP102: New Drill Total | CQ102: 0 | CR102: 3426.454913
T103: =IFERROR(VLOOKUP(R103,$A$6:$M$125,2,FALSE),"") ->  | X103: =IFERROR(VLOOKUP(V103,$A$6:$M$125,3,FALSE),"") ->  | AB103: =IFERROR(VLOOKUP(Z103,$A$6:$M$125,4,FALSE),"") ->  | AN103: =IFERROR(VLOOKUP(AL103,$A$6:$M$125,5,FALSE),"") ->  | AR103: =IFERROR(VLOOKUP($AP103,$A$6:$M$125,6,FALSE),"") ->  | AV103: =IFERROR(VLOOKUP($AT103,$A$6:$M$125,7,FALSE),"") ->  | BB103: IRP Variance | BC103: ='Ex 1 HDD'!I2 -> Docket No. 19-057-01 | BD103: Dominion Energy Utah | BI103: =IFERROR(VLOOKUP($BG103,$A$6:$M$125,8,FALSE),"") ->  | BM103: =IFERROR(VLOOKUP($BK103,$A$6:$M$125,9,FALSE),"") -> 
A104: Wexpro II | B104: =B5 -> 2019-06-01 | C104: 2019-07-01 | D104: 2019-08-01 | E104: 2019-09-01 | F104: 2019-10-01 | G104: 2019-11-01 | H104: 2019-12-01 | I104: 2020-01-01 | J104: 2020-02-01 | K104: 2020-03-01 | L104: 2020-04-01 | M104: 2020-05-01 | N104: =N92 -> Total | R104: Wexpro II | V104: Wexpro II | Z104: Wexpro II | AD104: =V104 -> Wexpro II | AL104: Wexpro II | AP104: Wexpro II | AT104: Wexpro II | AX104: Wexpro II | BG104: Wexpro II | BK104: =BG104 -> Wexpro II | BO104: =BK104 -> Wexpro II | BS104: =BO104 -> Wexpro II | CD104: =A104 -> Wexpro II | CE104: 90.7 | CF104: 43891 | CH104: =A104 -> Wexpro II | CI104: 90.7 | CJ104: 43922 | CL104: =A104 -> Wexpro II | CM104: 90.7 | CN104: 43952 | CP104: Wexpro II | CQ104: 0 | CR104: 130398
A105: CCRUNIT 2E MT | B105: 24.336 | C105: 24.94 | D105: 24.732 | E105: 23.739 | F105: 24.332 | G105: 23.355 | H105: 23.941 | I105: 23.749 | J105: 22.043 | K105: 23.377 | L105: 22.446 | M105: 23.011 | N105: =SUM(B105:M105) -> 284.001 | R105: CCRUNIT 2E MT | S105: =IFERROR(VLOOKUP(R105,$R$122:$S$216,2,FALSE),0) -> 24.73 | T105: =IFERROR(VLOOKUP(R105,$A$6:$M$125,2,FALSE),"") -> 24.336 | V105: CCRUNIT 2E MT | W105: =IFERROR(VLOOKUP(V105,$V$122:$W$216,2,FALSE),0) -> 26.299 | X105: =IFERROR(VLOOKUP(V105,$A$6:$M$125,3,FALSE),"") -> 24.94 | Z105: =R105 -> CCRUNIT 2E MT | AA105: =IFERROR(VLOOKUP(Z105,$Z$122:$AA$214,2,FALSE),0) -> 27.397 | AB105: =IFERROR(VLOOKUP(Z105,$A$6:$M$125,4,FALSE),"") -> 24.732 | AD105: CCRUNIT 2E MT | AE105: =SUM(S105,W105,AA105) -> 78.426 | AF105: =SUM(T105,X105,AB105) -> 74.008 | AH105: ='Ex 1 HDD'!I3 -> DEU Variance Exhibit | AI105: ='Ex 1 HDD'!I2 -> Docket No. 19-057-01 | AJ105: ='Ex 1 HDD'!I1 -> Dominion Energy Utah | AL105: CCRUNIT 2E MT | AM105: =IFERROR(VLOOKUP(AL105,$AL$122:$AM$212,2,FALSE),0) -> 23.632 | AN105: =IFERROR(VLOOKUP(AL105,$A$6:$M$125,5,FALSE),"") -> 23.739 | AP105: CCRUNIT 2E MT | AQ105: =IFERROR(VLOOKUP(AP105,$AP$122:$AQ$221,2,FALSE),0) -> 21.657 | AR105: =IFERROR(VLOOKUP($AP105,$A$6:$M$125,6,FALSE),"") -> 24.332 | AT105: CCRUNIT 2E MT | AU105: =IFERROR(VLOOKUP(AT105,$AT$122:$AU$214,2,FALSE),0) -> 25.36 | AV105: =IFERROR(VLOOKUP($AT105,$A$6:$M$125,7,FALSE),"") -> 23.355 | AX105: CCRUNIT 2E MT | AY105: =SUM(AM105,AQ105,AU105) -> 70.649 | AZ105: =SUM(AN105,AR105,AV105) -> 71.426 | BG105: CCRUNIT 2E MT | BH105: =IFERROR(VLOOKUP($BG105,$BG$120:$BH$215,2,FALSE),0) -> 26.236 | BI105: =IFERROR(VLOOKUP($BG105,$A$6:$M$125,8,FALSE),"") -> 23.941 | BK105: =R105 -> CCRUNIT 2E MT | BL105: =IFERROR(VLOOKUP($BK105,$BK$123:$BL$213,2,FALSE),0) -> 24.673 | BM105: =IFERROR(VLOOKUP($BK105,$A$6:$M$125,9,FALSE),"") -> 23.749 | BO105: =A105 -> CCRUNIT 2E MT | BP105: =IFERROR(VLOOKUP($BO105,$BO$123:$BP$213,2,FALSE),0) -> 21.462 | BQ105: =IFERROR(VLOOKUP($BO105,$A$6:$M$125,10,FALSE),0) -> 22.043 | BS105: =A105 -> CCRUNIT 2E MT | BT105: =SUM(BH105,BL105,BP105) -> 72.371 | BU105: =SUM(BI105,BM105,BQ105) -> 69.733 | CD105: =A105 -> CCRUNIT 2E MT | CE105: 91.7 | CF105: 23.377 | CH105: =A105 -> CCRUNIT 2E MT | CI105: 91.7 | CJ105: 22.446 | CL105: =A105 -> CCRUNIT 2E MT | CM105: 91.7 | CN105: 23.011 | CP105: CCOPA 2E | CQ105: 0 | CR105: 16.3652997
A106: CCRUNIT MT | B106: 29.562 | C106: 29.599 | D106: 28.734 | E106: 27.039 | F106: 27.209 | G106: 25.677 | H106: 25.904 | I106: 25.315 | J106: 23.165 | K106: 24.245 | L106: 22.989 | M106: 23.297 | N106: =SUM(B106:M106) -> 312.735 | R106: CCRUNIT MT | S106: =IFERROR(VLOOKUP(R106,$R$122:$S$216,2,FALSE),0)*P145 -> 31.76946517 | T106: 71.091 | V106: CCRUNIT MT | W106: =IFERROR(VLOOKUP(V106,$V$122:$W$216,2,FALSE),0)*P146 -> 30.7855681 | X106: 71.179 | Z106: CCRUNIT MT | AA106: =IFERROR(VLOOKUP(Z106,$Z$122:$AA$214,2,FALSE),0)*P147 -> 29.69147692 | AB106: 69.099 | AD106: CCRUNIT MT | AE106: =SUM(S106,W106,AA106) -> 92.2465102 | AF106: =SUM(T106,X106,AB106) -> 211.369 | AL106: CCRUNIT MT | AM106: =IFERROR(VLOOKUP(AL106,$AL$122:$AM$212,2,FALSE),0)*P148 -> 26.85837581 | AN106: 65.025 | AP106: CCRUNIT MT | AQ106: =IFERROR(VLOOKUP(AP106,$AP$122:$AQ$212,2,FALSE),0)*P149 -> 24.50965715 | AR106: 65.435 | AT106: CCRUNIT MT | AU106: =IFERROR(VLOOKUP(AT106,$AT$122:$AU$214,2,FALSE),0)*P150 -> 25.79066573 | AV106: 61.746 | AX106: CCRUNIT MT | AY106: =SUM(AM106,AQ106,AU106) -> 77.15869869 | AZ106: =SUM(AN106,AR106,AV106) -> 192.206 | BG106: =R106 -> CCRUNIT MT | BH106: =IFERROR(VLOOKUP($BG106,$BG$124:$BH$215,2,FALSE),0)*P151 -> 25.53186589 | BI106: 62.291 | BK106: CCRUNIT MT | BL106: =IFERROR(VLOOKUP($BK106,$BK$123:$BL$213,2,FALSE),0)*P152 -> 24.527853 | BM106: 60.875 | BO106: CCRUNIT MT | BP106: =IFERROR(VLOOKUP($BO106,$BO$123:$BP$213,2,FALSE),0)*P153 -> 22.91154011 | BQ106: 55.709 | BS106: CCRUNIT MT | BT106: 72.971259 | BU106: 178.875 | CD106: =A106 -> CCRUNIT MT | CE106: 92.7 | CF106: 58.305 | CH106: =A106 -> CCRUNIT MT | CI106: 92.7 | CJ106: 55.287 | CL106: =A106 -> CCRUNIT MT | CM106: 92.7 | CN106: 56.02 | CP106: CCRUNIT 2D8 | CQ106: 0 | CR106: 300.7169952
A107: CCRUNIT 2E | B107: 324.054 | C107: 326.886 | D107: 319.96 | E107: 303.525 | F107: 308.1 | G107: 293.253 | H107: 298.341 | I107: 293.97 | J107: 271.167 | K107: 286.003 | L107: 273.228 | M107: 278.842 | N107: 3577.329 | R107: CCRUNIT 2E | S107: =IFERROR(VLOOKUP(R107,$R$122:$S$216,2,FALSE),0) -> 340.786 | T107: 324.054 | V107: CCRUNIT 2E | W107: =IFERROR(VLOOKUP(V107,$V$122:$W$216,2,FALSE),0) -> 346.294 | X107: 326.886 | Z107: CCRUNIT 2E | AA107: =IFERROR(VLOOKUP(Z107,$Z$122:$AA$214,2,FALSE),0) -> 338.78 | AB107: 319.96 | AD107: CCRUNIT 2E | AE107: =SUM(S107,W107,AA107) -> 1025.86 | AF107: =SUM(T107,X107,AB107) -> 970.9 | AL107: CCRUNIT 2E | AM107: =IFERROR(VLOOKUP(AL107,$AL$122:$AM$212,2,FALSE),0) -> 308.889 | AN107: 303.525 | AP107: CCRUNIT 2E | AQ107: =IFERROR(VLOOKUP(AP107,$AP$122:$AQ$221,2,FALSE),0) -> 278.248 | AR107: 308.1 | AT107: CCRUNIT 2E | AU107: =IFERROR(VLOOKUP(AT107,$AT$122:$AU$214,2,FALSE),0) -> 305.095 | AV107: 293.253 | AX107: CCRUNIT 2E | AY107: =SUM(AM107,AQ107,AU107) -> 892.232 | AZ107: =SUM(AN107,AR107,AV107) -> 904.878 | BG107: CCRUNIT 2E | BH107: =IFERROR(VLOOKUP($BG107,$BG$120:$BH$215,2,FALSE),0) -> 305.498 | BI107: 298.341 | BK107: CCRUNIT 2E | BL107: =IFERROR(VLOOKUP($BK107,$BK$123:$BL$213,2,FALSE),0) -> 301.236 | BM107: 293.97 | BO107: CCRUNIT 2E | BP107: =IFERROR(VLOOKUP($BO107,$BO$123:$BP$213,2,FALSE),0) -> 273.92 | BQ107: 271.167 | BS107: CCRUNIT 2E | BT107: 880.654 | BU107: 863.478 | BV107: IRP Variance | BW107: Docket No. 19-057-01 | BX107: Dominion Energy Utah | CD107: =A107 -> CCRUNIT 2E | CF107: 286.003 | CH107: =A107 -> CCRUNIT 2E | CJ107: 273.228 | CL107: =A107 -> CCRUNIT 2E | CN107: 278.842 | CP107: CCRUNIT 2E | CQ107: 0 | CR107: 732.0568085
A108: CCRUNIT 2D8 | B108: 80.127 | C108: 78.805 | D108: 75.494 | E108: 70.308 | F108: 70.156 | G108: 65.739 | H108: 65.922 | I108: 64.093 | J108: 58.386 | K108: 60.862 | L108: 57.507 | M108: 58.085 | N108: 805.484 | R108: CCRUNIT 2D8 | S108: 95.573 | T108: 80.127 | V108: CCRUNIT 2D8 | W108: 94.191 | X108: 78.805 | Z108: CCRUNIT 2D8 | AA108: 91.003 | AB108: 75.494 | AD108: CCRUNIT 2D8 | AE108: 280.767 | AF108: 234.426 | AL108: CCRUNIT 2D8 | AM108: 72.342 | AN108: 70.308 | AP108: CCRUNIT 2D8 | AQ108: 78.827 | AR108: 70.156 | AT108: CCRUNIT 2D8 | AU108: 95.223 | AV108: 65.739 | AX108: CCRUNIT 2D8 | AY108: 246.392 | AZ108: 206.203 | BG108: CCRUNIT 2D8 | BH108: =IFERROR(VLOOKUP($BG108,$BG$120:$BH$215,2,FALSE),0) -> 105.091 | BI108: 65.922 | BK108: CCRUNIT 2D8 | BL108: 100.131 | BM108: 64.093 | BO108: CCRUNIT 2D8 | BP108: 86.612 | BQ108: 58.386 | BS108: CCRUNIT 2D8 | BT108: 291.834 | BU108: 188.401 | CP108: CCRUNIT2EMT | CQ108: 0 | CR108: 67.91430092
A109: WHISKEYC 2E | B109: 125.298 | C109: 125.296 | D109: 121.52 | E109: 114.273 | F109: 114.933 | G109: 108.417 | H109: 109.343 | I109: 106.848 | J109: 97.774 | K109: 102.334 | L109: 97.047 | M109: 98.351 | N109: 1321.434 | R109: WHISKEYC 2E | S109: 101.949 | T109: 125.298 | V109: WHISKEYC 2E | W109: 145.148 | X109: 125.296 | Z109: WHISKEYC 2E | AA109: 129.667 | AB109: 121.52 | AD109: WHISKEYC 2E | AE109: 376.764 | AF109: 372.114 | AL109: WHISKEYC 2E | AM109: 111.012 | AN109: 114.273 | AP109: WHISKEYC 2E | AQ109: 103.035 | AR109: 114.933 | AT109: WHISKEYC 2E | AU109: 112.807 | AV109: 108.417 | AX109: WHISKEYC 2E | AY109: 326.854 | AZ109: 337.623 | BG109: WHISKEYC 2E | BH109: 121.902 | BI109: 109.343 | BK109: WHISKEYC 2E | BL109: 112.931 | BM109: 106.848 | BO109: WHISKEYC 2E | BP109: 101.058 | BQ109: 97.774 | BS109: WHISKEYC 2E | BT109: 335.891 | BU109: 313.965 | CP109: TRAIL 2D8 | CQ109: 0 | CR109: 98.62989998
A110: WHISKEY MT | B110: 46.275 | C110: 46.339 | D110: 44.975 | E110: 42.306 | F110: 42.551 | G110: 40.128 | H110: 40.452 | I110: 39.503 | J110: 36.122 | K110: 37.774 | L110: 35.793 | M110: 36.239 | N110: 488.457 | R110: WHISKEY MT | S110: 44.764 | T110: 46.275 | V110: WHISKEY MT | W110: 44.579 | X110: 46.339 | Z110: WHISKEY MT | AA110: 43.988 | AB110: 44.975 | AD110: WHISKEY MT | AE110: 133.331 | AF110: 137.589 | AL110: WHISKEY MT | AM110: 35.618 | AN110: 42.306 | AP110: WHISKEY MT | AQ110: 34.312 | AR110: 42.551 | AT110: WHISKEY MT | AU110: 40.391 | AV110: 40.128 | AX110: WHISKEY MT | AY110: 110.321 | AZ110: 124.985 | BG110: WHISKEY MT | BH110: 35.956 | BI110: 40.452 | BK110: WHISKEY MT | BL110: 33.52 | BM110: 39.503 | BO110: WHISKEY MT | BP110: 35.365 | BQ110: 36.122 | BS110: WHISKEY MT | BT110: 104.841 | BU110: 116.077 | CP110: TRAIL 2E | CQ110: 0 | CR110: 1085.887085
A111: TRAIL 2E MT | B111: 60.69 | C111: 61.476 | D111: 60.311 | E111: 57.306 | F111: 58.181 | G111: 55.353 | H111: 56.265 | I111: 55.378 | J111: 51.017 | K111: 53.729 | L111: 51.249 | M111: 52.216 | N111: 673.171 | R111: TRAIL 2E MT | S111: 70.011 | T111: 60.69 | V111: TRAIL 2E MT | W111: 66.665 | X111: 61.476 | Z111: TRAIL 2E MT | AA111: 62.537 | AB111: 60.311 | AD111: TRAIL 2E MT | AE111: 199.213 | AF111: 182.477 | AL111: TRAIL 2E MT | AM111: 56.027 | AN111: 57.306 | AP111: TRAIL 2E MT | AQ111: 57.741 | AR111: 58.181 | AT111: TRAIL 2E MT | AU111: 60.36 | AV111: 55.353 | AX111: TRAIL 2E MT | AY111: =SUM(AM111,AQ111,AU111) -> 174.128 | AZ111: =SUM(AN111,AR111,AV111) -> 170.84 | BG111: TRAIL 2E MT | BH111: 59.587 | BI111: 56.265 | BK111: TRAIL 2E MT | BL111: 61.04 | BM111: 55.378 | BO111: TRAIL 2E MT | BP111: 54.011 | BQ111: 51.017 | BS111: TRAIL 2E MT | BT111: 174.638 | BU111: 162.66 | CP111: TRAIL 2E MT | CQ111: 0 | CR111: 159.1819
A112: TRAIL 2E | B112: 396.561 | C112: 400.343 | D112: 391.502 | E112: 370.833 | F112: 375.37 | G112: 356.109 | H112: 360.983 | I112: 354.349 | J112: 325.589 | K112: 342.042 | L112: 325.467 | M112: 330.851 | N112: 4329.999 | R112: TRAIL 2E | S112: 448.435 | T112: 396.561 | V112: TRAIL 2E | W112: 497.098 | X112: 400.343 | Z112: TRAIL 2E | AA112: 488.594 | AB112: 391.502 | AD112: TRAIL 2E | AE112: 1434.127 | AF112: 1188.406 | AL112: TRAIL 2E | AM112: 467.024 | AN112: 370.833 | AP112: TRAIL 2E | AQ112: 431.292 | AR112: 375.37 | AT112: TRAIL 2E | AU112: 430.273 | AV112: 356.109 | AX112: TRAIL 2E | AY112: 1328.589 | AZ112: 1102.312 | BB112: 9.2 | BG112: TRAIL 2E | BH112: =IFERROR(VLOOKUP($BG112,$BG$120:$BH$215,2,FALSE),0) -> 452.544 | BI112: 360.983 | BK112: TRAIL 2E | BL112: 464.721 | BM112: 354.349 | BO112: TRAIL 2E | BP112: 427.945 | BQ112: 325.589 | BS112: TRAIL 2E | BT112: 1345.21 | BU112: 1040.921 | CP112: WHISKEYC 2E | CQ112: 0 | CR112: 534.4078979
A113: TRAIL 2D8 | B113: 143.274 | C113: 142.733 | D113: 138.294 | E113: 128.712 | F113: 127.326 | G113: 118.731 | H113: 118.78 | I113: 112.248 | J113: 97.617 | K113: 98.171 | L113: 90.108 | M113: 88.843 | N113: 1404.837 | R113: TRAIL 2D8 | S113: 159.879 | T113: 143.274 | V113: TRAIL 2D8 | W113: 166.061 | X113: 142.733 | Z113: TRAIL 2D8 | AA113: 155.198 | AB113: 138.294 | AD113: TRAIL 2D8 | AE113: 481.138 | AF113: 424.301 | AL113: TRAIL 2D8 | AM113: 149.165 | AN113: 128.712 | AP113: TRAIL 2D8 | AQ113: 135.751 | AR113: 127.326 | AT113: TRAIL 2D8 | AU113: 130.506 | AV113: 118.731 | AX113: TRAIL 2D8 | AY113: 415.422 | AZ113: 374.769 | BG113: TRAIL 2D8 | BH113: 125.646 | BI113: 118.78 | BK113: TRAIL 2D8 | BL113: 117.172 | BM113: 112.248 | BO113: TRAIL 2D8 | BP113: 103.665 | BQ113: 97.617 | BS113: TRAIL 2D8 | BT113: 346.483 | BU113: 328.645 | CP113: z18 CCRK 2D8 | CQ113: 0 | CR113: 473.4044037
A114: z19CCRU2D8 | N114: =SUM(B114:M114) -> 0 | R114: =A114 -> z19CCRU2D8 | S114: 0 | T114: 0 | V114: =R114 -> z19CCRU2D8 | W114: 0 | X114: 0 | Z114: =R114 -> z19CCRU2D8 | AA114: 0 | AB114: 0 | AD114: =R114 -> z19CCRU2D8 | AE114: =SUM(S114,W114,AA114) -> 0 | AF114: =SUM(T114,X114,AB114) -> 0 | AL114: =AD114 -> z19CCRU2D8 | AM114: 0 | AN114: 0 | AP114: =AL114 -> z19CCRU2D8 | AQ114: 22.095 | AR114: 0 | AT114: z19CCRU2D8 | AU114: 23.413 | AV114: 0 | AX114: z19CCRU2D8 | AY114: 45.508 | AZ114: 0 | BG114: =R114 -> z19CCRU2D8 | BH114: 21.958 | BI114: 0 | BK114: z19CCRU2D8 | BL114: 20.407 | BM114: 0 | BO114: z19CCRU2D8 | BP114: 16.418 | BQ114: 0 | BS114: z19CCRU2D8 | BT114: 58.783 | BU114: 0 | CP114: z18 TRAIL2D8 | CQ114: 0 | CR114: 357.4417038
A115: z19 TRAIL 2D8 | N115: 0 | R115: z19 TRAIL 2D8 | S115: 1.694 | T115: 0 | V115: z19 TRAIL 2D8 | W115: 1.77 | X115: 0 | Z115: z19 TRAIL 2D8 | AA115: 1.429 | AB115: 0 | AD115: z19 TRAIL 2D8 | AE115: 4.893 | AF115: 0 | AH115: 9.2 | AL115: z19 TRAIL 2D8 | AM115: 1.356 | AN115: 0 | AP115: z19 TRAIL 2D8 | AQ115: 1.746 | AR115: 0 | AT115: z19 TRAIL 2D8 | AU115: 1.79 | AV115: 0 | AX115: z19 TRAIL 2D8 | AY115: 4.892 | AZ115: 0 | BG115: z19 TRAIL 2D8 | BH115: 2.16 | BI115: 0 | BK115: z19 TRAIL 2D8 | BL115: 1.361 | BM115: 0 | BO115: z19 TRAIL 2D8 | BP115: 1.938 | BQ115: 0 | BS115: z19 TRAIL 2D8 | BT115: 5.459 | BU115: 0 | CP115: z18 TRAIL2D8 | CQ115: 0 | CR115: 357.4417038
BK116: 0 | BL116: 0 | BO116: 0 | BP116: 0 | BQ116: 0
A117: Wexpro II Total | B117: =SUM(B105:B115) -> 1230.177 | C117: 1236.417 | D117: 1205.522 | E117: 1138.041 | F117: 1148.158 | G117: 1086.762 | H117: 1099.931 | I117: =SUM(I105:I115) -> 1075.453 | J117: 982.88 | K117: 1028.537 | L117: 975.834 | M117: 989.735 | N117: 13197.447 | R117: Wexpro II Total | S117: =SUM(S105:S115) -> 1319.590465 | T117: =SUM(T105:T115) -> 1271.706 | V117: Wexpro II Total | W117: =SUM(W105:W115) -> 1418.890568 | X117: =SUM(X105:X115) -> 1277.997 | Z117: Wexpro II Total | AA117: =SUM(AA105:AA115) -> 1368.284477 | AB117: =SUM(AB105:AB115) -> 1245.887 | AD117: Wexpro II Total | AE117: =SUM(AE105:AE115) -> 4106.76551 | AF117: =SUM(AF105:AF115) -> 3795.59 | AL117: Wexpro II Total | AM117: =SUM(AM105:AM115) -> 1251.923376 | AN117: =SUM(AN105:AN115) -> 1176.027 | AP117: New Drill Total | AQ117: =SUM(AQ105:AQ115) -> 1189.213657 | AR117: =SUM(AR105:AR115) -> 1186.384 | AT117: New Drill Total | AU117: =SUM(AU105:AU115) -> 1251.008666 | AV117: =SUM(AV105:AV115) -> 1122.831 | AX117: New Drill Total | AY117: 3692.145699 | AZ117: 3485.242 | BG117: Wexpro II Total | BH117: =SUM(BH105:BH115) -> 1282.109866 | BI117: =SUM(BI105:BI115) -> 1136.318 | BK117: Wexpro II Total | BL117: =SUM(BL105:BL115) -> 1261.719853 | BM117: =SUM(BM105:BM115) -> 1111.013 | BO117: =BK117 -> Wexpro II Total | BP117: =SUM(BP105:BP115) -> 1145.30554 | BQ117: =SUM(BQ105:BQ115) -> 1015.424 | BT117: =SUM(BT105:BT115) -> 3689.135259 | BU117: =SUM(BU105:BU115) -> 3262.755 | CF117: =IFERROR(VLOOKUP($A117,$A$6:$M$125,11,FALSE),"") -> 1028.537 | CJ117: =IFERROR(VLOOKUP($A117,$A$6:$M$125,12,FALSE),"") -> 975.834 | CN117: =IFERROR(VLOOKUP($A117,$A$6:$M$125,13,FALSE),"") -> 989.735 | CQ117: 0 | CR117: 3826.006295
BW118: 9.2
A119: Off System | B119: =B5 -> 2019-06-01 | C119: 2019-07-01 | D119: 2019-08-01 | E119: 2019-09-01 | F119: 2019-10-01 | G119: 2019-11-01 | H119: 2019-12-01 | I119: 2020-01-01 | J119: 2020-02-01 | K119: 2020-03-01 | L119: 2020-04-01 | M119: 2020-05-01 | N119: =N104 -> Total | R119: Total | S119: =SUM(S90,S102,S117) -> 5977.337 | T119: =SUM(T90,T102,T117) -> 5789.439 | V119: Total | W119: =SUM(W90,W102,W117) -> 6115.594 | X119: =SUM(X90,X102,X117) -> 5879.001 | Z119: Total | AA119: =SUM(AA90,AA102,AA117) -> 6095.23 | AB119: =SUM(AB90,AB102,AB117) -> 5569.296 | AD119: Total | AE119: =SUM(AE90,AE102,AE117) -> 15538.527 | AF119: =SUM(AF90,AF102,AF117) -> 14899.4767 | AL119: Total | AM119: =SUM(AM90,AM102,AM117) -> 5621.87 | AN119: =SUM(AN90,AN102,AN117) -> 5649.673 | AP119: Total | AQ119: =SUM(AQ90,AQ102,AQ117) -> 5523.228 | AR119: =SUM(AR90,AR102,AR117) -> 5696.45 | AT119: Total | AU119: =SUM(AU90,AU102,AU117) -> 5896.044 | AV119: =SUM(AV90,AV102,AV117) -> 5396.574 | AX119: Total | AY119: =SUM(AY90,AY102,AY117) -> 17041.142 | AZ119: =SUM(AZ90,AZ102,AZ117) -> 16742.697 | BG119: Total | BH119: =SUM(BH117,BH102,BH90) -> 5876.935 | BI119: =SUM(BI117,BI102,BI90) -> 5576.72 | BK119: =R119 -> Total | BL119: =SUM(BL117,BL102,BL90) -> 5977.019 | BM119: =SUM(BM117,BM102,BM90) -> 5447.024 | BO119: =V119 -> Total | BP119: =SUM(BP117,BP102,BP90) -> 5435.603 | BQ119: =SUM(BQ117,BQ102,BQ90) -> 5108.192 | BS119: =Z119 -> Total | BT119: =SUM(BT117,BT102,BT90) -> 17289.557 | BU119: =SUM(BU117,BU102,BU90) -> 16131.936 | CP119: Total | CQ119: 0 | CR119: 17524.3616
A120: OFF SYS PW | B120: 0.057 | C120: 0.059 | D120: 0.059 | E120: 0.057 | F120: 0.056 | G120: 0.054 | H120: 0.056 | I120: 0.056 | J120: 0.052 | K120: 0.056 | L120: 0.054 | M120: 0.056 | N120: =SUM(B120:M120) -> 0.672
A121: OFF SYS PC | B121: 8.904 | C121: 9.161 | D121: 9.12 | E121: 8.79 | F121: 9.043 | G121: 8.712 | H121: 8.965 | I121: 8.925 | J121: 8.314 | K121: 8.847 | L121: 8.526 | M121: 8.77 | N121: =SUM(B121:M121) -> 106.077 | R121: nomgroup | S121: value_6 | T121: month_tot | V121: nomgroup | W121: value_7 | X121: month_tot | Z121: nomgroup | AA121: value_8 | AB121: month_tot | AL121: nomgroup | AM121: value_9 | AN121: month_tot | AP121: nomgroup | AQ121: value_10 | AR121: month_tot | AT121: nomgroup | AU121: value_11 | AV121: month_tot | BG121: nomgroup | BH121: value_12 | BI121: month_tot | BK121: nomgroup | BL121: value_1 | BM121: month_tot | BO121: nomgroup | BP121: value_2 | BQ121: month_tot
A122: OFF SYS D24 | B122: 34.725 | C122: 35.628 | D122: 35.404 | E122: 34.042 | F122: 34.926 | G122: 33.583 | H122: 34.475 | I122: 34.251 | J122: 31.828 | K122: 34.064 | L122: 33.001 | M122: 34.141 | N122: =SUM(B122:M122) -> 410.068 | R122: ACEJDMT D24 | S122: 9.067 | T122: 5977.34 | V122: ACEJDMT D24 | W122: 11.848 | X122: 6115.59 | Z122: ACEJDMT D24 | AA122: 7.849 | AB122: 6095.23 | AL122: ACEJDMT D24 | AM122: 8.086 | AN122: 5621.88 | AP122: ACEJDMT D24 | AQ122: 7.638 | AR122: 5523.22 | AT122: ACEJDMT D24 | AU122: 7.397 | AV122: 5896 | AZ122: ACEJDMT D24 | BF122: =BG122=AZ122 -> TRUE | BG122: ACEJDMT D24 | BH122: 7.254 | BI122: 5876.94 | BK122: ACEJDMT D24 | BL122: 7.266 | BM122: 5977.02 | BO122: ACEJDMT D24 | BP122: 7.838 | BQ122: 5435.68
A123: Off System Total | B123: =SUM(B120:B122) -> 43.686 | C123: 44.848 | D123: 44.583 | E123: 42.889 | F123: 44.025 | G123: 42.349 | H123: 43.496 | I123: 43.232 | J123: 40.194 | K123: 42.967 | L123: 41.581 | M123: 42.967 | N123: =SUM(B123:M123) -> 516.817 | R123: ACEJDMT PC | S123: 3.812 | T123: 5977.34 | V123: ACEJDMT PC | W123: 3.841 | X123: 6115.59 | Z123: ACEJDMT PC | AA123: 3.602 | AB123: 6095.23 | AL123: ACEJDMT PC | AM123: 3.618 | AN123: 5621.88 | AP123: ACEJDMT PC | AQ123: 3.664 | AR123: 5523.22 | AT123: ACEJDMT PC | AU123: 2.717 | AV123: 5896 | AZ123: ACEJDMT PC | BF123: =BG123=AZ123 -> TRUE | BG123: ACEJDMT PC | BH123: 3.895 | BI123: 5876.94 | BK123: ACEJDMT PC | BL123: 4.022 | BM123: 5977.02 | BO123: ACEJDMT PC | BP123: 3.74 | BQ123: 5435.68
R124: BIRCH CREEK | S124: 142.053 | T124: 5977.34 | V124: BIRCH CREEK | W124: 143.52 | X124: 6115.59 | Z124: BIRCH CREEK | AA124: 149.054 | AB124: 6095.23 | AL124: BIRCH CREEK | AM124: 129.584 | AN124: 5621.88 | AP124: BIRCH CREEK | AQ124: 123.797 | AR124: 5523.22 | AT124: BIRCH CREEK | AU124: 116.632 | AV124: 5896 | AZ124: BIRCH CREEK | BF124: TRUE | BG124: BIRCH CREEK | BH124: 101.006 | BI124: 5876.94 | BK124: BIRCH CREEK | BL124: 113.621 | BM124: 5977.02 | BO124: BIRCH CREEK | BP124: 112.086 | BQ124: 5435.68
A125: Total without Off System | B125: =SUM(B90,B102,B117) -> 5747.91 | C125: 5860.656 | D125: 5556.347 | E125: 5611.687 | F125: 5658.224 | G125: 5360.505 | H125: 5562.662 | I125: 5433.616 | J125: 5096.209 | K125: 5320.388 | L125: 5046.084 | M125: 5120.67 | N125: 65374.958 | R125: BKSPUNT6MTPC | S125: 7.81 | T125: 5977.34 | V125: BKSPUNT6MTPC | W125: 4.231 | X125: 6115.59 | Z125: BKSPUNT6MTPC | AA125: 4.687 | AB125: 6095.23 | AL125: BKSPUNT6MTPC | AM125: 3.738 | AN125: 5621.88 | AP125: BKSPUNT6MTPC | AQ125: 3.621 | AR125: 5523.22 | AT125: BKSPUNT6MTPC | AU125: 3.189 | AV125: 5896 | AZ125: BKSPUNT6MTPC | BF125: TRUE | BG125: BKSPUNT6MTPC | BH125: 1.835 | BI125: 5876.94 | BK125: BRFM D24 | BL125: 2.274 | BM125: 5977.02 | BO125: BRFM D24 | BP125: 2.175 | BQ125: 5435.68
A126: Days/Month | B126: =DAY(EOMONTH(B5,0)) -> 30 | C126: 31 | D126: 31 | E126: 30 | F126: 31 | G126: 30 | H126: 31 | I126: 31 | J126: 29 | K126: 31 | L126: 30 | M126: 31 | R126: BRFM D24 | S126: 2.458 | T126: 5977.34 | V126: BRFM D24 | W126: 2.527 | X126: 6115.59 | Z126: BRFM D24 | AA126: 2.427 | AB126: 6095.23 | AL126: BRFM D24 | AM126: 2.445 | AN126: 5621.88 | AP126: BRFM D24 | AQ126: 2.179 | AR126: 5523.22 | AT126: BRFM D24 | AU126: 1.31 | AV126: 5896 | AZ126: BRFM D24 | BF126: TRUE | BG126: BRFM D24 | BH126: 2.488 | BI126: 5876.94 | BK126: BRFM PC | BL126: 0.17 | BM126: 5977.02 | BO126: BRFM PC | BP126: 0.149 | BQ126: 5435.68
A127: Per day | B127: =B125/B126 -> 191.597 | C127: =C125/C126 -> 189.0534194 | D127: 179.237 | E127: 187.0562333 | F127: 182.5233548 | G127: 178.6835 | H127: 179.4407097 | I127: 175.2779355 | J127: 175.7313448 | K127: 171.6254194 | L127: 168.2028 | M127: 165.1829032 | R127: BRFM PC | S127: 0.176 | T127: 5977.34 | V127: BRFM PC | W127: 0.168 | X127: 6115.59 | Z127: BRFM PC | AA127: 0.161 | AB127: 6095.23 | AL127: BRFM PC | AM127: 0.158 | AN127: 5621.88 | AP127: BRFM PC | AQ127: 0.168 | AR127: 5523.22 | AT127: BRFM PC | AU127: 0.044 | AV127: 5896 | AZ127: BRFM PC | BF127: TRUE | BG127: BRFM PC | BH127: 0.184 | BI127: 5876.94 | BK127: BRFQ D24 | BL127: 140.584 | BM127: 5977.02 | BO127: BRFQ D24 | BP127: 131.856 | BQ127: 5435.68
R128: BRFQ D24 | S128: 147.899 | T128: 5977.34 | V128: BRFQ D24 | W128: 148.099 | X128: 6115.59 | Z128: BRFQ D24 | AA128: 141.059 | AB128: 6095.23 | AL128: BRFQ D24 | AM128: 139.346 | AN128: 5621.88 | AP128: BRFQ D24 | AQ128: 143.833 | AR128: 5523.22 | AT128: BRFQ D24 | AU128: 139.095 | AV128: 5896 | AZ128: BRFQ D24 | BF128: TRUE | BG128: BRFQ D24 | BH128: 127.855 | BI128: 5876.94 | BK128: BRFQ PC | BL128: 12.348 | BM128: 5977.02 | BO128: BRFQ PC | BP128: 13.196 | BQ128: 5435.68
A129: Total with Off System | B129: =SUM(B123,B125) -> 5791.596 | C129: =SUM(C123,C125) -> 5905.504 | D129: 5600.93 | E129: 5654.576 | F129: 5702.249 | G129: 5402.854 | H129: 5606.158 | I129: =SUM(I123,I125) -> 5476.848 | J129: 5136.403 | K129: 5363.355 | L129: 5087.665 | M129: 5163.637 | N129: 65891.775 | R129: BRFQ PC | S129: 10.472 | T129: 5977.34 | V129: BRFQ PC | W129: 8.539 | X129: 6115.59 | Z129: BRFQ PC | AA129: 9.543 | AB129: 6095.23 | AL129: BRFQ PC | AM129: 11.685 | AN129: 5621.88 | AP129: BRFQ PC | AQ129: 8.679 | AR129: 5523.22 | AT129: BRFQ PC | AU129: 11.098 | AV129: 5896 | AZ129: BRFQ PC | BF129: TRUE | BG129: BRFQ PC | BH129: 12.718 | BI129: 5876.94 | BK129: BRFQMT D24 | BL129: 7.121 | BM129: 5977.02 | BO129: BRFQMT D24 | BP129: 4.996 | BQ129: 5435.68
R130: BRFQMT D24 | S130: 4.382 | T130: 5977.34 | V130: BRFQMT D24 | W130: 4.737 | X130: 6115.59 | Z130: BRFQMT D24 | AA130: 4.719 | AB130: 6095.23 | AL130: BRFQMT D24 | AM130: 3.512 | AN130: 5621.88 | AP130: BRFQMT D24 | AQ130: 8.086 | AR130: 5523.22 | AT130: BRFQMT D24 | AU130: 7.78 | AV130: 5896 | AZ130: BRFQMT D24 | BF130: TRUE | BG130: BRFQMT D24 | BH130: 5.008 | BI130: 5876.94 | BK130: BRFQMT PC | BL130: 8.237 | BM130: 5977.02 | BO130: BRFQMT PC | BP130: 7.151 | BQ130: 5435.68
A131: Total Possible Prod. From SendOut | B131: 5747.91 | C131: 5860.656 | D131: 5980.08305 | E131: 5611.687 | F131: 5658.224 | G131: 5360.505 | H131: 5562.662 | I131: 5433.616 | J131: 5096.209 | K131: 5320.388 | L131: 5046.084 | M131: 5120.67 | N131: =SUM(B131:M131) -> 65798.69405 | R131: BRFQMT PC | S131: 8.117 | T131: 5977.34 | V131: BRFQMT PC | W131: 7.775 | X131: 6115.59 | Z131: BRFQMT PC | AA131: 7.204 | AB131: 6095.23 | AL131: BRFQMT PC | AM131: 7.536 | AN131: 5621.88 | AP131: BRFQMT PC | AQ131: 7.22 | AR131: 5523.22 | AT131: BRFQMT PC | AU131: 8.203 | AV131: 5896 | AZ131: BRFQMT PC | BF131: TRUE | BG131: BRFQMT PC | BH131: 7.719 | BI131: 5876.94 | BK131: BRFW D24 | BL131: 57.074 | BM131: 5977.02 | BO131: BRFW D24 | BP131: 60.694 | BQ131: 5435.68
A132: 1000 | R132: BRFW D24 | S132: 66.501 | T132: 5977.34 | V132: BRFW D24 | W132: 65.497 | X132: 6115.59 | Z132: BRFW D24 | AA132: 64.419 | AB132: 6095.23 | AL132: BRFW D24 | AM132: 63.127 | AN132: 5621.88 | AP132: BRFW D24 | AQ132: 64.792 | AR132: 5523.22 | AT132: BRFW D24 | AU132: 61.03 | AV132: 5896 | AZ132: BRFW D24 | BF132: TRUE | BG132: BRFW D24 | BH132: 59.865 | BI132: 5876.94 | BK132: BRFW PC | BL132: 8.169 | BM132: 5977.02 | BO132: BRFW PC | BP132: 8.914 | BQ132: 5435.68
A133: Shut-In per Month/dth | B133: =(B131-B125)*$A$132 -> 0 | C133: 0 | D133: 423736.0502 | E133: 0 | F133: 0 | G133: 0 | H133: 0 | I133: 0 | J133: 0 | K133: 0 | L133: 0 | M133: 0 | N133: =SUM(B133:M133) -> 423736.0502 | R133: BRFW PC | S133: 11.623 | T133: 5977.34 | V133: BRFW PC | W133: 11.431 | X133: 6115.59 | Z133: BRFW PC | AA133: 10.346 | AB133: 6095.23 | AL133: BRFW PC | AM133: 9.025 | AN133: 5621.88 | AP133: BRFW PC | AQ133: 10.4 | AR133: 5523.22 | AT133: BRFW PC | AU133: 10.048 | AV133: 5896 | AZ133: BRFW PC | BF133: TRUE | BG133: BRFW PC | BH133: 8.314 | BI133: 5876.94 | BK133: BRUFF MT | BL133: 4.602 | BM133: 5977.02 | BO133: BRUFF MT | BP133: 4.527 | BQ133: 5435.68
A134: Shut-In per Day/dth | B134: =B133/B126 -> 0 | C134: =C133/C126 -> 0 | D134: 13668.90484 | E134: 0 | F134: 0 | G134: 0 | H134: 0 | I134: 0 | J134: 0 | K134: 0 | L134: 0 | M134: 0 | R134: BRUFF MT | S134: 9.843 | T134: 5977.34 | V134: BRUFF MT | W134: 9.999 | X134: 6115.59 | Z134: BRUFF MT | AA134: 9.057 | AB134: 6095.23 | AL134: BRUFF MT | AM134: 9.681 | AN134: 5621.88 | AP134: BRUFF MT | AQ134: 7.804 | AR134: 5523.22 | AT134: BRUFF MT | AU134: 7.513 | AV134: 5896 | AZ134: BRUFF MT | BF134: TRUE | BG134: BRUFF MT | BH134: 5.919 | BI134: 5876.94 | BK134: CBFR D24 | BL134: 14.204 | BM134: 5977.02 | BO134: CBFR D24 | BP134: 16.141 | BQ134: 5435.68
A135: Total New Drill | B135: =SUM(B98:B100,B115) -> 214.347 | C135: =SUM(C98:C100,C115) -> 255.97 | D135: 223.128 | E135: =SUM(E98:E100,E115) -> 386.985 | F135: 349.534 | G135: 303.342 | H135: 414.43 | I135: 365.437 | J135: 430.206 | K135: 406.838 | L135: 357.975 | M135: 341.748 | N135: =SUM(B135:M135) -> 4049.94 | R135: CBFR D24 | S135: 18.148 | T135: 5977.34 | V135: CBFR D24 | W135: 17.42 | X135: 6115.59 | Z135: CBFR D24 | AA135: 18.388 | AB135: 6095.23 | AL135: CBFR D24 | AM135: 17.154 | AN135: 5621.88 | AP135: CBFR D24 | AQ135: 17.466 | AR135: 5523.22 | AT135: CBFR D24 | AU135: 17.087 | AV135: 5896 | AZ135: CBFR D24 | BF135: TRUE | BG135: CBFR D24 | BH135: 16.699 | BI135: 5876.94 | BK135: CBFR PC | BL135: 60.8 | BM135: 5977.02 | BO135: CBFR PC | BP135: 58.379 | BQ135: 5435.68
R136: CBFR PC | S136: 70.67 | T136: 5977.34 | V136: CBFR PC | W136: 66.564 | X136: 6115.59 | Z136: CBFR PC | AA136: 69.017 | AB136: 6095.23 | AL136: CBFR PC | AM136: 62.407 | AN136: 5621.88 | AP136: CBFR PC | AQ136: 64.733 | AR136: 5523.22 | AT136: CBFR PC | AU136: 59.596 | AV136: 5896 | AZ136: CBFR PC | BF136: TRUE | BG136: CBFR PC | BH136: 62.478 | BI136: 5876.94 | BK136: CCRUNIT 2D8 | BL136: 100.131 | BM136: 5977.02 | BO136: CCRUNIT 2D8 | BP136: 86.612 | BQ136: 5435.68
P137: Add into CCRUNIT 2E | R137: CCOPA 2E | S137: 5.897 | T137: 5977.34 | V137: CCOPA 2E | W137: 6.144 | X137: 6115.59 | Z137: CCOPA 2E | AA137: 6.59 | AB137: 6095.23 | AL137: CCRUNIT 2D8 | AM137: 72.342 | AN137: 5621.88 | AP137: CCRUNIT 2D8 | AQ137: 78.827 | AR137: 5523.22 | AT137: CCRUNIT 2D8 | AU137: 95.223 | AV137: 5896 | AZ137: CCRUNIT 2D8 | BF137: TRUE | BG137: CCRUNIT 2D8 | BH137: 105.091 | BI137: 5876.94 | BK137: CCRUNIT 2E | BL137: 301.236 | BM137: 5977.02 | BO137: CCRUNIT 2E | BP137: 273.92 | BQ137: 5435.68
R138: CCRUNIT 2D8 | S138: 95.573 | T138: 5977.34 | V138: CCRUNIT 2D8 | W138: 94.191 | X138: 6115.59 | Z138: CCRUNIT 2D8 | AA138: 91.003 | AB138: 6095.23 | AL138: CCRUNIT 2E | AM138: =303.069+5.82 -> 308.889 | AN138: 5621.88 | AP138: CCRUNIT 2E | AQ138: =272.236+6.012 -> 278.248 | AR138: 5523.22 | AT138: CCRUNIT 2E | AU138: =298.629+6.466 -> 305.095 | AV138: 5896 | AZ138: CCRUNIT 2E | BF138: TRUE | BG138: CCRUNIT 2E | BH138: 305.498 | BI138: 5876.94 | BK138: CCRUNIT 2E MT | BL138: 24.673 | BM138: 5977.02 | BO138: CCRUNIT 2E MT | BP138: 21.462 | BQ138: 5435.68
R139: CCRUNIT 2E | S139: =334.889+S137 -> 340.786 | T139: 5977.34 | V139: CCRUNIT 2E | W139: =340.15+W137 -> 346.294 | X139: 6115.59 | Z139: CCRUNIT 2E | AA139: =332.19+AA137 -> 338.78 | AB139: 6095.23 | AL139: CCRUNIT 2E MT | AM139: 23.632 | AN139: 5621.88 | AP139: CCRUNIT 2E MT | AQ139: 21.657 | AR139: 5523.22 | AT139: CCRUNIT 2E MT | AU139: 25.36 | AV139: 5896 | AZ139: CCRUNIT 2E MT | BF139: TRUE | BG139: CCRUNIT 2E MT | BH139: 26.236 | BI139: 5876.94 | BK139: CCRUNIT D24 | BL139: 510.707 | BM139: 5977.02 | BO139: CCRUNIT D24 | BP139: 472.34 | BQ139: 5435.68
R140: CCRUNIT 2E MT | S140: 24.73 | T140: 5977.34 | V140: CCRUNIT 2E MT | W140: 26.299 | X140: 6115.59 | Z140: CCRUNIT 2E MT | AA140: 27.397 | AB140: 6095.23 | AL140: CCRUNIT D24 | AM140: 488.133 | AN140: 5621.88 | AP140: CCRUNIT D24 | AQ140: 428.833 | AR140: 5523.22 | AT140: CCRUNIT D24 | AU140: 501.304 | AV140: 5896 | AZ140: CCRUNIT D24 | BF140: TRUE | BG140: CCRUNIT D24 | BH140: 478.947 | BI140: 5876.94 | BK140: CCRUNIT D8 | BL140: 258.243 | BM140: 5977.02 | BO140: CCRUNIT D8 | BP140: 225.156 | BQ140: 5435.68
R141: CCRUNIT D24 | S141: 535.054 | T141: 5977.34 | V141: CCRUNIT D24 | W141: 556.042 | X141: 6115.59 | Z141: CCRUNIT D24 | AA141: 546.893 | AB141: 6095.23 | AL141: CCRUNIT D8 | AM141: 187.663 | AN141: 5621.88 | AP141: CCRUNIT D8 | AQ141: 203.453 | AR141: 5523.22 | AT141: CCRUNIT D8 | AU141: 246.673 | AV141: 5896 | AZ141: CCRUNIT D8 | BF141: TRUE | BG141: CCRUNIT D8 | BH141: 272.04 | BI141: 5876.94 | BK141: CCRUNIT MT | BL141: 83.51 | BM141: 5977.02 | BO141: CCRUNIT MT | BP141: 78.011 | BQ141: 5435.68
R142: CCRUNIT D8 | S142: 247.066 | T142: 5977.34 | V142: CCRUNIT D8 | W142: 242.929 | X142: 6115.59 | Z142: CCRUNIT D8 | AA142: 233.808 | AB142: 6095.23 | AL142: CCRUNIT MT | AM142: 91.449 | AN142: 5621.88 | AP142: CCRUNIT MT | AQ142: 83.453 | AR142: 5523.22 | AT142: CCRUNIT MT | AU142: 87.81 | AV142: 5896 | AZ142: CCRUNIT MT | BF142: TRUE | BG142: CCRUNIT MT | BH142: 86.928 | BI142: 5876.94 | BK142: CCRUNIT PC | BL142: 57.102 | BM142: 5977.02 | BO142: CCRUNIT PC | BP142: 60.934 | BQ142: 5435.68
M143: Divide CCRUNIT MT Between Legacy and Wexpro II | R143: CCRUNIT MT | S143: 108.169 | T143: 5977.34 | V143: CCRUNIT MT | W143: 104.818 | X143: 6115.59 | Z143: CCRUNIT MT | AA143: 101.093 | AB143: 6095.23 | AL143: CCRUNIT PC | AM143: 48.936 | AN143: 5621.88 | AP143: CCRUNIT PC | AQ143: 40.509 | AR143: 5523.22 | AT143: CCRUNIT PC | AU143: 56.772 | AV143: 5896 | AZ143: CCRUNIT PC | BF143: TRUE | BG143: CCRUNIT PC | BH143: 55.351 | BI143: 5876.94 | BK143: CCRUNITMT PC | BL143: 18.222 | BM143: 5977.02 | BO143: CCRUNITMT PC | BP143: 16.46 | BQ143: 5435.68
L144: Month | M144: Legacy | N144: Wexpro II | O144: % Legacy | P144: % Wexpro II | R144: CCRUNIT PC | S144: 59.336 | T144: 5977.34 | V144: CCRUNIT PC | W144: 59.475 | X144: 6115.59 | Z144: CCRUNIT PC | AA144: 56.155 | AB144: 6095.23 | AL144: CCRUNITMT PC | AM144: 14.621 | AN144: 5621.88 | AP144: CCRUNITMT PC | AQ144: 12.331 | AR144: 5523.22 | AT144: CCRUNITMT PC | AU144: 18.015 | AV144: 5896 | AZ144: CCRUNITMT PC | BF144: TRUE | BG144: CCRUNITMT PC | BH144: 17.751 | BI144: 5876.94 | BK144: CCRUNITMTD24 | BL144: 44.076 | BM144: 5977.02 | BO144: CCRUNITMTD24 | BP144: 37.73 | BQ144: 5435.68
L145: June | M145: =B55 -> 71.091 | N145: =B106 -> 29.562 | O145: =M145/SUM(M145:N145) -> 0.7062978749 | P145: =N145/SUM(M145:N145) -> 0.2937021251 | R145: CCRUNITMT PC | S145: 17.136 | T145: 5977.34 | V145: CCRUNITMT PC | W145: 18.422 | X145: 6115.59 | Z145: CCRUNITMT PC | AA145: 19.247 | AB145: 6095.23 | AL145: CCRUNITMTD24 | AM145: 45.047 | AN145: 5621.88 | AP145: CCRUNITMTD24 | AQ145: 42.348 | AR145: 5523.22 | AT145: CCRUNITMTD24 | AU145: 46.022 | AV145: 5896 | AZ145: CCRUNITMTD24 | BF145: TRUE | BG145: CCRUNITMTD24 | BH145: 48.488 | BI145: 5876.94 | BK145: CHBT MT | BL145: 15.007 | BM145: 5977.02 | BO145: CHBT MT | BP145: 14.263 | BQ145: 5435.68
L146: July | M146: =C55 -> 71.179 | N146: =C106 -> 29.599 | O146: =M146/SUM(M146:N146) -> 0.7062950247 | P146: =N146/SUM(M146:N146) -> 0.2937049753 | R146: CCRUNITMTD24 | S146: 45.316 | T146: 5977.34 | V146: CCRUNITMTD24 | W146: 47.974 | X146: 6115.59 | Z146: CCRUNITMTD24 | AA146: 49.927 | AB146: 6095.23 | AL146: CHBT MT | AM146: 16.419 | AN146: 5621.88 | AP146: CHBT MT | AQ146: 16.195 | AR146: 5523.22 | AT146: CHBT MT | AU146: 15.885 | AV146: 5896 | AZ146: CHBT MT | BF146: =BG146=AZ146 -> TRUE | BG146: CHBT MT | BH146: 15.411 | BI146: 5876.94 | BK146: CHBTBUFF D24 | BL146: 0.985 | BM146: 5977.02 | BO146: CHBTBUFF D24 | BP146: 0.817 | BQ146: 5435.68
L147: Aug | M147: =D55 -> 69.099 | N147: =D106 -> 28.734 | O147: =M147/SUM(M147:N147) -> 0.7062954218 | P147: 0.2937045782 | R147: CHBT MT | S147: 15.433 | T147: 5977.34 | V147: CHBT MT | W147: 15.805 | X147: 6115.59 | Z147: CHBT MT | AA147: 17.814 | AB147: 6095.23 | AL147: CHBTBUFF D24 | AM147: 0.857 | AN147: 5621.88 | AP147: CHBTBUFF D24 | AQ147: 0.808 | AR147: 5523.22 | AT147: CHBTBUFF D24 | AU147: 0.784 | AV147: 5896 | AZ147: CHBTBUFF D24 | BF147: TRUE | BG147: CHBTBUFF D24 | BH147: 0.897 | BI147: 5876.94 | BK147: CHBTC1 MT PC | BL147: 20.171 | BM147: 5977.02 | BO147: CHBTC1 MT PC | BP147: 19.187 | BQ147: 5435.68
L148: Sept | M148: =E55 -> 65.025 | N148: =E106 -> 27.039 | O148: =M148/SUM(M148:N148) -> 0.7063021376 | P148: 0.2936978624 | R148: CHBTBUFF D24 | S148: 0.718 | T148: 5977.34 | V148: CHBTBUFF D24 | W148: 0.643 | X148: 6115.59 | Z148: CHBTBUFF D24 | AA148: 0.701 | AB148: 6095.23 | AL148: CHBTC1 MT PC | AM148: 23.358 | AN148: 5621.88 | AP148: CHBTC1 MT PC | AQ148: 22.472 | AR148: 5523.22 | AT148: CHBTC1 MT PC | AU148: 22.08 | AV148: 5896 | AZ148: CHBTC1 MT PC | BF148: TRUE | BG148: CHBTC1 MT PC | BH148: 21.402 | BI148: 5876.94 | BK148: CHBTCAT1 PC | BL148: 47.07 | BM148: 5977.02 | BO148: CHBTCAT1 PC | BP148: 47.265 | BQ148: 5435.68
L149: Oct | M149: =F55 -> 65.435 | N149: =F106 -> 27.209 | O149: 0.706305859 | P149: 0.293694141 | R149: CHBTC1 MT PC | S149: 20.243 | T149: 5977.34 | V149: CHBTC1 MT PC | W149: 19.425 | X149: 6115.59 | Z149: CHBTC1 MT PC | AA149: 24.297 | AB149: 6095.23 | AL149: CHBTCAT1 PC | AM149: 34.497 | AN149: 5621.88 | AP149: CHBTCAT1 PC | AQ149: 57.41 | AR149: 5523.22 | AT149: CHBTCAT1 PC | AU149: 49.787 | AV149: 5896 | AZ149: CHBTCAT1 PC | BF149: TRUE | BG149: CHBTCAT1 PC | BH149: 43.555 | BI149: 5876.94 | BK149: CHBTCAT2 D24 | BL149: 100.118 | BM149: 5977.02 | BO149: CHBTCAT2 D24 | BP149: 93.043 | BQ149: 5435.68
L150: Nov | M150: =G55 -> 61.746 | N150: =G106 -> 25.677 | O150: 0.7062901067 | P150: 0.2937098933 | R150: CHBTCAT1 PC | S150: 43.013 | T150: 5977.34 | V150: CHBTCAT1 PC | W150: 30.925 | X150: 6115.59 | Z150: CHBTCAT1 PC | AA150: 45.861 | AB150: 6095.23 | AL150: CHBTCAT2 D24 | AM150: 95.151 | AN150: 5621.88 | AP150: CHBTCAT2 D24 | AQ150: 99.129 | AR150: 5523.22 | AT150: CHBTCAT2 D24 | AU150: 99.873 | AV150: 5896 | AZ150: CHBTCAT2 D24 | BF150: TRUE | BG150: CHBTCAT2 D24 | BH150: 100.906 | BI150: 5876.94 | BK150: CHBTCAT2 PC | BL150: 2.277 | BM150: 5977.02 | BO150: CHBTCAT2 PC | BP150: 1.94 | BQ150: 5435.68
L151: Dec | M151: =H55 -> 62.291 | N151: =H106 -> 25.904 | O151: =M151/SUM(M151:N151) -> 0.7062872045 | P151: =N151/SUM(M151:N151) -> 0.2937127955 | R151: CHBTCAT2 D24 | S151: 80.105 | T151: 5977.34 | V151: CHBTCAT2 D24 | W151: 84.345 | X151: 6115.59 | Z151: CHBTCAT2 D24 | AA151: 98.414 | AB151: 6095.23 | AL151: CHBTCAT2 PC | AM151: 0.322 | AN151: 5621.88 | AP151: CHBTCAT2 PC | AQ151: 1.833 | AR151: 5523.22 | AT151: CHBTCAT2 PC | AU151: 2.475 | AV151: 5896 | AZ151: CHBTCAT2 PC | BF151: TRUE | BG151: CHBTCAT2 PC | BH151: 2.326 | BI151: 5876.94 | BK151: CHBTCAT3 D24 | BL151: 185.672 | BM151: 5977.02 | BO151: CHBTCAT3 D24 | BP151: 159.255 | BQ151: 5435.68
L152: Jan | M152: =I55 -> 60.875 | N152: =I106 -> 25.315 | O152: 0.7062884325 | P152: 0.2937115675 | R152: CHBTCAT2 PC | S152: 2.149 | T152: 5977.34 | V152: CHBTCAT2 PC | W152: 2.059 | X152: 6115.59 | Z152: CHBTCAT2 PC | AA152: 2.556 | AB152: 6095.23 | AL152: CHBTCAT3 D24 | AM152: 173.132 | AN152: 5621.88 | AP152: CHBTCAT3 D24 | AQ152: 171.136 | AR152: 5523.22 | AT152: CHBTCAT3 D24 | AU152: 177.51 | AV152: 5896 | AZ152: CHBTCAT3 D24 | BF152: TRUE | BG152: CHBTCAT3 D24 | BH152: 192.227 | BI152: 5876.94 | BK152: DRY PINY MT | BL152: 5.616 | BM152: 5977.02 | BO152: DRY PINY MT | BP152: 5.045 | BQ152: 5435.68
L153: Feb | M153: =J55 -> 55.709 | N153: =J106 -> 23.165 | O153: 0.7063037249 | P153: 0.2936962751 | R153: CHBTCAT3 D24 | S153: 156.892 | T153: 5977.34 | V153: CHBTCAT3 D24 | W153: 159.285 | X153: 6115.59 | Z153: CHBTCAT3 D24 | AA153: 187.11 | AB153: 6095.23 | AL153: DRY PINY MT | AM153: 2.218 | AN153: 5621.88 | AP153: DRY PINY MT | AQ153: 2.462 | AR153: 5523.22 | AT153: DRY PINY MT | AU153: 4.809 | AV153: 5896 | AZ153: DRY PINY MT | BF153: TRUE | BG153: DRY PINY MT | BH153: 5.531 | BI153: 5876.94 | BK153: DRYPINY6 D24 | BL153: 1.365 | BM153: 5977.02 | BO153: DRYPINY6 D24 | BP153: 1.212 | BQ153: 5435.68
L154: Mar | R154: DRY PINY MT | S154: 2.109 | T154: 5977.34 | V154: DRY PINY MT | W154: 2.2 | X154: 6115.59 | Z154: DRY PINY MT | AA154: 2.421 | AB154: 6095.23 | AL154: DRYPINY6 D24 | AM154: 1.097 | AN154: 5621.88 | AP154: DRYPINY6 D24 | AQ154: 1.236 | AR154: 5523.22 | AT154: DRYPINY6 D24 | AU154: 1.204 | AV154: 5896 | AZ154: DRYPINY6 D24 | BF154: TRUE | BG154: DRYPINY6 D24 | BH154: 1.446 | BI154: 5876.94 | BK154: DRYPINY6 PC | BL154: 1.226 | BM154: 5977.02 | BO154: DRYPINY6 PC | BP154: 1.094 | BQ154: 5435.68
L155: Apr | R155: DRYPINY6 D24 | S155: 1.012 | T155: 5977.34 | V155: DRYPINY6 D24 | W155: 1.086 | X155: 6115.59 | Z155: DRYPINY6 D24 | AA155: 1.04 | AB155: 6095.23 | AL155: DRYPINY6 PC | AM155: 1.226 | AN155: 5621.88 | AP155: DRYPINY6 PC | AQ155: 1.245 | AR155: 5523.22 | AT155: DRYPINY6 PC | AU155: 1.26 | AV155: 5896 | AZ155: DRYPINY6 PC | BF155: TRUE | BG155: DRYPINY6 PC | BH155: 1.193 | BI155: 5876.94 | BK155: DRYPINYU D24 | BL155: 1.823 | BM155: 5977.02 | BO155: DRYPINYU D24 | BP155: 1.661 | BQ155: 5435.68
L156: May | R156: DRYPINY6 PC | S156: 1.158 | T156: 5977.34 | V156: DRYPINY6 PC | W156: 1.282 | X156: 6115.59 | Z156: DRYPINY6 PC | AA156: 1.272 | AB156: 6095.23 | AL156: DRYPINYU D24 | AM156: 1.108 | AN156: 5621.88 | AP156: DRYPINYU D24 | AQ156: 1.083 | AR156: 5523.22 | AT156: DRYPINYU D24 | AU156: 2.043 | AV156: 5896 | AZ156: DRYPINYU D24 | BF156: TRUE | BG156: DRYPINYU D24 | BH156: 2.003 | BI156: 5876.94 | BK156: DRYPINYU PC | BL156: 10.54 | BM156: 5977.02 | BO156: DRYPINYU PC | BP156: 8.962 | BQ156: 5435.68
R157: DRYPINYU D24 | S157: 1.051 | T157: 5977.34 | V157: DRYPINYU D24 | W157: 1.169 | X157: 6115.59 | Z157: DRYPINYU D24 | AA157: 1.173 | AB157: 6095.23 | AL157: DRYPINYU PC | AM157: 7.038 | AN157: 5621.88 | AP157: DRYPINYU PC | AQ157: 6.509 | AR157: 5523.22 | AT157: DRYPINYU PC | AU157: 9.889 | AV157: 5896 | AZ157: DRYPINYU PC | BF157: TRUE | BG157: DRYPINYU PC | BH157: 9.672 | BI157: 5876.94 | BK157: HWA DEEP D24 | BL157: 0.336 | BM157: 5977.02 | BO157: HWA DEEP D24 | BP157: 0.026 | BQ157: 5435.68
R158: DRYPINYU PC | S158: 5.429 | T158: 5977.34 | V158: DRYPINYU PC | W158: 5.719 | X158: 6115.59 | Z158: DRYPINYU PC | AA158: 6.464 | AB158: 6095.23 | AL158: FOGARTY PC | AM158: 0.85 | AN158: 5621.88 | AP158: FOGARTY PC | AQ158: 0.83 | AR158: 5523.22 | AT158: HWA DEEP D24 | AU158: 0.276 | AV158: 5896 | AZ158: HWA DEEP D24 | BF158: TRUE | BG158: HWA DEEP D24 | BH158: 0.264 | BI158: 5876.94 | BK158: HWA DEEP PC | BL158: 0.19 | BM158: 5977.02 | BO158: HWA DEEP PC | BP158: 0.145 | BQ158: 5435.68
R159: FOGARTY PC | S159: 0.923 | T159: 5977.34 | V159: FOGARTY PC | W159: 1.478 | X159: 6115.59 | Z159: FOGARTY PC | AA159: 1.473 | AB159: 6095.23 | AL159: HWA DEEP D24 | AM159: 0.42 | AN159: 5621.88 | AP159: HWA DEEP D24 | AQ159: 0.446 | AR159: 5523.22 | AT159: HWA DEEP PC | AU159: 0.241 | AV159: 5896 | AZ159: HWA DEEP PC | BF159: TRUE | BG159: HWA DEEP PC | BH159: 0.023 | BI159: 5876.94 | BK159: HWA MT | BL159: 3.17 | BM159: 5977.02 | BO159: HWA MT | BP159: 2.549 | BQ159: 5435.68
R160: HWA DEEP D24 | S160: 0.268 | T160: 5977.34 | V160: HWA DEEP D24 | W160: 0.396 | X160: 6115.59 | Z160: HWA DEEP D24 | AA160: 0.124 | AB160: 6095.23 | AL160: HWA DEEP PC | AM160: 0.449 | AN160: 5621.88 | AP160: HWA DEEP PC | AQ160: 0.279 | AR160: 5523.22 | AT160: HWA MT | AU160: 3.084 | AV160: 5896 | AZ160: HWA MT | BF160: TRUE | BG160: HWA MT | BH160: 2.705 | BI160: 5876.94 | BK160: HWADEEPMTD24 | BL160: 17.394 | BM160: 5977.02 | BO160: HWADEEPMTD24 | BP160: 14.698 | BQ160: 5435.68
R161: HWA DEEP PC | S161: 0.164 | T161: 5977.34 | V161: HWA DEEP PC | W161: 1.16 | X161: 6115.59 | Z161: HWA DEEP PC | AA161: 1.044 | AB161: 6095.23 | AL161: HWA MT | AM161: 2.779 | AN161: 5621.88 | AP161: HWA MT | AQ161: 3.231 | AR161: 5523.22 | AT161: HWADEEPMTD24 | AU161: 17.33 | AV161: 5896 | AZ161: HWADEEPMTD24 | BF161: TRUE | BG161: HWADEEPMTD24 | BH161: 17.547 | BI161: 5876.94 | BK161: HWPL1&3MTD24 | BL161: 8.459 | BM161: 5977.02 | BO161: HWPL1&3MTD24 | BP161: 7.658 | BQ161: 5435.68
R162: HWA MT | S162: 2.516 | T162: 5977.34 | V162: HWA MT | W162: 2.562 | X162: 6115.59 | Z162: HWA MT | AA162: 3.045 | AB162: 6095.23 | AL162: HWADEEPMTD24 | AM162: 17.588 | AN162: 5621.88 | AP162: HWADEEPMTD24 | AQ162: 18.126 | AR162: 5523.22 | AT162: HWPL1&3MTD24 | AU162: 8.63 | AV162: 5896 | AZ162: HWPL1&3MTD24 | BF162: TRUE | BG162: HWPL1&3MTD24 | BH162: 8.947 | BI162: 5876.94 | BK162: HWPL1&3MTPC | BL162: 7.623 | BM162: 5977.02 | BO162: HWPL1&3MTPC | BP162: 7.185 | BQ162: 5435.68
R163: HWADEEPMTD24 | S163: 11.134 | T163: 5977.34 | V163: HWADEEPMTD24 | W163: 18.597 | X163: 6115.59 | Z163: HWADEEPMTD24 | AA163: 17.663 | AB163: 6095.23 | AL163: HWPL1&3MTD24 | AM163: 8.091 | AN163: 5621.88 | AP163: HWPL1&3MTD24 | AQ163: 7.924 | AR163: 5523.22 | AT163: HWPL1&3MTPC | AU163: 7.283 | AV163: 5896 | AZ163: HWPL1&3MTPC | BF163: TRUE | BG163: HWPL1&3MTPC | BH163: 7.87 | BI163: 5876.94 | BK163: HWPLT1&3 D24 | BL163: 90.148 | BM163: 5977.02 | BO163: HWPLT1&3 D24 | BP163: 80.139 | BQ163: 5435.68
R164: HWPL1&3MTD24 | S164: 8.052 | T164: 5977.34 | V164: HWPL1&3MTD24 | W164: 9.044 | X164: 6115.59 | Z164: HWPL1&3MTD24 | AA164: 8.454 | AB164: 6095.23 | AL164: HWPL1&3MTPC | AM164: 6.113 | AN164: 5621.88 | AP164: HWPL1&3MTPC | AQ164: 7.614 | AR164: 5523.22 | AT164: HWPLT1&3 D24 | AU164: 88.759 | AV164: 5896 | AZ164: HWPLT1&3 D24 | BF164: TRUE | BG164: HWPLT1&3 D24 | BH164: 91.384 | BI164: 5876.94 | BK164: HWPLT1&3 PC | BL164: 62.476 | BM164: 5977.02 | BO164: HWPLT1&3 PC | BP164: 56.318 | BQ164: 5435.68
R165: HWPL1&3MTPC | S165: 7.324 | T165: 5977.34 | V165: HWPL1&3MTPC | W165: 6.546 | X165: 6115.59 | Z165: HWPL1&3MTPC | AA165: 6.598 | AB165: 6095.23 | AL165: HWPLT1&3 D24 | AM165: 85.079 | AN165: 5621.88 | AP165: HWPLT1&3 D24 | AQ165: 95.983 | AR165: 5523.22 | AT165: HWPLT1&3 PC | AU165: 63.344 | AV165: 5896 | AZ165: HWPLT1&3 PC | BF165: TRUE | BG165: HWPLT1&3 PC | BH165: 64.337 | BI165: 5876.94 | BK165: HWPLT2 D24 | BL165: 9.108 | BM165: 5977.02 | BO165: HWPLT2 D24 | BP165: 7.399 | BQ165: 5435.68
R166: HWPLT1&3 D24 | S166: 80.887 | T166: 5977.34 | V166: HWPLT1&3 D24 | W166: 87.067 | X166: 6115.59 | Z166: HWPLT1&3 D24 | AA166: 82.162 | AB166: 6095.23 | AL166: HWPLT1&3 PC | AM166: 51.958 | AN166: 5621.88 | AP166: HWPLT1&3 PC | AQ166: 64.43 | AR166: 5523.22 | AT166: HWPLT2 D24 | AU166: 9.203 | AV166: 5896 | AZ166: HWPLT2 D24 | BF166: TRUE | BG166: HWPLT2 D24 | BH166: 8.182 | BI166: 5876.94 | BK166: HWPLT2 PC | BL166: 0.725 | BM166: 5977.02 | BO166: HWPLT2 PC | BP166: 0.762 | BQ166: 5435.68
R167: HWPLT1&3 PC | S167: 62.687 | T167: 5977.34 | V167: HWPLT1&3 PC | W167: 51.482 | X167: 6115.59 | Z167: HWPLT1&3 PC | AA167: 50.115 | AB167: 6095.23 | AL167: HWPLT2 D24 | AM167: 9.092 | AN167: 5621.88 | AP167: HWPLT2 D24 | AQ167: 10.55 | AR167: 5523.22 | AT167: HWPLT2 PC | AU167: 0.77 | AV167: 5896 | AZ167: HWPLT2 PC | BF167: TRUE | BG167: HWPLT2 PC | BH167: 0.593 | BI167: 5876.94 | BK167: HWPLT2MT D24 | BL167: 2.318 | BM167: 5977.02 | BO167: HWPLT2MT D24 | BP167: 1.264 | BQ167: 5435.68
R168: HWPLT2 D24 | S168: 2.84 | T168: 5977.34 | V168: HWPLT2 D24 | W168: 8.828 | X168: 6115.59 | Z168: HWPLT2 D24 | AA168: 8.941 | AB168: 6095.23 | AL168: HWPLT2 PC | AM168: 0.932 | AN168: 5621.88 | AP168: HWPLT2 PC | AQ168: 0.804 | AR168: 5523.22 | AT168: HWPLT2MT D24 | AU168: 2.153 | AV168: 5896 | AZ168: HWPLT2MT D24 | BF168: TRUE | BG168: HWPLT2MT D24 | BH168: 2.358 | BI168: 5876.94 | BK168: ISLAND D24 | BL168: 45.817 | BM168: 5977.02 | BO168: ISLAND D24 | BP168: 50.042 | BQ168: 5435.68
R169: HWPLT2 PC | S169: 0.81 | T169: 5977.34 | V169: HWPLT2 PC | W169: 0.697 | X169: 6115.59 | Z169: HWPLT2 PC | AA169: 0.759 | AB169: 6095.23 | AL169: HWPLT2MT D24 | AM169: 1.128 | AN169: 5621.88 | AP169: HWPLT2MT D24 | AQ169: 0.583 | AR169: 5523.22 | AT169: ISLAND D24 | AU169: 53.924 | AV169: 5896 | AZ169: ISLAND D24 | BF169: TRUE | BG169: ISLAND D24 | BH169: 50.692 | BI169: 5876.94 | BK169: ISLAND PC | BL169: 0.558 | BM169: 5977.02 | BO169: ISLAND PC | BP169: 0.616 | BQ169: 5435.68
R170: HWPLT2MT D24 | S170: 1.61 | T170: 5977.34 | V170: HWPLT2MT D24 | W170: 1.491 | X170: 6115.59 | Z170: HWPLT2MT D24 | AA170: 1.417 | AB170: 6095.23 | AL170: ISLAND D24 | AM170: 56.572 | AN170: 5621.88 | AP170: ISLAND D24 | AQ170: 54.711 | AR170: 5523.22 | AT170: ISLAND PC | AU170: 0.655 | AV170: 5896 | AZ170: ISLAND PC | BF170: TRUE | BG170: ISLAND PC | BH170: 0.553 | BI170: 5876.94 | BK170: JRDG WFS D24 | BL170: 0.523 | BM170: 5977.02 | BO170: KNY FLD D24 | BP170: 9.52 | BQ170: 5435.68
R171: ISLAND D24 | S171: 56.159 | T171: 5977.34 | V171: ISLAND D24 | W171: 62.051 | X171: 6115.59 | Z171: ISLAND D24 | AA171: 59.595 | AB171: 6095.23 | AL171: ISLAND PC | AM171: 0.681 | AN171: 5621.88 | AP171: ISLAND PC | AQ171: 0.593 | AR171: 5523.22 | AT171: JNSNRDG D24 | AU171: 2.192 | AV171: 5896 | AZ171: JNSNRDG D24 | BF171: TRUE | BG171: JNSNRDG D24 | BH171: 0.688 | BI171: 5876.94 | BK171: KNY FLD D24 | BL171: 14.601 | BM171: 5977.02 | BO171: KNY FLD PC | BP171: 3.053 | BQ171: 5435.68
R172: ISLAND PC | S172: 0.839 | T172: 5977.34 | V172: ISLAND PC | W172: 0.812 | X172: 6115.59 | Z172: ISLAND PC | AA172: 0.734 | AB172: 6095.23 | AL172: JNSNRDG D24 | AM172: 2.328 | AN172: 5621.88 | AP172: JNSNRDG D24 | AQ172: 2.442 | AR172: 5523.22 | AT172: JNSNRDG PC | AU172: 2.459 | AV172: 5896 | AZ172: JNSNRDG PC | BF172: TRUE | BG172: JNSNRDG PC | BH172: 0.321 | BI172: 5876.94 | BK172: KNY FLD D8 | BL172: 7.865 | BM172: 5977.02 | BO172: MESA D24 | BP172: 697.24 | BQ172: 5435.68
R173: JNSNRDG D24 | S173: 2.284 | T173: 5977.34 | V173: JNSNRDG D24 | W173: 2.555 | X173: 6115.59 | Z173: JNSNRDG D24 | AA173: 2.67 | AB173: 6095.23 | AL173: JNSNRDG PC | AM173: 2.748 | AN173: 5621.88 | AP173: JNSNRDG PC | AQ173: 2.721 | AR173: 5523.22 | AT173: JRDG WFS D24 | AU173: 3.077 | AV173: 5896 | AZ173: JRDG WFS D24 | BF173: TRUE | BG173: JRDG WFS D24 | BH173: 2.353 | BI173: 5876.94 | BK173: KNY FLD PC | BL173: 3.888 | BM173: 5977.02 | BO173: MESA D8 | BP173: 387.053 | BQ173: 5435.68
R174: JNSNRDG PC | S174: 2.501 | T174: 5977.34 | V174: JNSNRDG PC | W174: 2.846 | X174: 6115.59 | Z174: JNSNRDG PC | AA174: 2.814 | AB174: 6095.23 | AL174: JRDG WFS D24 | AM174: 3.195 | AN174: 5621.88 | AP174: JRDG WFS D24 | AQ174: 3.365 | AR174: 5523.22 | AT174: KNY FLD D24 | AU174: 15.958 | AV174: 5896 | AZ174: KNY FLD D24 | BF174: TRUE | BG174: KNY FLD D24 | BH174: 13.297 | BI174: 5876.94 | BK174: MESA D24 | BL174: 779.779 | BM174: 5977.02 | BO174: MOSU MT | BP174: 0.132 | BQ174: 5435.68
R175: JRDG WFS D24 | S175: 3.411 | T175: 5977.34 | V175: JRDG WFS D24 | W175: 3.537 | X175: 6115.59 | Z175: JRDG WFS D24 | AA175: 3.798 | AB175: 6095.23 | AL175: KNY FLD D24 | AM175: 19.922 | AN175: 5621.88 | AP175: KNY FLD D24 | AQ175: 14.482 | AR175: 5523.22 | AT175: KNY FLD D8 | AU175: 15.276 | AV175: 5896 | AZ175: KNY FLD D8 | BF175: TRUE | BG175: KNY FLD D8 | BH175: 15.66 | BI175: 5876.94 | BK175: MESA D8 | BL175: 434.022 | BM175: 5977.02 | BO175: MOSUMT D24 | BP175: 0.7 | BQ175: 5435.68
R176: KNY FLD D24 | S176: 18.672 | T176: 5977.34 | V176: KNY FLD D24 | W176: 20.581 | X176: 6115.59 | Z176: KNY FLD D24 | AA176: 18.832 | AB176: 6095.23 | AL176: KNY FLD D8 | AM176: 15.267 | AN176: 5621.88 | AP176: KNY FLD D8 | AQ176: 14.808 | AR176: 5523.22 | AT176: KNY FLD PC | AU176: 3.342 | AV176: 5896 | AZ176: KNY FLD PC | BF176: TRUE | BG176: KNY FLD PC | BH176: 4.775 | BI176: 5876.94 | BK176: MOSU MT | BL176: 0.1 | BM176: 5977.02 | BO176: MOSUMT PC | BP176: 6.488 | BQ176: 5435.68
R177: KNY FLD D8 | S177: 11.799 | T177: 5977.34 | V177: KNY FLD D8 | W177: 11.826 | X177: 6115.59 | Z177: KNY FLD D8 | AA177: 14.887 | AB177: 6095.23 | AL177: KNY FLD PC | AM177: 4.658 | AN177: 5621.88 | AP177: KNY FLD PC | AQ177: 2.981 | AR177: 5523.22 | AT177: MESA D24 | AU177: 789.803 | AV177: 5896 | AZ177: MESA D24 | BF177: TRUE | BG177: MESA D24 | BH177: 805.21 | BI177: 5876.94 | BK177: MOSUMT D24 | BL177: 0.946 | BM177: 5977.02 | BO177: PDW MT | BP177: 167.437 | BQ177: 5435.68
R178: KNY FLD PC | S178: 1.86 | T178: 5977.34 | V178: MESA D24 | W178: 846.808 | X178: 6115.59 | Z178: KNY FLD PC | AA178: 5.069 | AB178: 6095.23 | AL178: MESA D24 | AM178: 791.484 | AN178: 5621.88 | AP178: MESA D24 | AQ178: 784.762 | AR178: 5523.22 | AT178: MESA D8 | AU178: 453.45 | AV178: 5896 | AZ178: MESA D8 | BF178: =BG178=AZ178 -> TRUE | BG178: MESA D8 | BH178: 447.711 | BI178: 5876.94 | BK178: MOSUMT PC | BL178: 12.335 | BM178: 5977.02 | BO178: PDW1A1B D21 | BP178: 0.01 | BQ178: 5435.68
R179: MESA D24 | S179: 839.44 | T179: 5977.34 | V179: MESA D8 | W179: 555.484 | X179: 6115.59 | Z179: MESA D24 | AA179: 838.455 | AB179: 6095.23 | AL179: MESA D8 | AM179: 483.591 | AN179: 5621.88 | AP179: MESA D8 | AQ179: 482.116 | AR179: 5523.22 | AT179: MOSU MT | AU179: 0.52 | AV179: 5896 | AZ179: MOSU MT | BF179: TRUE | BG179: MOSU MT | BH179: 0.309 | BI179: 5876.94 | BK179: PDW MT | BL179: 195.129 | BM179: 5977.02 | BO179: PDW1A1B D24 | BP179: 0.168 | BQ179: 5435.68
R180: MESA D8 | S180: 564.666 | T180: 5977.34 | V180: MOSU MT | W180: 0.166 | X180: 6115.59 | Z180: MESA D8 | AA180: 529.955 | AB180: 6095.23 | AL180: MOSU MT | AM180: 0.265 | AN180: 5621.88 | AP180: MOSU MT | AQ180: 0.299 | AR180: 5523.22 | AT180: MOSUMT D24 | AU180: 1.265 | AV180: 5896 | AZ180: MOSUMT D24 | BF180: TRUE | BG180: MOSUMT D24 | BH180: 1.113 | BI180: 5876.94 | BK180: PDW1A1B D21 | BL180: 0.016 | BM180: 5977.02 | BO180: PDW1A1B MT PC | BP180: 3.448 | BQ180: 5435.68
R181: MOSU MT | S181: 0.387 | T181: 5977.34 | V181: MOSUMT D24 | W181: 1.653 | X181: 6115.59 | Z181: MOSU MT | AA181: 0.212 | AB181: 6095.23 | AL181: MOSUMT D24 | AM181: 1.437 | AN181: 5621.88 | AP181: MOSUMT D24 | AQ181: 1.612 | AR181: 5523.22 | AT181: MOSUMT PC | AU181: 9.922 | AV181: 5896 | AZ181: MOSUMT PC | BF181: TRUE | BG181: MOSUMT PC | BH181: 11.259 | BI181: 5876.94 | BK181: PDW1A1B D24 | BL181: 0.182 | BM181: 5977.02 | BO181: PDW1A1B PC | BP181: 0.314 | BQ181: 5435.68
R182: MOSUMT D24 | S182: 1.59 | T182: 5977.34 | V182: MOSUMT PC | W182: 11.187 | X182: 6115.59 | Z182: MOSUMT D24 | AA182: 1.58 | AB182: 6095.23 | AL182: MOSUMT PC | AM182: 11.953 | AN182: 5621.88 | AP182: MOSUMT PC | AQ182: 10.986 | AR182: 5523.22 | AT182: PDW MT | AU182: 206.881 | AV182: 5896 | AZ182: PDW MT | BF182: TRUE | BG182: PDW MT | BH182: 198.491 | BI182: 5876.94 | BK182: PDW1A1B MT PC | BL182: 2.719 | BM182: 5977.02 | BO182: PDWCUT D24 | BP182: 0.612 | BQ182: 5435.68
R183: MOSUMT PC | S183: 13.212 | T183: 5977.34 | V183: PDW MT | W183: 205.237 | X183: 6115.59 | Z183: MOSUMT PC | AA183: 12.137 | AB183: 6095.23 | AL183: PDW MT | AM183: 222.156 | AN183: 5621.88 | AP183: PDW MT | AQ183: 217.858 | AR183: 5523.22 | AT183: PDW1A1B D21 | AU183: 0.075 | AV183: 5896 | AX183: NBXCAMP PC | AZ183: PDW1A1B D21 | BF183: TRUE | BG183: PDW1A1B D21 | BH183: 0.051 | BI183: 5876.94 | BK183: PDW1A1B PC | BL183: 0.84 | BM183: 5977.02 | BO183: PDWMT D24 | BP183: 23.569 | BQ183: 5435.68
R184: PDW MT | S184: 208.942 | T184: 5977.34 | V184: PDW1A1B D21 | W184: 0.307 | X184: 6115.59 | Z184: PDW MT | AA184: 235.037 | AB184: 6095.23 | AL184: PDW1A1B D21 | AM184: 0.142 | AN184: 5621.88 | AP184: PDW1A1B D21 | AQ184: 0.13 | AR184: 5523.22 | AT184: PDW1A1B D24 | AU184: 0.35 | AV184: 5896 | AX184: NOBXFLD PC | AZ184: PDW1A1B D24 | BF184: TRUE | BG184: PDW1A1B D24 | BH184: 0.301 | BI184: 5876.94 | BK184: PDWCUT D24 | BL184: 0.761 | BM184: 5977.02 | BO184: PDWPLT2 D24 | BP184: 3.44 | BQ184: 5435.68
R185: PDW1A1B D21 | S185: 0.449 | T185: 5977.34 | V185: PDW1A1B D24 | W185: 0.372 | X185: 6115.59 | Z185: PDW1A1B D21 | AA185: 0.185 | AB185: 6095.23 | AL185: PDW1A1B D24 | AM185: 0.37 | AN185: 5621.88 | AP185: PDW1A1B D24 | AQ185: 0.297 | AR185: 5523.22 | AT185: PDW1A1B MT PC | AU185: 3.534 | AV185: 5896 | AX185: OFF SYS D24 | AZ185: PDW1A1B MT PC | BF185: TRUE | BG185: PDW1A1B MT PC | BH185: 0.746 | BI185: 5876.94 | BK185: PDWMT D24 | BL185: 24.344 | BM185: 5977.02 | BO185: PDWPLT2 PC | BP185: 3.71 | BQ185: 5435.68
R186: PDW1A1B D24 | S186: 0.431 | T186: 5977.34 | V186: PDW1A1B MT PC | W186: 3.804 | X186: 6115.59 | Z186: PDW1A1B D24 | AA186: 0.478 | AB186: 6095.23 | AL186: PDW1A1B MT PC | AM186: 3.668 | AN186: 5621.88 | AP186: PDW1A1B MT PC | AQ186: 3.957 | AR186: 5523.22 | AT186: PDW1A1B PC | AU186: 1.346 | AV186: 5896 | AX186: OFF SYS PC | AZ186: PDW1A1B PC | BF186: TRUE | BG186: PDW1A1B PC | BH186: 1.206 | BI186: 5876.94 | BK186: PDWPLT2 D24 | BL186: 4.128 | BM186: 5977.02 | BO186: PDWPLT3 PC | BP186: 3.664 | BQ186: 5435.68
R187: PDW1A1B MT PC | S187: 3.584 | T187: 5977.34 | V187: PDW1A1B PC | W187: 1.044 | X187: 6115.59 | Z187: PDW1A1B MT PC | AA187: 3.924 | AB187: 6095.23 | AL187: PDW1A1B PC | AM187: 1.84 | AN187: 5621.88 | AP187: PDW1A1B PC | AQ187: 1.666 | AR187: 5523.22 | AT187: PDWCUT D24 | AU187: 0.976 | AV187: 5896 | AX187: OFF SYS PW | AZ187: PDWCUT D24 | BF187: TRUE | BG187: PDWCUT D24 | BH187: 0.846 | BI187: 5876.94 | BK187: PDWPLT2 PC | BL187: 5.319 | BM187: 5977.02 | BO187: SGRLF D24 | BP187: 1.419 | BQ187: 5435.68
R188: PDW1A1B PC | S188: 1.476 | T188: 5977.34 | V188: PDWCUT D24 | W188: 1.286 | X188: 6115.59 | Z188: PDW1A1B PC | AA188: 1.738 | AB188: 6095.23 | AL188: PDWCUT D24 | AM188: 1.273 | AN188: 5621.88 | AP188: PDWCUT D24 | AQ188: 1.032 | AR188: 5523.22 | AT188: PDWCUT PC | AU188: 0.65 | AV188: 5896 | AZ188: PDWCUT PC | BF188: TRUE | BG188: PDWCUT PC | BH188: 0.001 | BI188: 5876.94 | BK188: PDWPLT3 PC | BL188: 3.805 | BM188: 5977.02 | BO188: SGRLF PC | BP188: 33.484 | BQ188: 5435.68
R189: PDWCUT D24 | S189: 1.287 | T189: 5977.34 | V189: PDWCUT PC | W189: 1.258 | X189: 6115.59 | Z189: PDWCUT D24 | AA189: 1.441 | AB189: 6095.23 | AL189: PDWCUT PC | AM189: 1.404 | AN189: 5621.88 | AP189: PDWCUT PC | AQ189: 1.184 | AR189: 5523.22 | AT189: PDWMT D24 | AU189: 28.483 | AV189: 5896 | AZ189: PDWMT D24 | BF189: TRUE | BG189: PDWMT D24 | BH189: 24.131 | BI189: 5876.94 | BK189: SGRLF D24 | BL189: 1.36 | BM189: 5977.02 | BO189: SGRLFMT D24 | BP189: 10.232 | BQ189: 5435.68
R190: PDWCUT PC | S190: 1.164 | T190: 5977.34 | V190: PDWMT D24 | W190: 32.323 | X190: 6115.59 | Z190: PDWCUT PC | AA190: 1.596 | AB190: 6095.23 | AL190: PDWMT D24 | AM190: 31.011 | AN190: 5621.88 | AP190: PDWMT D24 | AQ190: 30.96 | AR190: 5523.22 | AT190: PDWPLT2 D24 | AU190: 4.422 | AV190: 5896 | AZ190: PDWPLT2 D24 | BF190: TRUE | BG190: PDWPLT2 D24 | BH190: 4.168 | BI190: 5876.94 | BK190: SGRLF PC | BL190: 37.392 | BM190: 5977.02 | BO190: TRAIL 2D8 | BP190: 103.665 | BQ190: 5435.68
R191: PDWMT D24 | S191: 35.178 | T191: 5977.34 | V191: PDWPLT2 D24 | W191: 4.118 | X191: 6115.59 | Z191: PDWMT D24 | AA191: 34.32 | AB191: 6095.23 | AL191: PDWPLT2 D24 | AM191: 4.94 | AN191: 5621.88 | AP191: PDWPLT2 D24 | AQ191: 4.557 | AR191: 5523.22 | AT191: PDWPLT2 PC | AU191: 4.738 | AV191: 5896 | AZ191: PDWPLT2 PC | BF191: TRUE | BG191: PDWPLT2 PC | BH191: 4.775 | BI191: 5876.94 | BK191: SGRLFMT D24 | BL191: 14.902 | BM191: 5977.02 | BO191: TRAIL 2E | BP191: 427.945 | BQ191: 5435.68
R192: PDWPLT2 D24 | S192: 4.34 | T192: 5977.34 | V192: PDWPLT2 PC | W192: 7.076 | X192: 6115.59 | Z192: PDWPLT2 D24 | AA192: 5.176 | AB192: 6095.23 | AL192: PDWPLT2 PC | AM192: 5.336 | AN192: 5621.88 | AP192: PDWPLT2 PC | AQ192: 6.008 | AR192: 5523.22 | AT192: PDWPLT3 PC | AU192: 4.503 | AV192: 5896 | AZ192: PDWPLT3 PC | BF192: TRUE | BG192: PDWPLT3 PC | BH192: 3.696 | BI192: 5876.94 | BK192: TRAIL 2D8 | BL192: 117.172 | BM192: 5977.02 | BO192: TRAIL 2E MT | BP192: 54.011 | BQ192: 5435.68
R193: PDWPLT2 PC | S193: 5.813 | T193: 5977.34 | V193: PDWPLT3 PC | W193: 5.139 | X193: 6115.59 | Z193: PDWPLT2 PC | AA193: 5.816 | AB193: 6095.23 | AL193: PDWPLT3 PC | AM193: 4.793 | AN193: 5621.88 | AP193: PDWPLT3 PC | AQ193: 4.626 | AR193: 5523.22 | AT193: SGRLF D24 | AU193: 1.401 | AV193: 5896 | AZ193: SGRLF D24 | BF193: TRUE | BG193: SGRLF D24 | BH193: 1.304 | BI193: 5876.94 | BK193: TRAIL 2E | BL193: 464.721 | BM193: 5977.02 | BO193: TRAIL D24 | BP193: 392.625 | BQ193: 5435.68
R194: PDWPLT3 PC | S194: 5.67 | T194: 5977.34 | V194: SGRLF D24 | W194: 1.55 | X194: 6115.59 | Z194: PDWPLT3 PC | AA194: 5.749 | AB194: 6095.23 | AL194: SGRLF D24 | AM194: 1.767 | AN194: 5621.88 | AP194: SGRLF D24 | AQ194: 1.735 | AR194: 5523.22 | AT194: SGRLF PC | AU194: 36.821 | AV194: 5896 | AZ194: SGRLF PC | BF194: TRUE | BG194: SGRLF PC | BH194: 34.442 | BI194: 5876.94 | BK194: TRAIL 2E MT | BL194: 61.04 | BM194: 5977.02 | BO194: TRAIL D8 | BP194: 109.479 | BQ194: 5435.68
R195: SGRLF D24 | S195: 1.477 | T195: 5977.34 | V195: SGRLF PC | W195: 40.914 | X195: 6115.59 | Z195: SGRLF D24 | AA195: 2.009 | AB195: 6095.23 | AL195: SGRLF PC | AM195: 40.141 | AN195: 5621.88 | AP195: SGRLF PC | AQ195: 37.679 | AR195: 5523.22 | AT195: SGRLFMT D24 | AU195: 16.717 | AV195: 5896 | AZ195: SGRLFMT D24 | BF195: TRUE | BG195: SGRLFMT D24 | BH195: 12.099 | BI195: 5876.94 | BK195: TRAIL D24 | BL195: 425.711 | BM195: 5977.02 | BO195: TRAIL PC | BP195: 1.25 | BQ195: 5435.68
R196: SGRLF PC | S196: 41.673 | T196: 5977.34 | V196: SGRLFMT D24 | W196: 19.256 | X196: 6115.59 | Z196: SGRLF PC | AA196: 42.406 | AB196: 6095.23 | AL196: SGRLFMT D24 | AM196: 18.742 | AN196: 5621.88 | AP196: SGRLFMT D24 | AQ196: 15.984 | AR196: 5523.22 | AT196: TRAIL 2D8 | AU196: 130.506 | AV196: 5896 | AZ196: TRAIL 2D8 | BF196: TRUE | BG196: TRAIL 2D8 | BH196: 125.646 | BI196: 5876.94 | BK196: TRAIL D8 | BL196: 121.217 | BM196: 5977.02 | BO196: TRAILMT D24 | BP196: 54.589 | BQ196: 5435.68
R197: SGRLFMT D24 | S197: 19.598 | T197: 5977.34 | V197: TRAIL 2D8 | W197: 166.061 | X197: 6115.59 | Z197: SGRLFMT D24 | AA197: 20.797 | AB197: 6095.23 | AL197: TRAIL 2D8 | AM197: 149.165 | AN197: 5621.88 | AP197: TRAIL 2D8 | AQ197: 135.751 | AR197: 5523.22 | AT197: TRAIL 2E | AU197: 430.273 | AV197: 5896 | AZ197: TRAIL 2E | BF197: TRUE | BG197: TRAIL 2E | BH197: 452.544 | BI197: 5876.94 | BK197: TRAIL PC | BL197: 1.361 | BM197: 5977.02 | BO197: W100 | BP197: 0.075 | BQ197: 5435.68
R198: TRAIL 2D8 | S198: 159.879 | T198: 5977.34 | V198: TRAIL 2E | W198: 497.098 | X198: 6115.59 | Z198: TRAIL 2D8 | AA198: 155.198 | AB198: 6095.23 | AL198: TRAIL 2E | AM198: 467.024 | AN198: 5621.88 | AP198: TRAIL 2E | AQ198: 431.292 | AR198: 5523.22 | AT198: TRAIL 2E MT | AU198: 60.36 | AV198: 5896 | AZ198: TRAIL 2E MT | BF198: TRUE | BG198: TRAIL 2E MT | BH198: 59.587 | BI198: 5876.94 | BK198: TRAILMT D24 | BL198: 61.792 | BM198: 5977.02 | BO198: WHISKEY MT | BP198: 35.365 | BQ198: 5435.68
R199: TRAIL 2E | S199: 448.435 | T199: 5977.34 | V199: TRAIL 2E MT | W199: 66.665 | X199: 6115.59 | Z199: TRAIL 2E | AA199: 488.594 | AB199: 6095.23 | AL199: TRAIL 2E MT | AM199: 56.027 | AN199: 5621.88 | AP199: TRAIL 2E MT | AQ199: 57.741 | AR199: 5523.22 | AT199: TRAIL D24 | AU199: 391.99 | AV199: 5896 | AZ199: TRAIL D24 | BF199: TRUE | BG199: TRAIL D24 | BH199: 412.162 | BI199: 5876.94 | BK199: WHISKEY MT | BL199: 33.52 | BM199: 5977.02 | BO199: WHISKEYC 2E | BP199: 101.058 | BQ199: 5435.68
R200: TRAIL 2E MT | S200: 70.011 | T200: 5977.34 | V200: TRAIL D24 | W200: 435.793 | X200: 6115.59 | Z200: TRAIL 2E MT | AA200: 62.537 | AB200: 6095.23 | AL200: TRAIL D24 | AM200: 426.622 | AN200: 5621.88 | AP200: TRAIL D24 | AQ200: 392.88 | AR200: 5523.22 | AT200: TRAIL D8 | AU200: 127.853 | AV200: 5896 | AZ200: TRAIL D8 | BF200: TRUE | BG200: TRAIL D8 | BH200: 127.143 | BI200: 5876.94 | BK200: WHISKEYC 2E | BL200: 112.931 | BM200: 5977.02 | BO200: WHLA D24 | BP200: 29.944 | BQ200: 5435.68
... 16 more rows

Sheet Normal Purchase % (hidden)
B3: 2 | C3: 3 | D3: 4 | E3: 5 | F3: 6 | G3: 7 | H3: 8 | I3: 9
A4: Month | B4: Actual Purchase Mdth | C4: Normal Purchase Mdth | D4: Actual Company Mdth | E4: Normal Company Mdths | F4: Actual Purchase as Percent of Total | G4: Normal Purchase as Percent of Total | H4: Actual Cost-of-Service as Percent of Total | I4: Normal Cost-of-Service as Percent of Total | K4: Check Should = 100% | L4: Check Should = 100%
A5: ='Ex 1 HDD'!A8 -> 2019-06-01 | B5: ='Ex 4 Purchase Gas'!B8 -> 0 | C5: ='Ex 4 Purchase Gas'!C8 -> 777.383 | D5: ='Ex 7 Co. Owned Gas'!B8 -> 5977.337 | E5: ='Ex 7 Co. Owned Gas'!C8 -> 5747.91 | F5: =IFERROR(B5/(B5+D5),0) -> 0 | G5: =C5/(C5+E5) -> 0.1191338075 | H5: =IFERROR(D5/(D5+B5),0) -> 1 | I5: =E5/(E5+C5) -> 0.8808661925 | K5: =F5+H5 -> 1 | L5: =G5+I5 -> 1
A6: ='Ex 1 HDD'!A9 -> 2019-07-01 | B6: ='Ex 4 Purchase Gas'!B9 -> 0 | C6: ='Ex 4 Purchase Gas'!C9 -> 0 | D6: ='Ex 7 Co. Owned Gas'!B9 -> 6115.594 | E6: ='Ex 7 Co. Owned Gas'!C9 -> 5860.656 | F6: =IFERROR(B6/(B6+D6),0) -> 0 | G6: 0 | H6: =IFERROR(D6/(D6+B6),0) -> 1 | I6: 1 | K6: 1 | L6: 1
A7: ='Ex 1 HDD'!A10 -> 2019-08-01 | B7: ='Ex 4 Purchase Gas'!B10 -> 0 | C7: ='Ex 4 Purchase Gas'!C10 -> 0 | D7: ='Ex 7 Co. Owned Gas'!B10 -> 6095.23 | E7: ='Ex 7 Co. Owned Gas'!C10 -> 5556.347 | F7: 0 | G7: 0 | H7: 1 | I7: 1 | K7: 1 | L7: 1
A8: ='Ex 1 HDD'!A11 -> 2019-09-01 | B8: ='Ex 4 Purchase Gas'!B11 -> 660 | C8: ='Ex 4 Purchase Gas'!C11 -> 0 | D8: ='Ex 7 Co. Owned Gas'!B11 -> 5621.87 | E8: ='Ex 7 Co. Owned Gas'!C11 -> 5611.687 | F8: 0.1050642563 | G8: 0 | H8: 0.8949357437 | I8: 1 | K8: 1 | L8: 1
A9: ='Ex 1 HDD'!A12 -> 2019-10-01 | B9: ='Ex 4 Purchase Gas'!B12 -> 6225.481 | C9: ='Ex 4 Purchase Gas'!C12 -> 4222.72 | D9: ='Ex 7 Co. Owned Gas'!B12 -> 5523.228 | E9: ='Ex 7 Co. Owned Gas'!C12 -> 5658.224 | F9: 0.5298863901 | G9: 0.4273599769 | H9: 0.4701136099 | I9: 0.5726400231 | K9: 1 | L9: 1
A10: ='Ex 1 HDD'!A13 -> 2019-11-01 | B10: ='Ex 4 Purchase Gas'!B13 -> 7721.361 | C10: ='Ex 4 Purchase Gas'!C13 -> 4431.064 | D10: ='Ex 7 Co. Owned Gas'!B13 -> 5896.044 | E10: ='Ex 7 Co. Owned Gas'!C13 -> 5360.505 | F10: 0.5670214699 | G10: 0.4525387096 | H10: 0.4329785301 | I10: 0.5474612904 | K10: =F10+H10 -> 1 | L10: 1
A11: ='Ex 1 HDD'!A14 -> 2019-12-01 | B11: ='Ex 4 Purchase Gas'!B14 -> 10591.211 | C11: ='Ex 4 Purchase Gas'!C14 -> 10225.63 | D11: ='Ex 7 Co. Owned Gas'!B14 -> 5876.935 | E11: ='Ex 7 Co. Owned Gas'!C14 -> 5562.662 | F11: 0.6431331736 | G11: 0.6476717051 | H11: 0.3568668264 | I11: 0.3523282949 | K11: 1 | L11: 1
A12: ='Ex 1 HDD'!A15 -> 2020-01-01 | B12: ='Ex 4 Purchase Gas'!B15 -> 9005.449 | C12: ='Ex 4 Purchase Gas'!C15 -> 11799.12 | D12: ='Ex 7 Co. Owned Gas'!B15 -> 5977.019 | E12: ='Ex 7 Co. Owned Gas'!C15 -> 5433.616 | F12: 0.6010657924 | G12: 0.6846922044 | H12: 0.3989342076 | I12: 0.3153077956 | K12: 1 | L12: 1
A13: ='Ex 1 HDD'!A16 -> 2020-02-01 | B13: ='Ex 4 Purchase Gas'!B16 -> 9185.296 | C13: ='Ex 4 Purchase Gas'!C16 -> 9734.01 | D13: ='Ex 7 Co. Owned Gas'!B16 -> 5435.603 | E13: ='Ex 7 Co. Owned Gas'!C16 -> 5096.209 | F13: 0.6282305897 | G13: 0.6563632 | H13: 0.3717694103 | I13: 0.3436368 | K13: 1 | L13: 1
A14: ='Ex 1 HDD'!A17 -> 2020-03-01 | B14: ='Ex 4 Purchase Gas'!B17 -> 0 | C14: ='Ex 4 Purchase Gas'!C17 -> 8071.9 | D14: ='Ex 7 Co. Owned Gas'!B17 -> 0 | E14: ='Ex 7 Co. Owned Gas'!C17 -> 5320.388 | F14: 0 | G14: 0.6027274802 | H14: 0 | I14: 0.3972725198 | K14: 0 | L14: 1
A15: ='Ex 1 HDD'!A18 -> 2020-04-01 | B15: ='Ex 4 Purchase Gas'!B18 -> 0 | C15: ='Ex 4 Purchase Gas'!C18 -> 4812.29 | D15: ='Ex 7 Co. Owned Gas'!B18 -> 0 | E15: ='Ex 7 Co. Owned Gas'!C18 -> 5046.084 | F15: 0 | G15: 0.4881423651 | H15: 0 | I15: 0.5118576349 | K15: 0 | L15: 1
A16: ='Ex 1 HDD'!A19 -> 2020-05-01 | B16: ='Ex 4 Purchase Gas'!B19 -> 0 | C16: ='Ex 4 Purchase Gas'!C19 -> 2600.38 | D16: ='Ex 7 Co. Owned Gas'!B19 -> 0 | E16: ='Ex 7 Co. Owned Gas'!C19 -> 5120.67 | F16: 0 | G16: 0.3367909805 | H16: 0 | I16: 0.6632090195 | K16: 0 | L16: 1
A18: Q1 | B18: =SUM(B5:B7) -> 0 | C18: =SUM(C5:C7) -> 777.383 | D18: =SUM(D5:D7) -> 18188.161 | E18: =SUM(E5:E7) -> 17164.913 | F18: =IFERROR(B18/(B18+D18),0) -> 0 | G18: =C18/(C18+E18) -> 0.04332684067 | H18: =IFERROR(D18/(D18+B18),0) -> 1 | I18: =E18/(E18+C18) -> 0.9566731593 | K18: =F18+H18 -> 1 | L18: 1
A19: Q2 | B19: =SUM(B8:B10) -> 14606.842 | C19: =SUM(C8:C10) -> 8653.784 | D19: =SUM(D8:D10) -> 17041.142 | E19: =SUM(E8:E10) -> 16630.416 | F19: =IFERROR(B19/(B19+D19),0) -> 0.4615409942 | G19: =C19/(C19+E19) -> 0.3422605422 | H19: =IFERROR(D19/(D19+B19),0) -> 0.5384590058 | I19: =E19/(E19+C19) -> 0.6577394578 | K19: 1 | L19: 1
A20: Q3 | B20: =SUM(B11:B13) -> 28781.956 | C20: =SUM(C11:C13) -> 31758.76 | D20: =SUM(D11:D13) -> 17289.557 | E20: =SUM(E11:E13) -> 16092.487 | F20: 0.6247234815 | G20: 0.6636976462 | H20: 0.3752765185 | I20: 0.3363023538 | K20: 1 | L20: 1
A21: Q4 | B21: =SUM(B14:B16) -> 0 | C21: =SUM(C14:C16) -> 15484.57 | D21: =SUM(D14:D16) -> 0 | E21: =SUM(E14:E16) -> 15487.142 | F21: 0 | G21: 0.4999584782 | H21: 0 | I21: =E21/(E21+C21) -> 0.5000415218 | K21: =F21+H21 -> 0 | L21: =G21+I21 -> 1
B22: IRP | C22: Actual | D22: IRP | E22: Actual | F22: 0 | G22: Actual | H22: 0 | I22: Actual
F24: =F4 -> Actual Purchase as Percent of Total | G24: =G4 -> Normal Purchase as Percent of Total | H24: =H4 -> Actual Cost-of-Service as Percent of Total | I24: =I4 -> Normal Cost-of-Service as Percent of Total
E25: =A11 -> 2019-12-01 | F25: =VLOOKUP($E25,$A$5:$I$16,F$3,FALSE) -> 0.6431331736 | G25: =VLOOKUP($E25,$A$5:$I$16,G$3,FALSE) -> 0.6476717051 | H25: 0.3568668264 | I25: 0.3523282949 | K25: =F25+H25 -> 1 | L25: 1
E26: =A12 -> 2020-01-01 | F26: =VLOOKUP($E26,$A$5:$I$16,F$3,FALSE) -> 0.6010657924 | G26: 0.6846922044 | H26: 0.3989342076 | I26: 0.3153077956 | K26: 1 | L26: 1
E27: =A13 -> 2020-02-01 | F27: =VLOOKUP($E27,$A$5:$I$16,F$3,FALSE) -> 0.6282305897 | G27: 0.6563632 | H27: 0.3717694103 | I27: 0.3436368 | K27: 1 | L27: 1
E29: =A18 -> Q1 | F29: =VLOOKUP($E29,$A$18:$I$21,F$3,FALSE) -> 0 | G29: =VLOOKUP($E29,$A$18:$I$21,G$3,FALSE) -> 0.04332684067 | H29: 1 | I29: 0.9566731593 | K29: =F29+H29 -> 1 | L29: 1
E30: =A19 -> Q2 | F30: =VLOOKUP($E30,$A$18:$I$21,F$3,FALSE) -> 0.4615409942 | G30: 0.3422605422 | H30: 0.5384590058 | I30: 0.6577394578 | K30: 1 | L30: 1
E31: =A20 -> Q3 | F31: =VLOOKUP($E31,$A$18:$I$21,F$3,FALSE) -> 0.6247234815 | G31: 0.6636976462 | H31: 0.3752765185 | I31: 0.3363023538 | K31: 1 | L31: 1
E32: Q4 | F32: =VLOOKUP($E32,$A$18:$I$21,F$3,FALSE) -> 0 | G32: 0.4999584782 | H32: 0 | I32: 0.5000415218 | K32: 0 | L32: 1 | N32: =F32-G32 -> -0.4999584782 | O32: =I32-H32 -> 0.5000415218
F34: =AVERAGE((F25:F27)) -> 0.6241431852 | G34: =AVERAGE((G25:G27)) -> 0.6629090365 | H34: =AVERAGE((H25:H27)) -> 0.3758568148 | I34: =AVERAGE((I25:I27)) -> 0.3370909635

Sheet IRP Pruch Cover Sheet (hidden)
B1: 2 | C1: 3 | D1: 4 | E1: 5
B2: ='Normal Purchase %'!F24 -> Actual Purchase as Percent of Total | C2: ='Normal Purchase %'!G24 -> Normal Purchase as Percent of Total | D2: ='Normal Purchase %'!H24 -> Actual Cost-of-Service as Percent of Total | E2: ='Normal Purchase %'!I24 -> Normal Cost-of-Service as Percent of Total
A4: ='Normal Purchase %'!E25 -> 2019-12-01 | B4: =VLOOKUP($A4,'Normal Purchase %'!$E$25:$I$27,'IRP Pruch Cover Sheet'!B$1,FALSE) -> 0.6431331736 | C4: =VLOOKUP($A4,'Normal Purchase %'!$E$25:$I$27,'IRP Pruch Cover Sheet'!C$1,FALSE) -> 0.6476717051 | D4: =VLOOKUP($A4,'Normal Purchase %'!$E$25:$I$27,'IRP Pruch Cover Sheet'!D$1,FALSE) -> 0.3568668264 | E4: =VLOOKUP($A4,'Normal Purchase %'!$E$25:$I$27,'IRP Pruch Cover Sheet'!E$1,FALSE) -> 0.3523282949
A5: ='Normal Purchase %'!E26 -> 2020-01-01 | B5: =VLOOKUP($A5,'Normal Purchase %'!$E$25:$I$27,'IRP Pruch Cover Sheet'!B$1,FALSE) -> 0.6010657924 | C5: =VLOOKUP($A5,'Normal Purchase %'!$E$25:$I$27,'IRP Pruch Cover Sheet'!C$1,FALSE) -> 0.6846922044 | D5: =VLOOKUP($A5,'Normal Purchase %'!$E$25:$I$27,'IRP Pruch Cover Sheet'!D$1,FALSE) -> 0.3989342076 | E5: =VLOOKUP($A5,'Normal Purchase %'!$E$25:$I$27,'IRP Pruch Cover Sheet'!E$1,FALSE) -> 0.3153077956
A6: ='Normal Purchase %'!E27 -> 2020-02-01 | B6: =VLOOKUP($A6,'Normal Purchase %'!$E$25:$I$27,'IRP Pruch Cover Sheet'!B$1,FALSE) -> 0.6282305897 | C6: =VLOOKUP($A6,'Normal Purchase %'!$E$25:$I$27,'IRP Pruch Cover Sheet'!C$1,FALSE) -> 0.6563632 | D6: =VLOOKUP($A6,'Normal Purchase %'!$E$25:$I$27,'IRP Pruch Cover Sheet'!D$1,FALSE) -> 0.3717694103 | E6: =VLOOKUP($A6,'Normal Purchase %'!$E$25:$I$27,'IRP Pruch Cover Sheet'!E$1,FALSE) -> 0.3436368
A8: ='Normal Purchase %'!E31 -> Q3 | B8: =VLOOKUP($A$8,'Normal Purchase %'!$E$29:$I$32,'IRP Pruch Cover Sheet'!B$1,FALSE) -> 0.6247234815 | C8: =VLOOKUP($A$8,'Normal Purchase %'!$E$29:$I$32,'IRP Pruch Cover Sheet'!C$1,FALSE) -> 0.6636976462 | D8: =VLOOKUP($A$8,'Normal Purchase %'!$E$29:$I$32,'IRP Pruch Cover Sheet'!D$1,FALSE) -> 0.3752765185 | E8: =VLOOKUP($A$8,'Normal Purchase %'!$E$29:$I$32,'IRP Pruch Cover Sheet'!E$1,FALSE) -> 0.3363023538
C15: =B8-C8 -> -0.03897416465 | D15: =E8-D8 -> -0.03897416465

Sheet Shut-In (hidden)
A1: Actual Data from Jennifer Beasley
A2: Estimates…See Company Nom Groups herein
B4: June | C4: July | D4: August | E4: Total Dth for Quarter | H4: December | I4: January | J4: February | K4: Total Dth for Quarter
A5: Estimated Shut-in (dth/day) | B5: ='Company Nom Groups'!B134 -> 0 | C5: ='Company Nom Groups'!C134 -> 0 | D5: ='Company Nom Groups'!D134 -> 13668.90484 | E5: =SUM(B5:D5) -> 13668.90484 | G5: Estimated Shut-in (dth/day) | H5: =H41/30 -> 0 | I5: =I41/30 -> 0 | J5: 0 | K5: =K41 -> 0
A6: Actual Shut-in (dth/day) | B6: 0 | C6: 0 | D6: 0 | E6: 0 | G6: Acutal Shut-in (dth/day) | H6: =H75/30 -> 0 | I6: =I75/31 -> 0 | J6: 0 | K6: =K75 -> 0
A10: 1 | B10: 59 | C10: =C5 -> 0 | D10: 0 | G10: =A10 -> 1
A11: 2 | B11: 59 | C11: 780 | D11: 0 | G11: =A11 -> 2
A12: 3 | B12: 59 | C12: 780 | D12: 0 | G12: 3
A13: 4 | B13: 59 | C13: 780 | D13: 0 | G13: 4
A14: 5 | B14: 59 | C14: 780 | D14: 0 | G14: 5
A15: 6 | B15: 59 | C15: 780 | D15: 0 | G15: 6
A16: 7 | B16: 59 | C16: =C11 -> 780 | D16: 0 | G16: 7
A17: 8 | B17: 59 | C17: 780 | D17: 0 | G17: 8
A18: 9 | B18: 59 | C18: 780 | D18: 0 | G18: 9
A19: 10 | B19: 59 | C19: =C14 -> 780 | D19: 0 | G19: 10
A20: 11 | B20: 59 | C20: 780 | D20: 0 | G20: 11
A21: 12 | B21: 59 | C21: 780 | D21: 0 | G21: 12
A22: 13 | B22: 59 | C22: =C17 -> 780 | D22: 0 | G22: 13
A23: 14 | B23: 59 | C23: 780 | D23: 0 | G23: 14
A24: 15 | B24: 59 | C24: 780 | D24: 0 | G24: 15
A25: 16 | B25: 59 | C25: =C20 -> 780 | D25: 0 | G25: 16
A26: 17 | B26: 59 | C26: 780 | D26: 0 | G26: 17
A27: 18 | B27: 59 | C27: 780 | D27: 0 | G27: 18
A28: 19 | B28: 59 | C28: =C23 -> 780 | D28: 0 | G28: 19
A29: 20 | B29: 59 | C29: 780 | D29: 0 | G29: 20
A30: 21 | B30: 59 | C30: 780 | D30: 0 | G30: 21
A31: 22 | B31: 59 | C31: =C26 -> 780 | D31: 0 | G31: 22
A32: 23 | B32: 59 | C32: 780 | D32: 0 | G32: 23
A33: 24 | B33: 59 | C33: 780 | D33: 0 | G33: 24
A34: 25 | B34: 59 | C34: =C29 -> 780 | D34: 0 | G34: 25
A35: 26 | B35: 59 | C35: 780 | D35: 0 | G35: 26
A36: 27 | B36: 59 | C36: 780 | D36: 0 | G36: 27
A37: 28 | B37: 59 | C37: =C32 -> 780 | D37: 0 | G37: 28
A38: 29 | B38: 59 | C38: 780 | D38: 0 | G38: 29
A39: 30 | B39: 59 | C39: 780 | D39: 0 | G39: 30
A40: 31 | B40: 0 | C40: =C35 -> 780 | D40: 0 | G40: 31
B41: =SUM(B10:B40) -> 1770 | C41: =SUM(C10:C40) -> 23400 | D41: =SUM(D10:D40) -> 0 | E41: =SUM(B41:D41) -> 25170 | H41: 0 | I41: 0 | J41: 0 | K41: =SUM(H41:J41) -> 0
A44: 1 | B44: 0 | C44: 0 | D44: 0 | G44: 1 | H44: 0 | I44: 0 | J44: 0
A45: 2 | B45: 0 | C45: 0 | D45: 0 | G45: 2 | H45: 0 | I45: 0 | J45: 0
A46: 3 | B46: 0 | C46: 0 | D46: 0 | G46: 3 | H46: 0 | I46: 0 | J46: 0
A47: 4 | B47: 0 | C47: 0 | D47: 5724 | G47: 4 | H47: 0 | I47: 0 | J47: 0
A48: 5 | B48: 0 | C48: 0 | D48: 5724 | G48: 5 | H48: 0 | I48: 0 | J48: 0
A49: 6 | B49: 0 | C49: 0 | D49: 5724 | G49: 6 | H49: 0 | I49: 0 | J49: 0
A50: 7 | B50: 0 | C50: 0 | D50: 5724 | G50: 7 | H50: 0 | I50: 0 | J50: 0
A51: 8 | B51: 0 | C51: 0 | D51: 5724 | G51: 8 | H51: 0 | I51: 0 | J51: 0
A52: 9 | B52: 0 | C52: 0 | D52: 5724 | G52: 9 | H52: 0 | I52: 0 | J52: 0
A53: 10 | B53: 0 | C53: 0 | D53: 5724 | G53: 10 | H53: 0 | I53: 0 | J53: 0
A54: 11 | B54: 0 | C54: 0 | D54: 5724 | G54: 11 | H54: 0 | I54: 0 | J54: 0
A55: 12 | B55: 0 | C55: 0 | D55: 5724 | G55: 12 | H55: 0 | I55: 0 | J55: 0
A56: 13 | B56: 0 | C56: 0 | D56: 5724 | G56: 13 | H56: 0 | I56: 0 | J56: 0
A57: 14 | B57: 0 | C57: 0 | D57: 5724 | G57: 14 | H57: 0 | I57: 0 | J57: 0
A58: 15 | B58: 0 | C58: 0 | D58: 5724 | G58: 15 | H58: 0 | I58: 0 | J58: 0
A59: 16 | B59: 0 | C59: 0 | D59: 5724 | G59: 16 | H59: 0 | I59: 0 | J59: 0
A60: 17 | B60: 0 | C60: 0 | D60: 5724 | G60: 17 | H60: 0 | I60: 0 | J60: 0
A61: 18 | B61: 0 | C61: 0 | D61: 5724 | G61: 18 | H61: 0 | I61: 0 | J61: 0
A62: 19 | B62: 0 | C62: 0 | D62: 5724 | G62: 19 | H62: 0 | I62: 0 | J62: 0
A63: 20 | B63: 0 | C63: 0 | D63: 5724 | G63: 20 | H63: 0 | I63: 0 | J63: 0
A64: 21 | B64: 0 | C64: 0 | D64: 5724 | G64: 21 | H64: 0 | I64: 0 | J64: 0
A65: 22 | B65: 0 | C65: 0 | D65: 5724 | G65: 22 | H65: 0 | I65: 0 | J65: 0
A66: 23 | B66: 0 | C66: 0 | D66: 5724 | G66: 23 | H66: 0 | I66: 0 | J66: 0
A67: 24 | B67: 0 | C67: 0 | D67: 5724 | G67: 24 | H67: 0 | I67: 0 | J67: 0
A68: 25 | B68: 0 | C68: 0 | D68: 5724 | G68: 25 | H68: 0 | I68: 0 | J68: 0
A69: 26 | B69: 0 | C69: 0 | D69: 5724 | G69: 26 | H69: 0 | I69: 0 | J69: 0
A70: 27 | B70: 0 | C70: 0 | D70: 5724 | G70: 27 | H70: 0 | I70: 0 | J70: 0
A71: 28 | B71: 0 | C71: 0 | D71: 5724 | G71: 28 | H71: 0 | I71: 0 | J71: 0
A72: 29 | B72: 0 | C72: 0 | D72: 5724 | G72: 29 | H72: 0 | I72: 0 | J72: 0
A73: 30 | B73: 0 | C73: 0 | D73: 5724 | G73: 30 | H73: 0 | I73: 0 | J73: 0
A74: 31 | B74: 0 | C74: 0 | D74: 5724 | G74: 31 | I74: 0
B75: =SUM(B44:B74) -> 0 | C75: =SUM(C44:C74) -> 0 | D75: =SUM(D44:D74) -> 160272 | E75: =SUM(B75:D75) -> 160272 | H75: =SUM(H44:H74) -> 0 | I75: =SUM(I44:I74) -> 0 | J75: =SUM(J44:J74) -> 0 | K75: =SUM(H75:J75) -> 0

Sheet Deleted Exhibit 2.5 (hidden)
O31: ='Exhibit 1.1'!O31 -> DEU Variance Exhibit | P31: ='Exhibit 1.1'!P31 -> Docket No. 19-057-01 | Q31: ='Exhibit 1.1'!Q31 -> Dominion Energy Utah
O32: 2.5

Sheet Deleted Exhibit 2.6 (hidden)
O31: ='Exhibit 1.1'!O31 -> DEU Variance Exhibit | P31: ='Exhibit 1.1'!P31 -> Docket No. 19-057-01 | Q31: ='Exhibit 1.1'!Q31 -> Dominion Energy Utah
O32: 2.6
